Workbook

Sheet Disclaimer
A1: The Core Group (Pty) Ltd always attempts to provide meaningful and practical information. However, no representation is made as to the accuracy, completeness or adequacy of the information contained in this tax calculator. Core Member Firms and Associates are therefore urged to confirm the calculations themselves. Each tax case is unique and the tax and welfare regulatory environment changes regularly. Therefore this tool may not always be applicable to your actual situation. This calculator will give you an estimate only, based on the information you enter at the time. The actual amount of your tax payable or refund will depend on the information you provide in your tax return and on the balance of your account at the time of assessment. The Core Group (Pty) Ltd, Core Tax (Pty) Ltd, as well as the other Core Associates, does not accept any liability for loss or damage, of whatsoever nature, which may be attributable to the reliance on or use of the calculator.
A3: Please report any errors or make suggestions on the tax calculator by clicking on the red cube:
A4: ALWAYS!
A5: Test the result of your calculation with the online calculation done by SARS E-filing for the specific client before signing of the calculation or discussing the results with the client.

Sheet Standing info
H1: AFRIKAANS | I1: FALSE | J1: =IF(C9="AFRIKAANS",TRUE,FALSE) -> FALSE
B2: =IF(C4=0,IF($J$1=TRUE,"BELASTINGBEREKENING","TAX CALCULATION"),IF($J$1=TRUE,"BELASTINGBEREKENING VIR "&UPPER(C4),"TAX CALCULATION FOR "&UPPER(C4))) -> TAX CALCULATION | H2: ENGLISH | L2: 2002-02-28 | M2: 2003-02-28 | N2: 2004-02-29 | O2: 2005-02-28 | P2: 2006-02-28 | Q2: 2007-02-28 | R2: 2008-02-29 | S2: 2009-02-28 | T2: 2010-02-28 | U2: 2011-02-28 | V2: 2012-02-29 | W2: 2013-02-28 | X2: 2014-02-28 | Y2: 2015-02-28 | Z2: 2016-02-29 | AA2: 2017-02-28 | AB2: 2018-02-28 | AC2: 2019-02-28 | AD2: 2020-02-29 | AE2: 2021-02-28 | AF2: 2022-02-28 | AG2: 2023-02-28 | AH2: 2024-02-28 | AI2: 2025-02-28 | AJ2: 2026-02-28 | AK2: 2027-02-28
B3: =IF(B43="00","",IF(C43=C48,IF($J$1=TRUE,"Klient is geregistreer","Client is registered"),IF($J$1=TRUE,"Klient is nie geregistreer nie:","Client is not registered"))) -> Client is registered | C3: =IF($J$1=TRUE,"Firma naam:","Firm name:") -> Firm name: | L3: =L2 -> 2002-02-28 | M3: =M2 -> 2003-02-28 | N3: 2004-02-29 | O3: 2005-02-28 | P3: 2006-02-28 | Q3: 2007-02-28 | R3: 2008-02-29 | S3: 2009-02-28 | T3: 2010-02-28 | U3: 2011-02-28 | V3: =V2 -> 2012-02-29 | W3: =W2 -> 2013-02-28 | X3: =X2 -> 2014-02-28 | Y3: =Y2 -> 2015-02-28 | Z3: =Z2 -> 2016-02-29 | AA3: =AA2 -> 2017-02-28 | AB3: 2018-02-28 | AC3: =AC2 -> 2019-02-28 | AD3: 2020-02-29 | AE3: =AE2 -> 2021-02-28 | AF3: 2022-02-28 | AG3: =AG2 -> 2023-02-28 | AH3: =AH2 -> 2024-02-28 | AI3: =AI2 -> 2025-02-28 | AJ3: 2026-02-28 | AK3: 2027-02-28
B4: =IF($J$1=TRUE,"Klient Naam:","Client name:") -> Client name: | L4: 2002 | M4: 2003 | N4: 2004 | O4: 2005 | P4: 2006 | Q4: 2007 | R4: 2008 | S4: 2009 | T4: 2010 | U4: 2011 | V4: 2012 | W4: 2013 | X4: 2014 | Y4: 2015 | Z4: 2016 | AA4: 2017 | AB4: 2018 | AC4: 2019 | AD4: 2020 | AE4: 2021 | AF4: 2022 | AG4: 2023 | AH4: 2024 | AI4: 2025 | AJ4: 2026 | AK4: 2027
B5: =IF($J$1=TRUE,"Belasting verwysingsnommer:","Tax reference number:") -> Tax reference number: | H5: =LEFT(C5,4) -> 
B6: =IF($J$1=TRUE,"Identiteitsnommer:","Identification number:") -> Identification number: | H6: =RIGHT(I6,3) ->  | I6: =LEFT(C5,7) ->  | L6: ="28 FEBRUARIE"&" "&L4 -> 28 FEBRUARIE 2002 | M6: ="28 FEBRUARIE"&" "&M4 -> 28 FEBRUARIE 2003 | N6: ="29 FEBRUARIE"&" "&N4 -> 29 FEBRUARIE 2004 | O6: ="28 FEBRUARIE"&" "&O4 -> 28 FEBRUARIE 2005 | P6: ="28 FEBRUARIE"&" "&P4 -> 28 FEBRUARIE 2006 | Q6: ="28 FEBRUARIE"&" "&Q4 -> 28 FEBRUARIE 2007 | R6: ="29 FEBRUARIE"&" "&R4 -> 29 FEBRUARIE 2008 | S6: ="28 FEBRUARIE"&" "&S4 -> 28 FEBRUARIE 2009 | T6: ="28 FEBRUARIE"&" "&T4 -> 28 FEBRUARIE 2010 | U6: ="28 FEBRUARIE"&" "&U4 -> 28 FEBRUARIE 2011 | V6: ="29 FEBRUARIE"&" "&V4 -> 29 FEBRUARIE 2012 | W6: ="28 FEBRUARIE"&" "&W4 -> 28 FEBRUARIE 2013 | X6: ="28 FEBRUARIE"&" "&X4 -> 28 FEBRUARIE 2014 | Y6: ="28 FEBRUARIE"&" "&Y4 -> 28 FEBRUARIE 2015 | Z6: ="29 FEBRUARIE"&" "&Z4 -> 29 FEBRUARIE 2016 | AA6: ="28 FEBRUARIE"&" "&AA4 -> 28 FEBRUARIE 2017 | AB6: ="28 FEBRUARIE"&" "&AB4 -> 28 FEBRUARIE 2018 | AC6: ="28 FEBRUARIE"&" "&AC4 -> 28 FEBRUARIE 2019 | AD6: ="29 FEBRUARIE"&" "&AD4 -> 29 FEBRUARIE 2020 | AE6: ="28 FEBRUARIE"&" "&AE4 -> 28 FEBRUARIE 2021 | AF6: ="28 FEBRUARIE"&" "&AF4 -> 28 FEBRUARIE 2022 | AG6: ="28 FEBRUARIE"&" "&AG4 -> 28 FEBRUARIE 2023 | AH6: ="29 FEBRUARIE"&" "&AH4 -> 29 FEBRUARIE 2024 | AI6: ="28 FEBRUARIE"&" "&AI4 -> 28 FEBRUARIE 2025 | AJ6: ="28 FEBRUARIE"&" "&AJ4 -> 28 FEBRUARIE 2026 | AK6: ="28 FEBRUARIE"&" "&AK4 -> 28 FEBRUARIE 2027
B7: =IF($J$1=TRUE,"Jaar van aanslag:","Year of assessment:") -> Year of assessment: | D7: =IF(C7=0,"",IF($J$1=TRUE,HLOOKUP(C7,L3:AK7,4),HLOOKUP(C7,L3:AK7,5))) ->  | H7: =RIGHT(I7,2) ->  | I7: =LEFT(C5,9) ->  | L7: ="28 FEBRUARY"&" "&L4 -> 28 FEBRUARY 2002 | M7: ="28 FEBRUARY"&" "&M4 -> 28 FEBRUARY 2003 | N7: ="29 FEBRUARY"&" "&N4 -> 29 FEBRUARY 2004 | O7: ="28 FEBRUARY"&" "&O4 -> 28 FEBRUARY 2005 | P7: ="28 FEBRUARY"&" "&P4 -> 28 FEBRUARY 2006 | Q7: ="28 FEBRUARY"&" "&Q4 -> 28 FEBRUARY 2007 | R7: ="29 FEBRUARY"&" "&R4 -> 29 FEBRUARY 2008 | S7: ="28 FEBRUARY"&" "&S4 -> 28 FEBRUARY 2009 | T7: ="28 FEBRUARY"&" "&T4 -> 28 FEBRUARY 2010 | U7: ="28 FEBRUARY"&" "&U4 -> 28 FEBRUARY 2011 | V7: ="29 FEBRUARY"&" "&V4 -> 29 FEBRUARY 2012 | W7: ="28 FEBRUARY"&" "&W4 -> 28 FEBRUARY 2013 | X7: ="28 FEBRUARY"&" "&X4 -> 28 FEBRUARY 2014 | Y7: ="28 FEBRUARY"&" "&Y4 -> 28 FEBRUARY 2015 | Z7: ="29 FEBRUARY"&" "&Z4 -> 29 FEBRUARY 2016 | AA7: ="28 FEBRUARY"&" "&AA4 -> 28 FEBRUARY 2017 | AB7: ="28 FEBRUARY"&" "&AB4 -> 28 FEBRUARY 2018 | AC7: ="28 FEBRUARY"&" "&AC4 -> 28 FEBRUARY 2019 | AD7: ="29 FEBRUARY"&" "&AD4 -> 29 FEBRUARY 2020 | AE7: ="28 FEBRUARY"&" "&AE4 -> 28 FEBRUARY 2021 | AF7: ="28 FEBRUARY"&" "&AF4 -> 28 FEBRUARY 2022 | AG7: ="28 FEBRUARY"&" "&AG4 -> 28 FEBRUARY 2023 | AH7: ="29 FEBRUARY"&" "&AH4 -> 29 FEBRUARY 2024 | AI7: ="28 FEBRUARY"&" "&AI4 -> 28 FEBRUARY 2025 | AJ7: ="28 FEBRUARY"&" "&AJ4 -> 28 FEBRUARY 2026 | AK7: ="28 FEBRUARY"&" "&AK4 -> 28 FEBRUARY 2027
H8: =RIGHT(I8,1) ->  | I8: =LEFT(C5,10) -> 
B9: =IF($J$1=TRUE,"Taal voorkeur:","Language preference:") -> Language preference: | H9: =IF(I8=I9,"",RIGHT(I9,1)) ->  | I9: =LEFT(C5,11) -> 
M10: =NOW() -> 2026-04-07T21:27:38.880
B11: =IF($J$1=TRUE,"Posadres:","Postal address:") -> Postal address: | H11: =C6 -> 0 | M11: =NOW() -> 2026-04-07T21:27:38.880
M13: =IF($J$1=TRUE,"Meneer","Sir") -> Sir
H14: =IF(C6<>0,IF(C7<>0,DATEDIF(DATE(IF(LEFT(H11,2)>TEXT(C7,"YY"),"19"&LEFT(H11,2),"20" &LEFT(H11,2)),MID(H11,3,2),MID(H11,5,2)),C7,"y"),0),0) -> 0 | M14: =IF($J$1=TRUE,"Mevrou","Madam") -> Madam
M15: =IF($J$1=TRUE,"Mejuffrou","Miss") -> Miss
B16: =IF($J$1=TRUE,"Rig verslag aan:","Address report to:") -> Address report to: | M16: =IF($J$1=TRUE,"Professor","Professor") -> Professor
M17: =IF($J$1=TRUE,"Dokter","Doctor") -> Doctor
B18: =IF($J$1=TRUE,"Verslag onderteken deur:","Report signed by:") -> Report signed by: | M18: =IF($J$1=TRUE,"Doktor","Doctor") -> Doctor
M19: =IF($J$1=TRUE,"Advokaat","Advocate") -> Advocate
M20: =IF($J$1=TRUE,"Dominee","Reverend") -> Reverend
B21: =IF($J$1=TRUE,"Ouderdom:","Age:") -> Age: | C21: =H14 -> 0
M22: Bladsy | N22: =IF(O22=2,"A",IF(O22=3,"B",IF(O22=4,"C",IF(O22=5,"D")))) -> A | O22: =MIN(Contents!$M$22:$M$25) -> 2
B23: =IF($J$1=TRUE,"Oorlede gedurende jaar van aanslag:","Died during year of assessment:") -> Died during year of assessment: | H23: FALSE | L23: tot | M23: Bladsy | N23: =IF(O23=2,"A",IF(O23=3,"B",IF(O23=4,"C",IF(O23=5,"D")))) -> D | O23: =MAX(Contents!$M$22:$M$25) -> 5
B24: =IF(H23=TRUE,IF($J$1=TRUE,"Datum van afsterwe (Tik woorde bv. '5 September 2021' )","Date of death (Type words ie. '5 September 2021' )"),"") ->  | H24: FALSE
H25: =IF(H23=TRUE,TRUE,IF(H24=TRUE,TRUE,FALSE)) -> FALSE
B26: =IF(H25=TRUE,IF($J$1=TRUE,"Aantal dae gewerk","Number of days worked"),"") ->  | N26: =IF($N$22<>$N$23,"skedule "&$N$22&" tot "&$N$23,"skedule "&$N$23) -> skedule A tot D
B27: =IF($J$1=TRUE,"Gestremd of gestremde afhanklikes:","Disabled or disabled dependants:") -> Disabled or disabled dependants: | D27: Core Taxcalc 2024_2025_2026_2027 v1 | H27: FALSE | N27: =IF($N$22<>$N$23,"schedule "&$N$22&" to "&$N$23,"schedule "&$N$23) -> schedule A to D
B42: =IF($J$1=TRUE,"Registrasie sleutel:","Registration key:") -> Registration key: | C42: =IF($J$1=TRUE,"Registrasie kode:","Registration code:") -> Registration code:
B43: =((ROUND((B50),0)+ROUND((B52),0)+ROUND((B51)+ROUND((B53),0),0))+999997) -> 999999 | C43: =C48 -> 0
B47: =MID(C4,5,3) ->  | C47: =B43 -> 999999
B48: =LEFT(C4,5) ->  | C48: =IF(B43=999999,0,IF(B50=0,0,ROUND(C47/2.3456*7/999*MID(C47,3,3),0))) -> 0 | D48: =C47/C48 -> 
B49: =B47&B48 ->  | C49: =MID(C47,5,3) -> 99
B50: =IF(C7=0,1,C7*2) -> 1
B51: =IF(C5=0,1,LEFT(C5,5)*B50) -> 1
B52: =IF(B49<>"",ROUND(CODE(B49)*10101/1000,0),0) -> 0
B53: =IF(C4=0,0,C77) -> 0
B57: =RIGHT($C$4,1) ->  | C57: =IF(B57<>"",CODE(B57),0) -> 0
B58: =RIGHT($C$4,2) ->  | C58: =IF(B58<>"",CODE(B58),0) -> 0
B59: =RIGHT($C$4,3) ->  | C59: 0
B60: =RIGHT($C$4,4) ->  | C60: 0
B61: =RIGHT($C$4,5) ->  | C61: 0
B62: =RIGHT($C$4,6) ->  | C62: 0
B63: =RIGHT($C$4,7) ->  | C63: 0
B64: =RIGHT($C$4,8) ->  | C64: 0
B65: =RIGHT($C$4,9) ->  | C65: 0
B66: =RIGHT($C$4,10) ->  | C66: 0
B67: =RIGHT($C$4,11) ->  | C67: 0
B68: =RIGHT($C$4,12) ->  | C68: 0
B69: =RIGHT($C$4,13) ->  | C69: 0
B70: =RIGHT($C$4,14) ->  | C70: 0
B71: =RIGHT($C$4,15) ->  | C71: 0
B72: =RIGHT($C$4,16) ->  | C72: 0
B73: =RIGHT($C$4,17) ->  | C73: 0
B74: =RIGHT($C$4,18) ->  | C74: 0
B75: =RIGHT($C$4,19) ->  | C75: 0
B76: =RIGHT($C$4,20) ->  | C76: 0
C77: =SUM(C57:C76) -> 0

Sheet Control sheet
A1: ='Standing info'!D3 -> 0
A2: =IF('Standing info'!$J$1=TRUE,"KONTROLEBLAD","CONTROL SHEET") -> CONTROL SHEET
A3: =IF('Standing info'!$J$1=TRUE,"KLIëNT :","CLIENT :") -> CLIENT : | B3: ='Standing info'!C4 -> 0 | E3: =IF('Standing info'!$J$1=TRUE,"Kliëntkode :","Client code :") -> Client code :
A4: =IF('Standing info'!$J$1=TRUE,"JAAREINDE :","YEAR-END :") -> YEAR-END : | B4: ='Standing info'!D7 ->  | E4: =IF('Standing info'!$J$1=TRUE,"Opgestel deur :","Prepared by :") -> Prepared by :
A6: =IF('Standing info'!$J$1=TRUE,"GOEDKEURING","APPROVAL") -> APPROVAL | G6: =IF('Standing info'!$J$1=TRUE,"Paraaf","Initial") -> Initial | H6: =IF('Standing info'!$J$1=TRUE,"Datum","Date") -> Date
A7: =IF('Standing info'!$J$1=TRUE,"Nagesien","Reviewed") -> Reviewed
A8: =IF('Standing info'!$J$1=TRUE,"Nagesien deur vennoot","Reviewed by partner") -> Reviewed by partner
A9: =IF('Standing info'!$J$1=TRUE,"Tikwerk nagegaan","Typing reviewed") -> Typing reviewed | F9: =IF('Standing info'!$J$1=TRUE,"NA","TO") -> TO
F10: =IF('Standing info'!$J$1=TRUE,"DEUR","BY") -> BY
A11: =IF('Standing info'!$J$1=TRUE,"Akkuraatheid van berekeninge nagegaan","Accuracy of calculations reviewed") -> Accuracy of calculations reviewed
A12: =IF('Standing info'!$J$1=TRUE,"Goedgekeur vir drukwerk","Approved for printing") -> Approved for printing
A13: =IF('Standing info'!$J$1=TRUE,"DRUKWERK","PRINTING") -> PRINTING | H13: =IF('Standing info'!$J$1=TRUE,"Kopieë","Copies") -> Copies
A14: =IF('Standing info'!$J$1=TRUE,"Aantal berekeninge om te druk","Number of calculations to be printed") -> Number of calculations to be printed
A15: =IF('Standing info'!$J$1=TRUE,"VENNOOT NAVRAE","PARTNER ISSUES") -> PARTNER ISSUES | F15: =IF('Standing info'!$J$1=TRUE,"Kommentaar","Comments") -> Comments | H15: =IF('Standing info'!$J$1=TRUE,"Afgehandel","Completed") -> Completed

Sheet Time budget
A1: ='Standing info'!D3 -> 0
A2: =IF('Standing info'!$J$1=TRUE,"TYDSBEGROTING","TIME BUDGET") -> TIME BUDGET
A4: =IF('Standing info'!$J$1=TRUE,"KLIëNT:","CLIENT:") -> CLIENT: | B4: ='Standing info'!C4 -> 0 | E4: =IF('Standing info'!$J$1=TRUE,"Opgestel deur:","Prepared by:") -> Prepared by: | G4: ='Control sheet'!G4 -> 0
A6: =IF('Standing info'!$J$1=TRUE,"PERIODE:","PERIOD:") -> PERIOD: | B6: ='Standing info'!D7 -> 
A8: =IF('Standing info'!$J$1=TRUE,"Fooi vir die vorige jaar:","Previous year fee:") -> Previous year fee: | D8: R
A11: =IF('Standing info'!$J$1=TRUE,"BEGROTE FOOI:","BUDGETED FEE:") -> BUDGETED FEE: | E11: =IF('Standing info'!$J$1=TRUE,"Begrote","Budgeted") -> Budgeted | F11: =IF('Standing info'!$J$1=TRUE,"Tarief per","Tariff per") -> Tariff per | G11: =IF('Standing info'!$J$1=TRUE,"Begrote","Budgeted") -> Budgeted | H11: =IF('Standing info'!$J$1=TRUE,"Werklike","Actual") -> Actual
E12: =IF('Standing info'!$J$1=TRUE,"ure","hours") -> hours | F12: =IF('Standing info'!$J$1=TRUE,"uur","hour") -> hour | G12: =IF('Standing info'!$J$1=TRUE,"koste","cost") -> cost | H12: =IF('Standing info'!$J$1=TRUE,"koste","cost") -> cost
A13: =IF('Standing info'!$J$1=TRUE,"Aanvanklike bespreking van werk","Initial discussion of work") -> Initial discussion of work | G13: =E13*F13 -> 0 | N13: =G27 -> 0
A14: =IF('Standing info'!$J$1=TRUE,"Opstel van tydsbegroting","Compilation of time budget") -> Compilation of time budget | G14: =E14*F14 -> 0
A15: =IF('Standing info'!$J$1=TRUE,"Klerk:","Clerk:") -> Clerk: | B15: =IF('Standing info'!$J$1=TRUE,"Verwerking & berekening","Processing & calculation") -> Processing & calculation | G15: 0
B16: =IF('Standing info'!$J$1=TRUE,"Regstellings op navrae","Corrections on review notes") -> Corrections on review notes | G16: 0
A17: =IF('Standing info'!$J$1=TRUE,"Oorlees en tel:","Review typing & calculations:") -> Review typing & calculations: | B17: =IF('Standing info'!$J$1=TRUE,"Klerk 1","Clerk 1") -> Clerk 1 | G17: 0
B18: =IF('Standing info'!$J$1=TRUE,"Klerk 2","Clerk 2") -> Clerk 2 | G18: 0
A19: =IF('Standing info'!$J$1=TRUE,"Nasien:","Review:") -> Review: | B19: =IF('Standing info'!$J$1=TRUE,"Senior","Senior") -> Senior | G19: 0
B20: =IF('Standing info'!$J$1=TRUE,"Vennoot","Partner") -> Partner | G20: 0
A21: =IF('Standing info'!$J$1=TRUE,"Belasting:","Tax:") -> Tax: | B21: =IF('Standing info'!$J$1=TRUE,"Invul van opgawe","Complete return") -> Complete return | G21: 0
B22: =IF('Standing info'!$J$1=TRUE,"Nagaan van aanslag","Review assessment") -> Review assessment | G22: 0
A23: =IF('Standing info'!$J$1=TRUE,"Vergadering:","Meeting:") -> Meeting: | B23: =IF('Standing info'!$J$1=TRUE,"Klerk","Clerk") -> Clerk | G23: 0
B24: =IF('Standing info'!$J$1=TRUE,"Vennoot","Partner") -> Partner | G24: 0
A25: =IF('Standing info'!$J$1=TRUE,"Subtotaal:","Subtotal:") -> Subtotal: | G25: =SUM(G13:G24) -> 0 | H25: =SUM(H13:H24) -> 0
A26: =IF('Standing info'!$J$1=TRUE,"Koste op WIP:","Cost on WIP:") -> Cost on WIP:
A27: =IF('Standing info'!$J$1=TRUE,"TOTAAL","TOTAL") -> TOTAL | G27: =G25+G26 -> 0 | H27: =H25+H26 -> 0
A31: =IF('Standing info'!$J$1=TRUE,"Afhandelingsdatum:","Completion date:") -> Completion date: | C31: ………………………………
A36: …………………..……………… | C36: ……....……… | E36: …………...………………………… | H36: ……....………
A37: =IF('Standing info'!$J$1=TRUE,"Goedkeuring: Vennoot","Approval: Partner") -> Approval: Partner | C37: =IF('Standing info'!$J$1=TRUE,"Datum","Date") -> Date | E37: =IF('Standing info'!$J$1=TRUE,"Goedkeuring: Bestuurder","Approval: Manager") -> Approval: Manager | H37: =IF('Standing info'!$J$1=TRUE,"Datum","Date") -> Date
A40: =IF('Standing info'!$J$1=TRUE,"OPMERKINGS","COMMENTS") -> COMMENTS

Sheet Cover page
A19: =UPPER(IF('Standing info'!H23=TRUE,IF('Standing info'!J1=FALSE,'Standing info'!D24,'Standing info'!D24),IF('Standing info'!J1=FALSE,'Standing info'!D7,'Standing info'!D7))) -> 
A22: =IF('Standing info'!C4=0,"",UPPER('Standing info'!C4)) -> 
A23: =IF('Standing info'!C5=0,"","( "&UPPER('Standing info'!H5&" / "&'Standing info'!H6&" / "&'Standing info'!H7&" / "&'Standing info'!H8&'Standing info'!H9)&" )") -> 
A24: =IF('Standing info'!J1=FALSE,"TAX CALCULATION","BELASTINGBEREKENING") -> TAX CALCULATION
A26: =UPPER(IF('Standing info'!H23=TRUE,IF('Standing info'!J1=FALSE,"FOR THE PERIOD ENDED "&'Standing info'!D24,"VIR DIE PERIODE GEËINDIG "&'Standing info'!D24),IF('Standing info'!J1=FALSE,"FOR THE YEAR ENDED "&'Standing info'!D7,"VIR DIE JAAR GEËINDIG "&'Standing info'!D7))) -> FOR THE YEAR ENDED

Sheet Contents
L1: =MAX(G21:G26) -> 0 | V1: Y | BA1: FALSE
V2: N
B6: ='Standing info'!M10 -> 2026-04-07T21:27:38.880
B8: =IF('Standing info'!C4<>0,'Standing info'!C4,"") -> 
B9: =IF('Standing info'!C11<>0,'Standing info'!C11,"") -> 
B10: =IF('Standing info'!C12<>0,'Standing info'!C12,"") -> 
B11: =IF('Standing info'!C13<>0,'Standing info'!C13,"") -> 
B12: =IF('Standing info'!C14<>0,'Standing info'!C14,"") -> 
B14: =IF('Standing info'!J1=TRUE,""&'Standing info'!C16&",",""&'Standing info'!C16&",") -> ,
B16: ='Cover page'!A24&" - " -> TAX CALCULATION -
B17: ='Cover page'!A22&":" -> :
B18: ='Cover page'!A26 -> FOR THE YEAR ENDED | H18: =IF('Standing info'!$J$1=TRUE,"Skedule","Schedule") -> Schedule
B20: =IF('Standing info'!$J$1=TRUE,"Die volgende inligting word ingesluit:","The following information is included:") -> The following information is included:
K21: 1
A22: Y | B22: =IF('Standing info'!$J$1=TRUE,"Berekening van belasbare inkomste","Calculation of taxable income") -> Calculation of taxable income | H22: =IF(M22=2,"A",IF(M22=3,"B",IF(M22=4,"C",IF(M22=5,"D",IF(M22=6,"E",""))))) -> A | K22: =IF(A22="Y",1,0) -> 1 | M22: =IF(A22="Y",SUM($K$21:K22),"") -> 2
A23: Y | B23: =IF('Standing info'!$J$1=TRUE,"Belastingberekening","Tax calculation") -> Tax calculation | H23: =IF(M23=2,"A",IF(M23=3,"B",IF(M23=4,"C",IF(M23=5,"D",IF(M23=6,"E",""))))) -> B | K23: =IF(A23="Y",1,0) -> 1 | M23: =IF(A23="Y",SUM($K$21:K23),"") -> 3
A24: Y | B24: =IF('Standing info'!$J$1=TRUE,"Skedules","Schedules") -> Schedules | H24: C | K24: =IF(A24="Y",1,0) -> 1 | M24: =IF(A24="Y",SUM($K$21:K24),"") -> 4
A25: Y | B25: =IF('Standing info'!$J$1=TRUE,"Staat van bates en laste","Statement of assets and liabilities") -> Statement of assets and liabilities | H25: D | K25: =IF(A25="Y",1,0) -> 1 | M25: =IF(A25="Y",SUM($K$21:K25),"") -> 5
A26: Y | B26: =IF('Standing info'!$J$1=TRUE,"Staat van bates en laste - Skedules","Statement of assets and liabilities - Schedules") -> Statement of assets and liabilities - Schedules | H26: E | K26: 1 | M26: =IF(A26="Y",SUM($K$21:K26),"") -> 6
B27: =IF('Standing info'!J1=TRUE,"VERSLAG VAN DIE REKENMEESTERS","REPORT OF THE ACCOUNTANTS") -> REPORT OF THE ACCOUNTANTS
B28: =LOWER(IF('Standing info'!J1=TRUE,"AAN","TO")) -> to
B29: =IF('Standing info'!C4<>0,'Standing info'!C4,"") -> 
B31: =IF('Standing info'!$J$1=TRUE,"Op grond van inligting en verduidelikings wat deur "&'Standing info'!C4&" verskaf is, het ons die belastingberekening van "&'Standing info'!C4&" vir die "&IF('Standing info'!H23=FALSE,"jaar","periode")&" geëindig "&'Cover page'!A19&" opgestel. Bogenoemde inligting wat gebruik is vir die berekening is nie deur ons geoudit nie.","On the basis of information and explanations provided by "&'Standing info'!C4&", we have prepared the tax calculation of "&'Standing info'!C4&" for the "&IF('Standing info'!H23=FALSE,"year","period")&" ended "&'Cover page'!A19&". We have not audited the above-mentioned information that was used to prepare the calculation.") -> On the basis of information and explanations provided by , we have prepared the tax calculation of for the year ended . We have not audited the above-mentioned information that was used to prepare the calculation.
B33: _________________________
B34: =IF('Standing info'!C18<>0,'Standing info'!C18,"") -> 
B35: =IF('Standing info'!C19<>0,'Standing info'!C19,"") -> 
B38: =IF('Standing info'!$J$1=TRUE,"Goedkeuring:","Approval:") -> Approval:
B40: =IF('Standing info'!$J$1=TRUE,"Die meegaande belastingberekening, soos uiteengesit op "&'Standing info'!$N$26&" , is op ____________________deur my goedgekeur vir indiening by die Suid Afrikaanse Inkomstediens vir inkomstebelasting doeleindes.","The attached tax calculation, as set out on "&'Standing info'!$N$27&" , is approved by myself for submission to the South African Revenue Services for tax purposes on ____________________ ") -> The attached tax calculation, as set out on schedule A to D , is approved by myself for submission to the South African Revenue Services for tax purposes on ____________________
B41: _________________________
B42: =IF('Standing info'!C4<>0,'Standing info'!C4,"") ->  | G42: ='Standing info'!D27 -> Core Taxcalc 2024_2025_2026_2027 v1

Sheet Calculation of taxable income
A1: ='Cover page'!A22 ->  | D1: PREVIOUS | E1: CURRENT | F1: WP | I1: ='Standing info'!I1 -> FALSE | K1: =IF('Tax tables & variables'!I54=1,IF('Standing info'!$J$1=TRUE,"Uittredingfunderingsdiens Inkomste","Retirement Funding Income"),IF('Standing info'!$J$1=TRUE,"Besoldiging","Remuneration")) -> Remuneration | Q1: Yes | X1: FALSE
A2: ='Cover page'!A24&" "&'Cover page'!A26:I26 -> TAX CALCULATION FOR THE YEAR ENDED | D2: YEAR | E2: YEAR | F2: Ref | K2: =IF('Tax tables & variables'!I54=1,IF('Standing info'!$J$1=TRUE,"Nie-Uittredingfunderingsdiens Inkomste","Non-Retirement Funding Income"),IF('Standing info'!$J$1=TRUE,"Ander Inkomste","Other Income")) -> Other Income | Q2: No | X2: FALSE
A3: =UPPER(IF('Standing info'!$J$1=TRUE,"Berekening van belasbare inkomste","Calculation of taxable income")) -> CALCULATION OF TAXABLE INCOME | K3: =IF('Standing info'!$J$1=TRUE,"Belastingvrye Inkomste","Non-Taxable Income") -> Non-Taxable Income
C6: =IF('Standing info'!$J$1=TRUE,"Skedule","Schedule") -> Schedule | D6: R | E6: R | H6: =IF('Standing info'!$J$1=TRUE,"Tipe inkomste","Type of Income") -> Type of Income
A8: =IF('Standing info'!$J$1=TRUE,"Inkomste","Income") -> Income
I10: =IF('Tax tables & variables'!$I$54=1,IF(H10="Uittredingfunderingsdiens Inkomste",1,IF(H10="Retirement Funding Income",1,IF(H10="Belastingvrye Inkomste",2,IF(H10="Non-Taxable Income",2,0)))),IF(H10="Besoldiging",1,IF(H10="Remuneration",1,IF(H10="Belastingvrye Inkomste",2,IF(H10="Non-Taxable Income",2,0))))) -> 0 | J10: =IF(E10+D10=0,"y","n") -> y
I11: =IF('Tax tables & variables'!$I$54=1,IF(H11="Uittredingfunderingsdiens Inkomste",1,IF(H11="Retirement Funding Income",1,IF(H11="Belastingvrye Inkomste",2,IF(H11="Non-Taxable Income",2,0)))),IF(H11="Besoldiging",1,IF(H11="Remuneration",1,IF(H11="Belastingvrye Inkomste",2,IF(H11="Non-Taxable Income",2,0))))) -> 0 | J11: y
F12: A2 | I12: =IF('Tax tables & variables'!$I$54=1,IF(H12="Uittredingfunderingsdiens Inkomste",1,IF(H12="Retirement Funding Income",1,IF(H12="Belastingvrye Inkomste",2,IF(H12="Non-Taxable Income",2,0)))),IF(H12="Besoldiging",1,IF(H12="Remuneration",1,IF(H12="Belastingvrye Inkomste",2,IF(H12="Non-Taxable Income",2,0))))) -> 0 | J12: y
I13: =IF('Tax tables & variables'!$I$54=1,IF(H13="Uittredingfunderingsdiens Inkomste",1,IF(H13="Retirement Funding Income",1,IF(H13="Belastingvrye Inkomste",2,IF(H13="Non-Taxable Income",2,0)))),IF(H13="Besoldiging",1,IF(H13="Remuneration",1,IF(H13="Belastingvrye Inkomste",2,IF(H13="Non-Taxable Income",2,0))))) -> 0 | J13: y
I14: =IF('Tax tables & variables'!$I$54=1,IF(H14="Uittredingfunderingsdiens Inkomste",1,IF(H14="Retirement Funding Income",1,IF(H14="Belastingvrye Inkomste",2,IF(H14="Non-Taxable Income",2,0)))),IF(H14="Besoldiging",1,IF(H14="Remuneration",1,IF(H14="Belastingvrye Inkomste",2,IF(H14="Non-Taxable Income",2,0))))) -> 0 | J14: y
I15: =IF('Tax tables & variables'!$I$54=1,IF(H15="Uittredingfunderingsdiens Inkomste",1,IF(H15="Retirement Funding Income",1,IF(H15="Belastingvrye Inkomste",2,IF(H15="Non-Taxable Income",2,0)))),IF(H15="Besoldiging",1,IF(H15="Remuneration",1,IF(H15="Belastingvrye Inkomste",2,IF(H15="Non-Taxable Income",2,0))))) -> 0 | J15: y
I16: =IF('Tax tables & variables'!$I$54=1,IF(H16="Uittredingfunderingsdiens Inkomste",1,IF(H16="Retirement Funding Income",1,IF(H16="Belastingvrye Inkomste",2,IF(H16="Non-Taxable Income",2,0)))),IF(H16="Besoldiging",1,IF(H16="Remuneration",1,IF(H16="Belastingvrye Inkomste",2,IF(H16="Non-Taxable Income",2,0))))) -> 0 | J16: y
I17: =IF('Tax tables & variables'!$I$54=1,IF(H17="Uittredingfunderingsdiens Inkomste",1,IF(H17="Retirement Funding Income",1,IF(H17="Belastingvrye Inkomste",2,IF(H17="Non-Taxable Income",2,0)))),IF(H17="Besoldiging",1,IF(H17="Remuneration",1,IF(H17="Belastingvrye Inkomste",2,IF(H17="Non-Taxable Income",2,0))))) -> 0 | J17: y
I18: =IF('Tax tables & variables'!$I$54=1,IF(H18="Uittredingfunderingsdiens Inkomste",1,IF(H18="Retirement Funding Income",1,IF(H18="Belastingvrye Inkomste",2,IF(H18="Non-Taxable Income",2,0)))),IF(H18="Besoldiging",1,IF(H18="Remuneration",1,IF(H18="Belastingvrye Inkomste",2,IF(H18="Non-Taxable Income",2,0))))) -> 0 | J18: y
I19: =IF('Tax tables & variables'!$I$54=1,IF(H19="Uittredingfunderingsdiens Inkomste",1,IF(H19="Retirement Funding Income",1,IF(H19="Belastingvrye Inkomste",2,IF(H19="Non-Taxable Income",2,0)))),IF(H19="Besoldiging",1,IF(H19="Remuneration",1,IF(H19="Belastingvrye Inkomste",2,IF(H19="Non-Taxable Income",2,0))))) -> 0 | J19: =IF(E19+D19=0,"y","n") -> y
C20: =IF(A20<>0,SUM($K$20:K20),"") ->  | E20: =Schedules!J8 -> 0 | G20: =IF('Standing info'!$J$1=TRUE,"Skedule","Schedule") -> Schedule | I20: =IF('Tax tables & variables'!$I$54=1,IF(H20="Uittredingfunderingsdiens Inkomste",1,IF(H20="Retirement Funding Income",1,IF(H20="Belastingvrye Inkomste",2,IF(H20="Non-Taxable Income",2,0)))),IF(H20="Besoldiging",1,IF(H20="Remuneration",1,IF(H20="Belastingvrye Inkomste",2,IF(H20="Non-Taxable Income",2,0))))) -> 0 | J20: y | K20: =IF(A20<>0,1,0) -> 0
C21: =IF(A21<>0,SUM($K$20:K21),"") ->  | E21: =Schedules!J36 -> 0 | G21: =IF('Standing info'!$J$1=TRUE,"Skedule","Schedule") -> Schedule | I21: =IF('Tax tables & variables'!$I$54=1,IF(H21="Uittredingfunderingsdiens Inkomste",1,IF(H21="Retirement Funding Income",1,IF(H21="Belastingvrye Inkomste",2,IF(H21="Non-Taxable Income",2,0)))),IF(H21="Besoldiging",1,IF(H21="Remuneration",1,IF(H21="Belastingvrye Inkomste",2,IF(H21="Non-Taxable Income",2,0))))) -> 0 | J21: y | K21: =IF(A21<>0,1,0) -> 0
C22: =IF(A22<>0,SUM($K$20:K22),"") ->  | E22: =Schedules!J64 -> 0 | G22: =IF('Standing info'!$J$1=TRUE,"Skedule","Schedule") -> Schedule | I22: =IF('Tax tables & variables'!$I$54=1,IF(H22="Uittredingfunderingsdiens Inkomste",1,IF(H22="Retirement Funding Income",1,IF(H22="Belastingvrye Inkomste",2,IF(H22="Non-Taxable Income",2,0)))),IF(H22="Besoldiging",1,IF(H22="Remuneration",1,IF(H22="Belastingvrye Inkomste",2,IF(H22="Non-Taxable Income",2,0))))) -> 0 | J22: y | K22: =IF(A22<>0,1,0) -> 0
C23: =IF(A23<>0,SUM($K$20:K23),"") ->  | E23: =Schedules!J82 -> 0 | G23: =IF('Standing info'!$J$1=TRUE,"Skedule","Schedule") -> Schedule | I23: =IF('Tax tables & variables'!$I$54=1,IF(H23="Uittredingfunderingsdiens Inkomste",1,IF(H23="Retirement Funding Income",1,IF(H23="Belastingvrye Inkomste",2,IF(H23="Non-Taxable Income",2,0)))),IF(H23="Besoldiging",1,IF(H23="Remuneration",1,IF(H23="Belastingvrye Inkomste",2,IF(H23="Non-Taxable Income",2,0))))) -> 0 | J23: y | K23: =IF(A23<>0,1,0) -> 0
C24: =IF(A24<>0,SUM($K$20:K24),"") ->  | E24: =Schedules!J100 -> 0 | G24: =IF('Standing info'!$J$1=TRUE,"Skedule","Schedule") -> Schedule | I24: =IF('Tax tables & variables'!$I$54=1,IF(H24="Uittredingfunderingsdiens Inkomste",1,IF(H24="Retirement Funding Income",1,IF(H24="Belastingvrye Inkomste",2,IF(H24="Non-Taxable Income",2,0)))),IF(H24="Besoldiging",1,IF(H24="Remuneration",1,IF(H24="Belastingvrye Inkomste",2,IF(H24="Non-Taxable Income",2,0))))) -> 0 | J24: y | K24: =IF(A24<>0,1,0) -> 0
D25: =SUM(D27:D36) -> 0 | E25: =SUM(E27:E36) -> 0 | I25: =IF('Tax tables & variables'!$I$54=1,IF(H25="Uittredingfunderingsdiens Inkomste",1,IF(H25="Retirement Funding Income",1,IF(H25="Belastingvrye Inkomste",2,IF(H25="Non-Taxable Income",2,0)))),IF(H25="Besoldiging",1,IF(H25="Remuneration",1,IF(H25="Belastingvrye Inkomste",2,IF(H25="Non-Taxable Income",2,0))))) -> 0 | J25: y
J26: =J25 -> y
J27: =IF(E27+D27=0,"y","n") -> y
J28: y
J29: y
J30: y
J31: y
J32: y
J33: y
J34: y
J35: y
J36: y
J37: =J25 -> y
D38: =SUM(D40:D49) -> 0 | E38: =SUM(E40:E49) -> 0 | I38: =IF('Tax tables & variables'!$I$54=1,IF(H38="Uittredingfunderingsdiens Inkomste",1,IF(H38="Retirement Funding Income",1,IF(H38="Belastingvrye Inkomste",2,IF(H38="Non-Taxable Income",2,0)))),IF(H38="Besoldiging",1,IF(H38="Remuneration",1,IF(H38="Belastingvrye Inkomste",2,IF(H38="Non-Taxable Income",2,0))))) -> 0 | J38: =IF(E38+D38=0,"y","n") -> y
J39: =J38 -> y
J40: =IF(E40+D40=0,"y","n") -> y
J41: y
J42: y
J43: y
J44: y
J45: y
J46: y
J47: y
J48: y
J49: y
J50: =J38 -> y
A51: =IF('Tax tables & variables'!I1<2016,IF('Standing info'!$J$1=TRUE,"Moet nie gebruik! - Belastingvrye beleggings (a12T) eers van toepassing vanaf 1 Maart 2015","Do not use! - Tax free investments (s12T) only applicable from 1 March 2015"),IF('Standing info'!$J$1=TRUE,"Inkomste ontvang op Belastingvrye beleggings itv a12T","Income received on Tax free investments ito s12T")) -> Do not use! - Tax free investments (s12T) only applicable from 1 March 2015 | D51: =SUM(D53:D62) -> 0 | E51: =SUM(E53:E62) -> 0 | I51: =IF('Tax tables & variables'!$I$54=1,IF(H51="Uittredingfunderingsdiens Inkomste",1,IF(H51="Retirement Funding Income",1,IF(H51="Belastingvrye Inkomste",2,IF(H51="Non-Taxable Income",2,0)))),IF(H51="Besoldiging",1,IF(H51="Remuneration",1,IF(H51="Belastingvrye Inkomste",2,IF(H51="Non-Taxable Income",2,0))))) -> 0 | J51: =IF(E51+D51=0,"y","n") -> y
J52: =J51 -> y
J53: =IF(E53+D53=0,"y","n") -> y
J54: y
J55: y
J56: y
J57: y
J58: y
J59: y
J60: y
J61: y
J62: y
J63: =J51 -> y
A64: =IF('Standing info'!$J$1=TRUE,"Rente ontvang - Buiteland","Interest received - Foreign country") -> Interest received - Foreign country | D64: =SUM(D66:D75) -> 0 | E64: =SUM(E66:E75) -> 0 | I64: =IF('Tax tables & variables'!$I$54=1,IF(H64="Uittredingfunderingsdiens Inkomste",1,IF(H64="Retirement Funding Income",1,IF(H64="Belastingvrye Inkomste",2,IF(H64="Non-Taxable Income",2,0)))),IF(H64="Besoldiging",1,IF(H64="Remuneration",1,IF(H64="Belastingvrye Inkomste",2,IF(H64="Non-Taxable Income",2,0))))) -> 0 | J64: =IF(E64+D64=0,"y","n") -> y
J65: =J64 -> y
J66: =IF(E66+D66=0,"y","n") -> y
J67: y
J68: y
J69: y
J70: y
J71: y
J72: y
J73: y
J74: y
J75: y
J76: =J64 -> y
A77: =IF('Standing info'!$J$1=TRUE,"Dividende ontvang - Buiteland","Dividends received - Foreign country") -> Dividends received - Foreign country | D77: =SUM(D79:D88) -> 0 | E77: =SUM(E79:E88) -> 0 | I77: =IF('Tax tables & variables'!$I$54=1,IF(H77="Uittredingfunderingsdiens Inkomste",1,IF(H77="Retirement Funding Income",1,IF(H77="Belastingvrye Inkomste",2,IF(H77="Non-Taxable Income",2,0)))),IF(H77="Besoldiging",1,IF(H77="Remuneration",1,IF(H77="Belastingvrye Inkomste",2,IF(H77="Non-Taxable Income",2,0))))) -> 0 | J77: =IF(E77+D77=0,"y","n") -> y
J78: =J77 -> y
J79: =IF(E79+D79=0,"y","n") -> y
J80: y
J81: y
J82: y
J83: y
J84: y
J85: y
J86: y
J87: y
J88: y
J89: =J77 -> y
A90: =IF('Standing info'!$J$1=TRUE,"Rente ontvang - RSA","Interest received - RSA") -> Interest received - RSA | D90: =SUM(D92:D106) -> 0 | E90: =SUM(E92:E106) -> 0 | I90: =IF('Tax tables & variables'!$I$54=1,IF(H90="Uittredingfunderingsdiens Inkomste",1,IF(H90="Retirement Funding Income",1,IF(H90="Belastingvrye Inkomste",2,IF(H90="Non-Taxable Income",2,0)))),IF(H90="Besoldiging",1,IF(H90="Remuneration",1,IF(H90="Belastingvrye Inkomste",2,IF(H90="Non-Taxable Income",2,0))))) -> 0 | J90: =IF(E90+D90=0,"y","n") -> y
J91: =J90 -> y
J92: =IF(E92+D92=0,"y","n") -> y
J93: y
J94: y
J95: y
J96: y
J97: y
J98: y
J99: y
J100: y
J101: y
J102: y
J103: y
J104: y
J105: y
J106: y
J107: =J90 -> y
A108: =IF('Standing info'!$J$1=TRUE,"Dividende ontvang - RSA","Dividends received - RSA") -> Dividends received - RSA | D108: =SUM(D110:D124) -> 0 | E108: =SUM(E110:E124) -> 0 | I108: =IF('Tax tables & variables'!$I$54=1,IF(H108="Uittredingfunderingsdiens Inkomste",1,IF(H108="Retirement Funding Income",1,IF(H108="Belastingvrye Inkomste",2,IF(H108="Non-Taxable Income",2,0)))),IF(H108="Besoldiging",1,IF(H108="Remuneration",1,IF(H108="Belastingvrye Inkomste",2,IF(H108="Non-Taxable Income",2,0))))) -> 0 | J108: =IF(E108+D108=0,"y","n") -> y
J109: =J108 -> y
J110: =IF(E110+D110=0,"y","n") -> y
J111: y
J112: y
J113: y
J114: y
J115: y
J116: y
J117: y
J118: y
J119: y
J120: y
J121: y
J122: y
J123: y
J124: y
J125: =J108 -> y
A126: =IF('Standing info'!$J$1=TRUE,"Byvoordele ontvang","Fringe benefits received") -> Fringe benefits received | D126: =SUM(D128:D138) -> 0 | E126: =SUM(E128:E138) -> 0 | J126: =IF(E126+D126=0,"y","n") -> y
J127: =J126 -> y
B128: =IF('Standing info'!$J$1=TRUE,"Gebruik van motorvoertuig 1","Use of motor vehicle 1") -> Use of motor vehicle 1 | C128: =IF(E128<>0,SUM($K$20:K128),"") ->  | E128: =Schedules!J150 -> 0 | G128: =IF('Standing info'!$J$1=TRUE,"Skedule","Schedule") -> Schedule | I128: =IF('Tax tables & variables'!$I$54=1,IF(H128="Uittredingfunderingsdiens Inkomste",1,IF(H128="Retirement Funding Income",1,IF(H128="Belastingvrye Inkomste",2,IF(H128="Non-Taxable Income",2,0)))),IF(H128="Besoldiging",1,IF(H128="Remuneration",1,IF(H128="Belastingvrye Inkomste",2,IF(H128="Non-Taxable Income",2,0))))) -> 0 | J128: =IF(E128+D128=0,"y","n") -> y | K128: =IF(E128<>0,1,0) -> 0
B129: =IF('Standing info'!$J$1=TRUE,"Gebruik van motorvoertuig 2","Use of motor vehicle 2") -> Use of motor vehicle 2 | C129: =IF(E129<>0,SUM($K$20:K129),"") ->  | E129: =Schedules!J185 -> 0 | G129: =IF('Standing info'!$J$1=TRUE,"Skedule","Schedule") -> Schedule | I129: =IF('Tax tables & variables'!$I$54=1,IF(H129="Uittredingfunderingsdiens Inkomste",1,IF(H129="Retirement Funding Income",1,IF(H129="Belastingvrye Inkomste",2,IF(H129="Non-Taxable Income",2,0)))),IF(H129="Besoldiging",1,IF(H129="Remuneration",1,IF(H129="Belastingvrye Inkomste",2,IF(H129="Non-Taxable Income",2,0))))) -> 0 | J129: y | K129: 0
B130: =IF('Standing info'!$J$1=TRUE,"Huisvesting","Residential accommodation") -> Residential accommodation | C130: =IF(E130<>0,SUM($K$20:K130),"") ->  | E130: =Schedules!J202 -> 0 | G130: =IF('Standing info'!$J$1=TRUE,"Skedule","Schedule") -> Schedule | I130: =IF('Tax tables & variables'!$I$54=1,IF(H130="Uittredingfunderingsdiens Inkomste",1,IF(H130="Retirement Funding Income",1,IF(H130="Belastingvrye Inkomste",2,IF(H130="Non-Taxable Income",2,0)))),IF(H130="Besoldiging",1,IF(H130="Remuneration",1,IF(H130="Belastingvrye Inkomste",2,IF(H130="Non-Taxable Income",2,0))))) -> 0 | J130: y | K130: 0
B131: =IF('Standing info'!$J$1=TRUE,"Behuisings- en ander lenings","Housing- and other loans") -> Housing- and other loans | C131: =IF(E131<>0,SUM($K$20:K131),"") ->  | E131: =Schedules!J213 -> 0 | G131: =IF('Standing info'!$J$1=TRUE,"Skedule","Schedule") -> Schedule | I131: =IF('Tax tables & variables'!$I$54=1,IF(H131="Uittredingfunderingsdiens Inkomste",1,IF(H131="Retirement Funding Income",1,IF(H131="Belastingvrye Inkomste",2,IF(H131="Non-Taxable Income",2,0)))),IF(H131="Besoldiging",1,IF(H131="Remuneration",1,IF(H131="Belastingvrye Inkomste",2,IF(H131="Non-Taxable Income",2,0))))) -> 0 | J131: y | K131: 0
B132: =IF('Standing info'!$J$1=TRUE,"Mediese fondsbydraes","Medical fund contributions") -> Medical fund contributions | C132: =IF(E132<>0,SUM($K$20:K132),"") ->  | E132: =Schedules!J236 -> 0 | G132: =IF('Standing info'!$J$1=TRUE,"Skedule","Schedule") -> Schedule | I132: =IF('Tax tables & variables'!$I$54=1,IF(H132="Uittredingfunderingsdiens Inkomste",1,IF(H132="Retirement Funding Income",1,IF(H132="Belastingvrye Inkomste",2,IF(H132="Non-Taxable Income",2,0)))),IF(H132="Besoldiging",1,IF(H132="Remuneration",1,IF(H132="Belastingvrye Inkomste",2,IF(H132="Non-Taxable Income",2,0))))) -> 0 | J132: y | K132: 0
B133: =IF('Tax tables & variables'!I54=1,IF('Standing info'!$J$1=TRUE,"Nie van toepassing op die jaar nie","Not applicable for this year"),IF('Standing info'!$J$1=TRUE,"Pensioensfonds- en Voorsorgfondsbydrae - Werkgewer","Pension and Provident Fund Contribution - Employer")) -> Pension and Provident Fund Contribution - Employer | C133: =IF(E133<>0,Schedules!A456,"") ->  | E133: =Schedules!H459+Schedules!H461 -> 0 | G133: =IF('Standing info'!$J$1=TRUE,"Skedule","Schedule") -> Schedule | H133: =IF('Tax tables & variables'!I54<>1,IF(E133<>0,K1,""),"") ->  | I133: =IF('Tax tables & variables'!$I$54=1,IF(H133="Uittredingfunderingsdiens Inkomste",1,IF(H133="Retirement Funding Income",1,IF(H133="Belastingvrye Inkomste",2,IF(H133="Non-Taxable Income",2,0)))),IF(H133="Besoldiging",1,IF(H133="Remuneration",1,IF(H133="Belastingvrye Inkomste",2,IF(H133="Non-Taxable Income",2,0))))) -> 0 | J133: y | K133: 0
C134: =IF(E134<>0,SUM($K$20:K134),"") ->  | E134: =Schedules!J243 -> 0 | G134: =IF('Standing info'!$J$1=TRUE,"Skedule","Schedule") -> Schedule | I134: =IF('Tax tables & variables'!$I$54=1,IF(H134="Uittredingfunderingsdiens Inkomste",1,IF(H134="Retirement Funding Income",1,IF(H134="Belastingvrye Inkomste",2,IF(H134="Non-Taxable Income",2,0)))),IF(H134="Besoldiging",1,IF(H134="Remuneration",1,IF(H134="Belastingvrye Inkomste",2,IF(H134="Non-Taxable Income",2,0))))) -> 0 | J134: y | K134: 0
C135: =IF(E135<>0,SUM($K$20:K135),"") ->  | E135: =Schedules!J250 -> 0 | G135: =IF('Standing info'!$J$1=TRUE,"Skedule","Schedule") -> Schedule | I135: =IF('Tax tables & variables'!$I$54=1,IF(H135="Uittredingfunderingsdiens Inkomste",1,IF(H135="Retirement Funding Income",1,IF(H135="Belastingvrye Inkomste",2,IF(H135="Non-Taxable Income",2,0)))),IF(H135="Besoldiging",1,IF(H135="Remuneration",1,IF(H135="Belastingvrye Inkomste",2,IF(H135="Non-Taxable Income",2,0))))) -> 0 | J135: y | K135: 0
I136: =IF('Tax tables & variables'!$I$54=1,IF(H136="Uittredingfunderingsdiens Inkomste",1,IF(H136="Retirement Funding Income",1,IF(H136="Belastingvrye Inkomste",2,IF(H136="Non-Taxable Income",2,0)))),IF(H136="Besoldiging",1,IF(H136="Remuneration",1,IF(H136="Belastingvrye Inkomste",2,IF(H136="Non-Taxable Income",2,0))))) -> 0 | J136: y | K136: 0
I137: =IF('Tax tables & variables'!$I$54=1,IF(H137="Uittredingfunderingsdiens Inkomste",1,IF(H137="Retirement Funding Income",1,IF(H137="Belastingvrye Inkomste",2,IF(H137="Non-Taxable Income",2,0)))),IF(H137="Besoldiging",1,IF(H137="Remuneration",1,IF(H137="Belastingvrye Inkomste",2,IF(H137="Non-Taxable Income",2,0))))) -> 0 | J137: y | K137: 0
I138: =IF('Tax tables & variables'!$I$54=1,IF(H138="Uittredingfunderingsdiens Inkomste",1,IF(H138="Retirement Funding Income",1,IF(H138="Belastingvrye Inkomste",2,IF(H138="Non-Taxable Income",2,0)))),IF(H138="Besoldiging",1,IF(H138="Remuneration",1,IF(H138="Belastingvrye Inkomste",2,IF(H138="Non-Taxable Income",2,0))))) -> 0 | J138: y | K138: 0
J139: =J126 -> y
A141: =IF('Standing info'!$J$1=TRUE,"Kapitaalwins - belasbare bedrag","Capital Gain - taxable amount") -> Capital Gain - taxable amount | C141: =IF(Schedules!J279<>0,SUM($K$20:K141),"") ->  | E141: =Schedules!J289 -> 0 | G141: =IF('Standing info'!$J$1=TRUE,"Skedule","Schedule") -> Schedule | J141: =IF(E141+D141=0,"y","n") -> y | K141: =IF(Schedules!J279<>0,1,0) -> 0
A143: =IF('Standing info'!$J$1=TRUE,"Totale Inkomste","Total Income") -> Total Income | D143: =SUM(D10:D24)+D25+D38+D51+D64+D77+D90+D108+D126+D141 -> 0 | E143: =SUM(E10:E24)+E25+E38+E51+E64+E77+E90+E108+E126+E141 -> 0
B144: =K1 -> Remuneration | D144: =SUMIF(H10:H138,1,D10:D141) -> 0 | E144: =SUMIF(I10:I138,1,E10:E141) -> 0
B145: =K2 -> Other Income | D145: =D143-D144-D147-D146 -> 0 | E145: =E143-E144-E147-E146 -> 0
B146: =IF('Standing info'!$J$1=TRUE,"Belastingvrye Inkomste","Non-Taxable Income") -> Non-Taxable Income | D146: =SUMIF(H10:H138,2,D10:D141) -> 0 | E146: =SUMIF(I10:I138,2,E10:E141) -> 0
B147: =IF('Standing info'!$J$1=TRUE,"Kapitaalwins","Capital Gain") -> Capital Gain | D147: =D141 -> 0 | E147: =E141 -> 0
A149: =IF('Standing info'!$J$1=TRUE,"Uitgawes / Aftrekkings","Expenses / Deductions") -> Expenses / Deductions
J151: =IF(E151+D151=0,"y","n") -> y
J152: y
J153: y
J154: y
J155: y
J156: y
J157: y
J158: y
J159: y
J160: y
C161: =IF(A161<>0,SUM($K$20:K161),"") ->  | E161: =Schedules!J292 -> 0 | G161: =IF('Standing info'!$J$1=TRUE,"Skedule","Schedule") -> Schedule | J161: y | K161: =IF(A161<>0,1,0) -> 0
C162: =IF(A162<>0,SUM($K$20:K162),"") ->  | E162: =Schedules!J314 -> 0 | G162: =IF('Standing info'!$J$1=TRUE,"Skedule","Schedule") -> Schedule | J162: y | K162: =IF(A162<>0,1,0) -> 0
C163: =IF(A163<>0,SUM($K$20:K163),"") ->  | E163: =Schedules!J332 -> 0 | G163: =IF('Standing info'!$J$1=TRUE,"Skedule","Schedule") -> Schedule | J163: y | K163: =IF(A163<>0,1,0) -> 0
C164: =IF(A164<>0,SUM($K$20:K164),"") ->  | E164: =Schedules!J350 -> 0 | G164: =IF('Standing info'!$J$1=TRUE,"Skedule","Schedule") -> Schedule | J164: y | K164: =IF(A164<>0,1,0) -> 0
C165: =IF(A165<>0,SUM($K$20:K165),"") ->  | E165: =Schedules!J368 -> 0 | G165: =IF('Standing info'!$J$1=TRUE,"Skedule","Schedule") -> Schedule | J165: y | K165: =IF(A165<>0,1,0) -> 0
D166: =-SUM(D168:D177) -> 0 | E166: =-SUM(E168:E177) -> 0 | J166: y
J167: =J166 -> y
J168: =IF(E168+D168=0,"y","n") -> y
J169: y
J170: y
J171: y
J172: y
J173: y
J174: y
J175: y
J176: y
J177: y
J178: =J166 -> y
D179: =-SUM(D181:D190) -> 0 | E179: =-SUM(E181:E190) -> 0 | J179: =IF(E179+D179=0,"y","n") -> y
J180: =J179 -> y
J181: =IF(E181+D181=0,"y","n") -> y
J182: y
J183: y
J184: y
J185: y
J186: y
J187: y
J188: y
J189: y
J190: y
J191: =J179 -> y
D192: =-SUM(D194:D203) -> 0 | E192: =-SUM(E194:E203) -> 0 | J192: =IF(E192+D192=0,"y","n") -> y
J193: =J192 -> y
J194: =IF(E194+D194=0,"y","n") -> y
J195: y
J196: y
J197: y
J198: y
J199: y
J200: y
J201: y
J202: y
J203: y
J204: =J192 -> y
D205: =-SUM(D207:D216) -> 0 | E205: =-SUM(E207:E216) -> 0 | J205: =IF(E205+D205=0,"y","n") -> y
J206: =J205 -> y
J207: =IF(E207+D207=0,"y","n") -> y
J208: y
... 48 more rows

Sheet Tax calculation
A1: ='Cover page'!A22 ->  | J1: WP | X1: FALSE
A2: ='Cover page'!A24&" "&'Cover page'!A26:I26 -> TAX CALCULATION FOR THE YEAR ENDED | J2: Ref
A3: =UPPER(IF('Standing info'!$J$1=TRUE,"Berekening van belasting betaalbaar","Calculation of tax payable")) -> CALCULATION OF TAX PAYABLE
I6: R
A8: =IF('Standing info'!$J$1=TRUE,"Belasting betaalbaar:","Tax payable:") -> Tax payable:
A10: ='Calculation of taxable income'!A258 -> Taxable income | I10: ='Calculation of taxable income'!E258 -> 0
K12: =IF($I$10<=0,"y","n") -> y
A13: =IF('Standing info'!$J$1=TRUE,"Basiese belasting op ","Base tax on ") -> Base tax on | B13: =IF(I10>0,'Tax tables & variables'!I3,0) -> 0 | I13: =IF(I10>0,'Tax tables & variables'!I2,0) -> 0 | K13: =IF($I$10<=0,"y",IF(I13=0,"y","n")) -> y
A14: =IF(I13<>0,"Plus:","") ->  | B14: =IF(I10>0,(I10-B13),0) -> 0 | C14: x | D14: =IF(I10>0,'Tax tables & variables'!I4,0) -> 0 | I14: =IF(I10>0,B14*D14,0) -> 0 | K14: =IF($I$10<=0,"y",IF(I14=0,"y","n")) -> y
K15: =IF($I$10<=0,"y","n") -> y
A16: =IF('Standing info'!$J$1=TRUE,"Belasting","Tax") -> Tax | I16: =SUM(I13:I14) -> 0 | K16: =IF($I$10<=0,"y","n") -> y
K17: =K36 -> y
A18: =IF('Standing info'!$J$1=TRUE,"Min: Primêre korting","Less: Primary rebate") -> Less: Primary rebate | I18: =IF(I10>0,IF('Standing info'!$D$26=0,-'Tax tables & variables'!$I$5,-'Tax tables & variables'!$I$5*'Standing info'!$D$26/'Tax tables & variables'!$I$56),0) -> 0 | K18: =IF($I$10<=0,"y","n") -> y
A19: =IF('Standing info'!$J$1=TRUE,"Min: Sekondêre korting (ouer as 65)","Less: Secondary rebate (older than 65)") -> Less: Secondary rebate (older than 65) | I19: =IF(I10>0,-IF('Standing info'!$C$21>=65,IF('Standing info'!$D$26=0,'Tax tables & variables'!$I$6,'Tax tables & variables'!$I$6*'Standing info'!$D$26/'Tax tables & variables'!$I$56),0),0) -> 0 | K19: =IF($I$19>=0,"y","n") -> y
A20: =IF('Standing info'!$J$1=TRUE,"Min: Tersiêre korting (ouer as 75)","Less: Tertiary rebate (older than 75)") -> Less: Tertiary rebate (older than 75) | I20: =IF(I10>0,-IF('Standing info'!$C$21>=75,IF('Standing info'!$D$26=0,'Tax tables & variables'!$I$7,'Tax tables & variables'!$I$7*'Standing info'!$D$26/'Tax tables & variables'!$I$56),0),0) -> 0 | K20: =IF($I$20>=0,"y","n") -> y
A21: =IF('Standing info'!$J$1=TRUE,"Min: Buitelandse Belastingkrediete:","Less: Foreign Tax Credits:") -> Less: Foreign Tax Credits: | I21: =-SUM(I22:I30) -> 0 | K21: =IF(I21=0,"y","n") -> y
K22: =K21 -> y
B23: =IF('Standing info'!$J$1=TRUE,"Terughoubelasting op buitelandse rente","Withholding tax on foreign interest") -> Withholding tax on foreign interest | K23: =IF(I23=0,"y","n") -> y
B24: =IF('Standing info'!$J$1=TRUE,"Terughoubelasting op buitelandse dividende","Withholding tax on foreign dividends") -> Withholding tax on foreign dividends | K24: y
B25: =IF('Standing info'!$J$1=TRUE,"Belastingkrediete op ander buitelandse inkomste","Tax credits on other foreign income") -> Tax credits on other foreign income | K25: =K26 -> y
B26: =IF('Standing info'!$J$1=TRUE,"soos per Artikel 6quat berekeninge","as per Section 6quat calculations") -> as per Section 6quat calculations | K26: =IF(I26=0,"y","n") -> y
K27: y
K28: y
K29: y
K30: =K21 -> y
A31: =IF('Standing info'!$J$1=TRUE,"Min: Mediese Fonds Bydrae Belastingkrediet","Less: Medical Scheme Fee Tax Credit") -> Less: Medical Scheme Fee Tax Credit | I31: =IF('Tax tables & variables'!I88="JA",-'Tax tables & variables'!I84,IF('Tax tables & variables'!I89>=65,0,-'Tax tables & variables'!I84)) -> 0 | K31: =IF($I$31>=0,"y","n") -> y
A32: =IF('Standing info'!$J$1=TRUE,"Min: Kwalifiserende Mediese Koste Belastingkrediet","Less: Qualifying Medical Cost Tax Credit") -> Less: Qualifying Medical Cost Tax Credit | I32: =IF('Standing info'!C21>=65,Schedules!J601*0.333,IF('Standing info'!C21<65,IF('Standing info'!H27=TRUE,Schedules!J603*0.333,Schedules!J599*0.25))) -> 0 | K32: =IF($I$32>=0,"y","n") -> y
A34: =IF('Standing info'!$J$1=TRUE,"Belasting betaalbaar","Tax payable") -> Tax payable | I34: =IF((SUM(I16:I21)+I31+I32)<0,0,(SUM(I16:I21)+I31+I32)) -> 0
A36: =IF('Standing info'!$J$1=TRUE,"Belasting op enkelbedrae - sien berekening hieronder","Tax on lump sums - see calculation below") -> Tax on lump sums - see calculation below | K36: =IF($I$36<=0,"y","n") -> y
K37: =K36 -> y
A38: =IF('Standing info'!$J$1=TRUE,"Bedrae reeds betaal:","Amounts paid:") -> Amounts paid: | K38: =IF((I40+I48)<>0,"n","y") -> y
K39: =K38 -> y
A40: =IF('Standing info'!$J$1=TRUE,"Voorlopige betalings:","Provisional payments:") -> Provisional payments: | I40: =-SUM(I42:I45) -> 0 | K40: =IF(I40=0,"y","n") -> y
K41: =K40 -> y
B42: =IF('Standing info'!$J$1=TRUE,"Eerste voorlopige betaling:","First provisional payment:") -> First provisional payment: | K42: =IF(I42=0,"y","n") -> y
B43: =IF('Standing info'!$J$1=TRUE,"Tweede voorlopige betaling:","Second provisional payment:") -> Second provisional payment: | K43: y
B44: =IF('Standing info'!$J$1=TRUE,"Derde voorlopige betaling:","Third provisional payment:") -> Third provisional payment: | K44: y
B45: =IF('Standing info'!$J$1=TRUE,"Ander betalings:","Other payments:") -> Other payments: | K45: y
K46: =K40 -> y
K47: y
A48: =IF('Standing info'!$J$1=TRUE,"LBS & SIBW Betaal:","PAYE & SITE Paid:") -> PAYE & SITE Paid: | I48: =-SUM(I50:I66) -> 0 | K48: y
K49: =K48 -> y
K50: y
K51: y
K52: y
K53: y
K54: y
K55: y
K56: y
K57: y
K58: y
K59: y
K60: y
K61: y
K62: y
K63: y
K64: y
K65: y
K66: y
K67: =K48 -> y
A69: =IF(I69>=0,IF('Standing info'!$J$1=TRUE,"Belasting verskuldig aan die Suid-Afrikaanse Inkomstediens","Tax payable to the South African Revenue Service"),IF('Standing info'!$J$1=TRUE,"Belasting terugeisbaar vanaf die Suid-Afrikaanse Inkomstediens","Tax receivable from the South African Revenue Service")) -> Tax payable to the South African Revenue Service | I69: =I34+I40+I48+I36 -> 0
K70: =K71 -> y
K71: y
K72: =K73 -> y
A73: =IF('Standing info'!$J$1=TRUE,"Belasting op enkelbedrae - Berekeninge","Tax on lump sums - Calculations") -> Tax on lump sums - Calculations | K73: =K36 -> y
K74: =K73 -> y
K75: =IF(A75&B75&C75&D75&E75&F75&G75&I75="","y","n") -> y
K76: =IF(A76&B76&C76&D76&E76&F76&G76&I76="","y","n") -> y
K77: =IF(A77&B77&C77&D77&E77&F77&G77&I77="","y","n") -> y
K78: y
K79: y
K80: y
K81: y
K82: y
K83: y
K84: y
K85: y
K86: y
K87: y
K88: y
K89: y
K90: y
K91: y
K92: y
K93: y
K94: y
K95: =K73 -> y

Sheet Schedules
A1: ='Cover page'!A22 ->  | K1: WP | X1: FALSE
A2: ='Cover page'!A24&" "&'Cover page'!A26:I26 -> TAX CALCULATION FOR THE YEAR ENDED | K2: Ref
A3: =UPPER(IF('Standing info'!$J$1=TRUE,"Skedules","Schedules")) -> SCHEDULES
J6: R
A8: =IF('Calculation of taxable income'!C20<>0,'Calculation of taxable income'!C20,"") ->  | B8: =UPPER(IF('Calculation of taxable income'!A20<>0,'Calculation of taxable income'!A20,"")) ->  | J8: =SUM(J10:J34) -> 0 | L8: =IF('Standing info'!$J$1=TRUE,"Terug","Back") -> Back | M8: =IF(J8=0,"y","n") -> y
M9: =M8 -> y
M10: =IF(J10=0,"y","n") -> y
M11: y
M12: y
M13: y
M14: y
M15: y
M16: y
M17: y
M18: y
M19: y
M20: y
M21: y
M22: y
M23: y
M24: y
M25: y
M26: y
M27: y
M28: y
M29: y
M30: y
M31: y
M32: y
M33: y
M34: y
M35: =M8 -> y
A36: =IF('Calculation of taxable income'!C21<>0,'Calculation of taxable income'!C21,"") ->  | B36: =UPPER(IF('Calculation of taxable income'!A21<>0,'Calculation of taxable income'!A21,"")) ->  | J36: =SUM(J38:J62) -> 0 | L36: =IF('Standing info'!$J$1=TRUE,"Terug","Back") -> Back | M36: =IF(J36=0,"y","n") -> y
M37: =M36 -> y
M38: =IF(J38=0,"y","n") -> y
M39: y
M40: y
M41: y
M42: y
M43: y
M44: y
M45: y
M46: y
M47: y
M48: y
M49: y
M50: y
M51: y
M52: y
M53: y
M54: y
M55: y
M56: y
M57: y
M58: y
M59: y
M60: y
M61: y
M62: y
M63: =M36 -> y
A64: =IF('Calculation of taxable income'!C22<>0,'Calculation of taxable income'!C22,"") ->  | B64: =UPPER(IF('Calculation of taxable income'!A22<>0,'Calculation of taxable income'!A22,"")) ->  | J64: =SUM(J66:J80) -> 0 | L64: =IF('Standing info'!$J$1=TRUE,"Terug","Back") -> Back | M64: =IF(J64=0,"y","n") -> y
M65: =M64 -> y
M66: =IF(J66=0,"y","n") -> y
M67: y
M68: y
M69: y
M70: y
M71: y
M72: y
M73: y
M74: y
M75: y
M76: y
M77: y
M78: y
M79: y
M80: y
M81: =M64 -> y
A82: =IF('Calculation of taxable income'!C23<>0,'Calculation of taxable income'!C23,"") ->  | B82: =UPPER(IF('Calculation of taxable income'!A23<>0,'Calculation of taxable income'!A23,"")) ->  | J82: =SUM(J84:J98) -> 0 | L82: =IF('Standing info'!$J$1=TRUE,"Terug","Back") -> Back | M82: =IF(J82=0,"y","n") -> y
M83: =M82 -> y
M84: =IF(J84=0,"y","n") -> y
M85: y
M86: y
M87: y
M88: y
M89: y
M90: y
M91: y
M92: y
M93: y
M94: y
M95: y
M96: y
M97: y
M98: y
M99: =M82 -> y
A100: =IF('Calculation of taxable income'!C24<>0,'Calculation of taxable income'!C24,"") ->  | B100: =UPPER(IF('Calculation of taxable income'!A24<>0,'Calculation of taxable income'!A24,"")) ->  | J100: =SUM(J102:J116) -> 0 | L100: =IF('Standing info'!$J$1=TRUE,"Terug","Back") -> Back | M100: =IF(J100=0,"y","n") -> y
M101: =M100 -> y
M102: =IF(J102=0,"y","n") -> y
M103: y
M104: y
M105: y
M106: y
M107: y
M108: y
M109: y
M110: y
M111: y
M112: y
M113: y
M114: y
M115: y
M116: y
M117: =M100 -> y
A118: =IF('Calculation of taxable income'!C128<>0,'Calculation of taxable income'!C128,"") ->  | B118: =UPPER(IF('Calculation of taxable income'!B128<>0,'Calculation of taxable income'!B128,"")) -> USE OF MOTOR VEHICLE 1 | L118: =IF('Standing info'!$J$1=TRUE,"Terug","Back") -> Back | M118: =IF(D120=0,"y","n") -> y | O118: ='Tax tables & variables'!I45 -> 0
M119: =$M$118 -> y
B120: =IF('Tax tables & variables'!$I$31="Uit",IF('Standing info'!$J$1=TRUE,"Waarde van voertuig (BTW uitgesluit):","Value of vehicle (Excluding VAT):"),IF('Standing info'!$J$1=TRUE,"Waarde van voertuig (BTW ingesluit):","Value of vehicle (Including VAT):")) -> Value of vehicle (Including VAT): | M120: =$M$118 -> y
M121: =IF(B121=0,"y","n") -> y | O121: =IF('Tax tables & variables'!I35<>0,IF('Standing info'!$J$1=TRUE,"(Onderhoudsplan is van toepassing)","(Maintenance plan is applicable)"),0) -> 0 | P121: =IF('Tax tables & variables'!I35<>0,IF('Standing info'!$J$1=TRUE,"(Onderhoudsplan is NIE van toepassing)","(Maintenance plan is NOT applicable)"),0) -> 0
B122: =IF('Standing info'!$J$1=TRUE,"Aantal maande in gebruik:","Number of months in use:") -> Number of months in use: | M122: =$M$118 -> y
B123: =IF('Standing info'!$J$1=TRUE,"Koers:","Rate:") -> Rate: | D123: ='Tax tables & variables'!I33-(IF(D130=0,0,IF(Schedules!D129<>Schedules!D130,0,'Tax tables & variables'!$I$50)))-(IF(D136=0,0,IF(Schedules!D135<>Schedules!D136,0,'Tax tables & variables'!$I$51))) -> 0 | M123: =$M$118 -> y
M124: =$M$118 -> y
B125: =IF('Tax tables & variables'!$I$45=3,IF('Standing info'!$J$1=TRUE,"Besigheids km gereis vir periode:","Business km travelled for period:"),IF('Standing info'!$J$1=TRUE,"Nie van toepassing op die jaar nie","Not applicable for this year")) -> Not applicable for this year | M125: =IF(D125=0,"y","n") -> y
B126: =IF('Tax tables & variables'!$I$45=3,IF('Standing info'!$J$1=TRUE,"Privaat km gereis vir periode:","Private km travelled for period:"),IF('Standing info'!$J$1=TRUE,"Nie van toepassing op die jaar nie","Not applicable for this year")) -> Not applicable for this year | C126: 10000 | M126: =IF(D126=0,"y","n") -> y
B127: =IF('Tax tables & variables'!$I$45=3,IF('Standing info'!$J$1=TRUE,"Totale km gereis vir periode:","Total km travelled for period:"),IF('Standing info'!$J$1=TRUE,"Nie van toepassing op die jaar nie","Not applicable for this year")) -> Not applicable for this year | D127: =D125+D126 -> 0 | M127: =IF(D127=0,"y","n") -> y
M128: =$M$118 -> y
B129: =IF('Standing info'!$J$1=TRUE,"Totale brandstofkoste","Total fuel cost") -> Total fuel cost | M129: =IF(D129=0,"y","n") -> y
B130: =IF('Standing info'!$J$1=TRUE,"Brandstofkoste deur werknemer betaal","Fuel cost paid by employee") -> Fuel cost paid by employee | M130: =IF(D130=0,"y","n") -> y
B131: =IF('Tax tables & variables'!$I$45=3,IF('Standing info'!$J$1=TRUE,"Totale lisensiekoste","Total licence cost"),IF('Standing info'!$J$1=TRUE,"Nie van toepassing op die jaar nie","Not applicable for this year")) -> Not applicable for this year | M131: =IF(D131=0,"y","n") -> y
B132: =IF('Tax tables & variables'!$I$45=3,IF('Standing info'!$J$1=TRUE,"Lisensiekoste deur werknemer betaal","Licence cost paid by employee"),IF('Standing info'!$J$1=TRUE,"Nie van toepassing op die jaar nie","Not applicable for this year")) -> Not applicable for this year | M132: y
B133: =IF('Tax tables & variables'!$I$45=3,IF('Standing info'!$J$1=TRUE,"Totale versekeringskoste","Total insurance cost"),IF('Standing info'!$J$1=TRUE,"Nie van toepassing op die jaar nie","Not applicable for this year")) -> Not applicable for this year | M133: y
B134: =IF('Tax tables & variables'!$I$45=3,IF('Standing info'!$J$1=TRUE,"Versekeringskoste deur werknemer betaal","Insurance cost paid by employee"),IF('Standing info'!$J$1=TRUE,"Nie van toepassing op die jaar nie","Not applicable for this year")) -> Not applicable for this year | M134: y
B135: =IF('Standing info'!$J$1=TRUE,"Totale onderhoudskoste","Total maintenance cost") -> Total maintenance cost | M135: y
B136: =IF('Standing info'!$J$1=TRUE,"Onderhoudskoste deur werknemer betaal","Maintenance paid by employee") -> Maintenance paid by employee | M136: y
M137: =$M$118 -> y
B138: =IF('Standing info'!$J$1=TRUE,"Maandelikse byvoordeel:","Monthly fringe benefit:") -> Monthly fringe benefit: | F138: =D120*D123 -> 0 | M138: =IF(F138=0,"y","n") -> y
B139: =IF('Standing info'!$J$1=TRUE,"Min: Alle brandstof betaal deur werknemer","Less: All fuel paid by employee") -> Less: All fuel paid by employee | F139: =IF('Tax tables & variables'!$I$45=3,0,IF(D129+D130=0,0,IF(D129=D130,-'Tax tables & variables'!$I$48,0))) -> 0 | M139: =IF(F139=0,"y","n") -> y
B140: =IF('Standing info'!$J$1=TRUE,"Min: Alle onderhoud betaal deur werknemer","Less: All maintenance paid by employee") -> Less: All maintenance paid by employee | F140: =IF('Tax tables & variables'!$I$45=3,0,IF(D135+D136=0,0,IF(D135=D136,-'Tax tables & variables'!$I$49,0))) -> 0 | M140: =IF(F140=0,"y","n") -> y
B141: =IF('Standing info'!$J$1=TRUE,"Maandelikse byvoordeel:","Monthly fringe benefit:") -> Monthly fringe benefit: | F141: =SUM(F138:F140) -> 0 | G141: x | H141: =D122 -> 0 | I141: = | J141: =F141*H141 -> 0 | M141: =$M$118 -> y
B142: =IF('Standing info'!$J$1=TRUE,"Min: Brandstof betaal deur werknemer","Less: Fuel paid by employee") -> Less: Fuel paid by employee | J142: =IF('Tax tables & variables'!$I$45=3,0,IF(D129<>D130,-D130,0)) -> 0 | M142: =IF(J142=0,"y","n") -> y
B143: =IF('Standing info'!$J$1=TRUE,"Min: Onderhoud betaal deur werknemer","Less: Maintenance paid by employee") -> Less: Maintenance paid by employee | J143: =IF('Tax tables & variables'!$I$45=3,0,IF(D135<>D136,-D136,0)) -> 0 | M143: =IF(J143=0,"y","n") -> y
B144: =IF('Standing info'!$J$1=TRUE,"Min: Brandstof betaal deur werknemer - privaat gedeelte","Less: Fuel paid by employee - private portion") -> Less: Fuel paid by employee - private portion | F144: =IF('Tax tables & variables'!$I$45=3,IF(D129=D130,D126&" KM",0),0) -> 0 | G144: =IF(F144<>0,"x","") ->  | H144: =IF('Tax tables & variables'!$I$45=3,IF(Schedules!D129=Schedules!D130,IF(Schedules!D126<>0,'Tax tables & variables'!$I$37/100,0),0),0) -> 0 | I144: =IF(F144<>0,"=","") ->  | J144: =IF(F144<>0,-D126*H144,0) -> 0 | M144: =IF(J144=0,"y","n") -> y
B145: =IF('Standing info'!$J$1=TRUE,"Min: Lisensiekoste betaal deur werknemer - privaat gedeelte","Less: Licence cost paid by employee - private portion") -> Less: Licence cost paid by employee - private portion | F145: =IF('Tax tables & variables'!$I$45=3,IF(D131=D132,D131,0),0) -> 0 | G145: =IF(F145<>0,"x","") ->  | H145: =IF(F145<>0,IF(D127<>0,D126/D127,0),"") ->  | I145: =IF(F145<>0,"=","") ->  | J145: =IF(F145<>0,-F145*H145,"") ->  | M145: =IF(F145=0,"y","n") -> y
B146: =IF('Standing info'!$J$1=TRUE,"Min: Versekeringskoste betaal deur werknemer - privaat gedeelte","Less: Insurance cost paid by employee - private portion") -> Less: Insurance cost paid by employee - private portion | F146: =IF('Tax tables & variables'!$I$45=3,IF(D133=D134,D133,0),0) -> 0 | G146: =IF(F146<>0,"x","") ->  | H146: =IF(F146<>0,IF(D127<>0,D126/D127,0),"") ->  | I146: =IF(F146<>0,"=","") ->  | J146: =IF(F146<>0,-F146*H146,"") ->  | M146: =IF(F146=0,"y","n") -> y
B147: =IF('Standing info'!$J$1=TRUE,"Min: Onderhoud betaal deur werknemer - privaat gedeelte","Less: Maintenance paid by employee - private portion") -> Less: Maintenance paid by employee - private portion | F147: =IF('Tax tables & variables'!$I$45=3,IF(D135=D136,D135,0),0) -> 0 | G147: =IF(F147<>0,"x","") ->  | H147: =IF(F147<>0,IF(D127<>0,D126/D127,0),"") ->  | I147: =IF(F147<>0,"=","") ->  | J147: =IF(F147<>0,-F147*H147,"") ->  | M147: =IF(F147=0,"y","n") -> y
B148: =IF('Standing info'!$J$1=TRUE,"Min: Bedrae deur werknemer betaal vir byvoordeel","Less: Amounts paid by employee for benefit") -> Less: Amounts paid by employee for benefit | M148: =IF(J148=0,"y","n") -> y
M149: =M150 -> y
B150: =IF('Standing info'!$J$1=TRUE,"Belasbare byvoordeel","Taxable fringe benefit") -> Taxable fringe benefit | J150: =SUM(J141:J148) -> 0 | M150: =$M$118 -> y
M151: =$M$118 -> y
M152: =$M$118 -> y
A153: =IF('Calculation of taxable income'!C129<>0,'Calculation of taxable income'!C129,"") ->  | B153: =UPPER(IF('Calculation of taxable income'!B129<>0,'Calculation of taxable income'!B129,"")) -> USE OF MOTOR VEHICLE 2 | L153: =IF('Standing info'!$J$1=TRUE,"Terug","Back") -> Back | M153: =IF(D155=0,"y","n") -> y
M154: =$M$153 -> y
B155: =IF('Tax tables & variables'!$I$31="Uit",IF('Standing info'!$J$1=TRUE,"Waarde van voertuig (BTW uitgesluit):","Value of vehicle (Excluding VAT):"),IF('Standing info'!$J$1=TRUE,"Waarde van voertuig (BTW ingesluit):","Value of vehicle (Including VAT):")) -> Value of vehicle (Including VAT): | M155: =$M$153 -> y
M156: =IF(B156=0,"y","n") -> y | O156: =IF('Tax tables & variables'!I41<>0,IF('Standing info'!$J$1=TRUE,"(Onderhoudsplan is van toepassing)","(Maintenance plan is applicable)"),0) -> 0 | P156: =IF('Tax tables & variables'!I41<>0,IF('Standing info'!$J$1=TRUE,"(Onderhoudsplan is NIE van toepassing)","(Maintenance plan is NOT applicable)"),0) -> 0
B157: =IF('Standing info'!$J$1=TRUE,"Aantal maande in gebruik:","Number of months in use:") -> Number of months in use: | M157: =$M$153 -> y
B158: =IF('Standing info'!$J$1=TRUE,"Koers:","Rate:") -> Rate: | D158: ='Tax tables & variables'!I39-(IF(D165=0,0,IF(Schedules!D164<>Schedules!D165,0,'Tax tables & variables'!$I$50)))-(IF(D171=0,0,IF(Schedules!D170<>Schedules!D171,0,'Tax tables & variables'!$I$51))) -> 0 | M158: =$M$153 -> y
M159: =$M$153 -> y
B160: =IF('Tax tables & variables'!$I$45=3,IF('Standing info'!$J$1=TRUE,"Besigheids km gereis vir periode:","Business km travelled for period:"),IF('Standing info'!$J$1=TRUE,"Nie van toepassing op die jaar nie","Not applicable for this year")) -> Not applicable for this year | M160: =IF(D160=0,"y","n") -> y
B161: =IF('Tax tables & variables'!$I$45=3,IF('Standing info'!$J$1=TRUE,"Privaat km gereis vir periode:","Private km travelled for period:"),IF('Standing info'!$J$1=TRUE,"Nie van toepassing op die jaar nie","Not applicable for this year")) -> Not applicable for this year | M161: =IF(D161=0,"y","n") -> y
B162: =IF('Tax tables & variables'!$I$45=3,IF('Standing info'!$J$1=TRUE,"Totale km gereis vir periode:","Total km travelled for period:"),IF('Standing info'!$J$1=TRUE,"Nie van toepassing op die jaar nie","Not applicable for this year")) -> Not applicable for this year | D162: =D160+D161 -> 0 | M162: =IF(D162=0,"y","n") -> y
M163: =$M$153 -> y
B164: =IF('Standing info'!$J$1=TRUE,"Totale brandstofkoste","Total fuel cost") -> Total fuel cost | M164: =IF(D164=0,"y","n") -> y
B165: =IF('Standing info'!$J$1=TRUE,"Brandstofkoste deur werknemer betaal","Fuel cost paid by employee") -> Fuel cost paid by employee | M165: =IF(D165=0,"y","n") -> y
B166: =IF('Tax tables & variables'!$I$45=3,IF('Standing info'!$J$1=TRUE,"Totale lisensiekoste","Total licence cost"),IF('Standing info'!$J$1=TRUE,"Nie van toepassing op die jaar nie","Not applicable for this year")) -> Not applicable for this year | M166: =IF(D166=0,"y","n") -> y
B167: =IF('Tax tables & variables'!$I$45=3,IF('Standing info'!$J$1=TRUE,"Lisensiekoste deur werknemer betaal","Licence cost paid by employee"),IF('Standing info'!$J$1=TRUE,"Nie van toepassing op die jaar nie","Not applicable for this year")) -> Not applicable for this year | M167: y
B168: =IF('Tax tables & variables'!$I$45=3,IF('Standing info'!$J$1=TRUE,"Totale versekeringskoste","Total insurance cost"),IF('Standing info'!$J$1=TRUE,"Nie van toepassing op die jaar nie","Not applicable for this year")) -> Not applicable for this year | M168: y
B169: =IF('Tax tables & variables'!$I$45=3,IF('Standing info'!$J$1=TRUE,"Versekeringskoste deur werknemer betaal","Insurance cost paid by employee"),IF('Standing info'!$J$1=TRUE,"Nie van toepassing op die jaar nie","Not applicable for this year")) -> Not applicable for this year | M169: y
B170: =IF('Standing info'!$J$1=TRUE,"Totale onderhoudskoste","Total maintenance cost") -> Total maintenance cost | M170: y
B171: =IF('Standing info'!$J$1=TRUE,"Onderhoudskoste deur werknemer betaal","Maintenance paid by employee") -> Maintenance paid by employee | M171: y
M172: =$M$153 -> y
B173: =IF('Standing info'!$J$1=TRUE,"Maandelikse byvoordeel:","Monthly fringe benefit:") -> Monthly fringe benefit: | F173: =D155*D158 -> 0 | M173: =IF(F173=0,"y","n") -> y
B174: =IF('Standing info'!$J$1=TRUE,"Min: Alle brandstof betaal deur werknemer","Less: All fuel paid by employee") -> Less: All fuel paid by employee | F174: =IF('Tax tables & variables'!$I$45=3,0,IF(D164+D165=0,0,IF(D164=D165,-'Tax tables & variables'!$I$48,0))) -> 0 | M174: =IF(F174=0,"y","n") -> y
B175: =IF('Standing info'!$J$1=TRUE,"Min: Alle onderhoud betaal deur werknemer","Less: All maintenance paid by employee") -> Less: All maintenance paid by employee | F175: =IF('Tax tables & variables'!$I$45=3,0,IF(D170+D171=0,0,IF(D170=D171,-'Tax tables & variables'!$I$49,0))) -> 0 | M175: =IF(F175=0,"y","n") -> y
B176: =IF('Standing info'!$J$1=TRUE,"Maandelikse byvoordeel:","Monthly fringe benefit:") -> Monthly fringe benefit: | F176: =SUM(F173:F175) -> 0 | G176: x | H176: =D157 -> 0 | I176: = | J176: =F176*H176 -> 0 | M176: =$M$153 -> y
B177: =IF('Standing info'!$J$1=TRUE,"Min: Brandstof betaal deur werknemer","Less: Fuel paid by employee") -> Less: Fuel paid by employee | J177: =IF('Tax tables & variables'!$I$45=3,0,IF(D164<>D165,-D165,0)) -> 0 | M177: =IF(J177=0,"y","n") -> y
B178: =IF('Standing info'!$J$1=TRUE,"Min: Onderhoud betaal deur werknemer","Less: Maintenance paid by employee") -> Less: Maintenance paid by employee | J178: =IF('Tax tables & variables'!$I$45=3,0,IF(D170<>D171,-D171,0)) -> 0 | M178: =IF(J178=0,"y","n") -> y
B179: =IF('Standing info'!$J$1=TRUE,"Min: Brandstof betaal deur werknemer - privaat gedeelte","Less: Fuel paid by employee - private portion") -> Less: Fuel paid by employee - private portion | F179: =IF('Tax tables & variables'!$I$45=3,IF(D164=D165,D161&" KM",0),0) -> 0 | G179: =IF(F179<>0,"x","") ->  | H179: =IF('Tax tables & variables'!$I$45=3,IF(Schedules!D164=Schedules!D165,IF(Schedules!D161<>0,'Tax tables & variables'!$I$43/100,0),0),0) -> 0 | I179: =IF(F179<>0,"=","") ->  | J179: =IF(F179<>0,-D161*H179,0) -> 0 | M179: =IF(J179=0,"y","n") -> y
B180: =IF('Standing info'!$J$1=TRUE,"Min: Lisensiekoste betaal deur werknemer - privaat gedeelte","Less: Licence cost paid by employee - private portion") -> Less: Licence cost paid by employee - private portion | F180: =IF('Tax tables & variables'!$I$45=3,IF(D166=D167,D166,0),0) -> 0 | G180: =IF(F180<>0,"x","") ->  | H180: =IF(F180<>0,IF(D162<>0,D161/D162,0),"") ->  | I180: =IF(F180<>0,"=","") ->  | J180: =IF(F180<>0,-F180*H180,"") ->  | M180: =IF(F180=0,"y","n") -> y
B181: =IF('Standing info'!$J$1=TRUE,"Min: Versekeringskoste betaal deur werknemer - privaat gedeelte","Less: Insurance cost paid by employee - private portion") -> Less: Insurance cost paid by employee - private portion | F181: =IF('Tax tables & variables'!$I$45=3,IF(D168=D169,D168,0),0) -> 0 | G181: =IF(F181<>0,"x","") ->  | H181: =IF(F181<>0,IF(D162<>0,D161/D162,0),"") ->  | I181: =IF(F181<>0,"=","") ->  | J181: =IF(F181<>0,-F181*H181,"") ->  | M181: =IF(F181=0,"y","n") -> y
B182: =IF('Standing info'!$J$1=TRUE,"Min: Onderhoud betaal deur werknemer - privaat gedeelte","Less: Maintenance paid by employee - private portion") -> Less: Maintenance paid by employee - private portion | F182: =IF('Tax tables & variables'!$I$45=3,IF(D170=D171,D170,0),0) -> 0 | G182: =IF(F182<>0,"x","") ->  | H182: =IF(F182<>0,IF(D162<>0,D161/D162,0),"") ->  | I182: =IF(F182<>0,"=","") ->  | J182: =IF(F182<>0,-F182*H182,"") ->  | M182: =IF(F182=0,"y","n") -> y
B183: =IF('Standing info'!$J$1=TRUE,"Min: Bedrae deur werknemer betaal vir byvoordeel","Less: Amounts paid by employee for benefit") -> Less: Amounts paid by employee for benefit | M183: =IF(J183=0,"y","n") -> y
M184: =M185 -> y
B185: =IF('Standing info'!$J$1=TRUE,"Belasbare byvoordeel","Taxable fringe benefit") -> Taxable fringe benefit | J185: =SUM(J176:J183) -> 0 | M185: =$M$153 -> y
M186: =$M$153 -> y
M187: =$M$153 -> y
A188: =IF('Calculation of taxable income'!C130<>0,'Calculation of taxable income'!C130,"") ->  | B188: =UPPER(IF('Calculation of taxable income'!B130<>0,'Calculation of taxable income'!B130,"")) -> RESIDENTIAL ACCOMMODATION | L188: =IF('Standing info'!$J$1=TRUE,"Terug","Back") -> Back | M188: =IF(D194=0,"y","n") -> y
M189: =$M$188 -> y
B190: =IF('Standing info'!$J$1=TRUE,"Salaris: Voorafgaande jaar van aanslag:","Salary: Preceding year of assessment:") -> Salary: Preceding year of assessment: | M190: =IF(D190=0,"y","n") -> y | O190: =IF('Standing info'!$J$1=TRUE,"Ongemeubileerd en sonder krag","Unfurnished and without power") -> Unfurnished and without power
B191: =IF('Standing info'!$J$1=TRUE,"Min: Belasbare byvoordeel op voertuig","Less: Taxable fringe benefit on vehicle") -> Less: Taxable fringe benefit on vehicle | M191: =IF(D191=0,"y","n") -> y | O191: =IF('Standing info'!$J$1=TRUE,"Gemeubileerd of met krag","Either furnishing or power") -> Either furnishing or power
B192: =IF('Standing info'!$J$1=TRUE,"Min: Reistoelaag","Less: Travel allowance") -> Less: Travel allowance | M192: =IF(D192=0,"y","n") -> y | O192: =IF('Standing info'!$J$1=TRUE,"Gemeubileerd met krag","Furnished with power") -> Furnished with power
B193: =IF('Standing info'!$J$1=TRUE,"Min: Onthaaltoelaag","Less: Entertainment allowance") -> Less: Entertainment allowance | M193: =IF(D193=0,"y","n") -> y
B194: A = | D194: =SUM(D190:D193) -> 0 | M194: =$M$188 -> y | O194: Ongemeubileerd en sonder krag
B195: B = | D195: 20000 | M195: y | O195: Gemeubileerd of met krag
B196: =IF('Standing info'!$J$1=TRUE,"Aantal kamers:","Number of rooms:") -> Number of rooms: | M196: y | O196: Gemeubileerd met krag
B197: Ongemeubileerd en sonder krag | D197: =IF(B197=O194,1,IF(B197=O198,1,IF(B197=O195,2,IF(B197=O199,2,IF(B197=O196,3,IF(B197=O200,3)))))) -> 1 | M197: y
B198: C = | D198: =IF(D196<>0,IF(D196<4,17,IF(D197=1,17,IF(D197=2,18,IF(D197=3,19)))),"") ->  | M198: y | O198: Unfurnished and without power
B199: =IF('Standing info'!$J$1=TRUE,"D (Maande) =","D (Months) =") -> D (Months) = | D199: 12 | M199: y | O199: Either furnishing or power
B200: =IF('Standing info'!$J$1=TRUE,"Huurwaarde","Rental value") -> Rental value | J200: =IF(D196<>0,IF(D194<>0,(D194-D195)*D198/100*D199/12,0),0) -> 0 | M200: =IF(J201=0,"y","n") -> y | O200: Furnished with power
B201: =IF('Standing info'!$J$1=TRUE,"Min: Bedrae deur werknemer betaal vir byvoordeel","Less: Amounts paid by employee for benefit") -> Less: Amounts paid by employee for benefit | M201: =IF(J201=0,"y","n") -> y
B202: =IF('Standing info'!$J$1=TRUE,"Belasbare byvoordeel","Taxable fringe benefit") -> Taxable fringe benefit | J202: =SUM(J200:J201) -> 0 | M202: y
M203: y
... 404 more rows

Sheet Assets & liabilities . recon
A1: ='Cover page'!A22 ->  | L1: WP | X1: FALSE
A2: ='Cover page'!A24&" "&'Cover page'!A26:I26 -> TAX CALCULATION FOR THE YEAR ENDED | L2: Ref
A3: =UPPER(IF('Standing info'!$J$1=TRUE,"Staat van bates en laste","Statement of assets and liabilities")) -> STATEMENT OF ASSETS AND LIABILITIES
I5: =YEAR('Standing info'!C7) -> 1900 | K5: =I5-1 -> 1899 | O5: FALSE
G6: =IF('Standing info'!$J$1=TRUE,"Skedule","Schedule") -> Schedule | I6: R | K6: R
A8: =IF('Standing info'!$J$1=TRUE,"BATES:","ASSETS:") -> ASSETS: | I8: =SUM(I10:I29) -> 0 | K8: =SUM(K10:K29) -> 0 | M8: =IF((I8+K8)=0,"y","n") -> y
M9: =M8 -> y
M10: =IF((I10+K10)=0,"y","n") -> y
M11: =IF((I11+K11)=0,"y","n") -> y
M12: y
M13: y
M14: y
M15: y
M16: y
M17: y
M18: y
M19: y
G20: =IF(A20<>0,SUM($O$20:O20),"") ->  | M20: y
M21: y
M22: y
M23: y
M24: y
G25: =IF(A25<>0,SUM($O$20:O25),"") ->  | I25: ='A&L Schedules'!I8 -> 0 | K25: ='A&L Schedules'!K8 -> 0 | M25: y | O25: =IF(A25<>0,1,0) -> 0 | P25: =IF('Standing info'!$J$1=TRUE,"Skedule","Schedule") -> Schedule
G26: =IF(A26<>0,SUM($O$20:O26),"") ->  | I26: ='A&L Schedules'!I21 -> 0 | K26: ='A&L Schedules'!K21 -> 0 | M26: y | O26: 0 | P26: =IF('Standing info'!$J$1=TRUE,"Skedule","Schedule") -> Schedule
G27: =IF(A27<>0,SUM($O$20:O27),"") ->  | I27: ='A&L Schedules'!I34 -> 0 | K27: ='A&L Schedules'!K34 -> 0 | M27: y | O27: 0 | P27: =IF('Standing info'!$J$1=TRUE,"Skedule","Schedule") -> Schedule
G28: =IF(A28<>0,SUM($O$20:O28),"") ->  | I28: ='A&L Schedules'!I47 -> 0 | K28: ='A&L Schedules'!K47 -> 0 | M28: y | O28: 0 | P28: =IF('Standing info'!$J$1=TRUE,"Skedule","Schedule") -> Schedule
A29: =IF('Standing info'!$J$1=TRUE,"Belasting ontvangbaar","Tax refund receivable") -> Tax refund receivable | I29: =-IF(('Tax calculation'!$I$69+'Tax calculation'!$I$44)<0,'Tax calculation'!$I$69+'Tax calculation'!$I$44,0) -> 0 | M29: y
M30: =M8 -> y
A32: =IF('Standing info'!$J$1=TRUE,"LASTE:","LIABILITIES:") -> LIABILITIES: | I32: =-SUM(I34:I53) -> 0 | K32: =-SUM(K34:K53) -> 0 | M32: y
M33: =M32 -> y
M34: y
M35: y
M36: y
M37: y
M38: y
M39: y
M40: y
M41: y
M42: y
M43: y
M44: y
M45: y
M46: y
M47: y
M48: y
G49: =IF(A49<>0,SUM($O$20:O49),"") ->  | I49: ='A&L Schedules'!I60 -> 0 | K49: ='A&L Schedules'!K60 -> 0 | M49: y | O49: =IF(A49<>0,1,0) -> 0 | P49: =IF('Standing info'!$J$1=TRUE,"Skedule","Schedule") -> Schedule
G50: =IF(A50<>0,SUM($O$20:O50),"") ->  | I50: ='A&L Schedules'!I73 -> 0 | K50: ='A&L Schedules'!K73 -> 0 | M50: y | O50: 0 | P50: =IF('Standing info'!$J$1=TRUE,"Skedule","Schedule") -> Schedule
G51: =IF(A51<>0,SUM($O$20:O51),"") ->  | I51: ='A&L Schedules'!I86 -> 0 | K51: ='A&L Schedules'!K86 -> 0 | M51: y | O51: 0 | P51: =IF('Standing info'!$J$1=TRUE,"Skedule","Schedule") -> Schedule
G52: =IF(A52<>0,SUM($O$20:O52),"") ->  | I52: ='A&L Schedules'!I99 -> 0 | K52: ='A&L Schedules'!K99 -> 0 | M52: y | O52: 0 | P52: =IF('Standing info'!$J$1=TRUE,"Skedule","Schedule") -> Schedule
A53: =IF('Standing info'!$J$1=TRUE,"Belasting verskuldig","Tax payable") -> Tax payable | I53: =IF(('Tax calculation'!$I$69+'Tax calculation'!$I$44)>0,'Tax calculation'!$I$69+'Tax calculation'!$I$44,0) -> 0 | M53: y
M54: =M32 -> y
A56: =IF(I56>=0,IF('Standing info'!$J$1=TRUE,"NETTO BATES:","NETT ASSETS:"),IF('Standing info'!$J$1=TRUE,"NETTO LASTE:","NETT LIABILITIES:")) -> NETT ASSETS: | I56: =I32+I8 -> 0 | K56: =K32+K8 -> 0 | M56: y
O58: TRUE
A59: =IF('Standing info'!$J$1=TRUE,"BATE REKONSILIASIE:","ASSET RECONCILIATION:") -> ASSET RECONCILIATION: | M59: =IF(O58=TRUE,"n","y") -> n
M60: =M59 -> n
A61: =IF('Standing info'!$J$1=TRUE,"Netto bates/(laste) aan begin van periode","Nett assets/(liabilities) at beginning of period") -> Nett assets/(liabilities) at beginning of period | I61: =K56 -> 0 | M61: =IF($M$59="n",IF((I61+K61)=0,"y","n"),"y") -> y
M62: =M59 -> n
A63: =IF('Standing info'!$J$1=TRUE,"Inkomste verklaar vir die periode","Income declared for period") -> Income declared for period | I63: ='Calculation of taxable income'!E143 -> 0 | M63: =IF($M$59="n",IF((I63+K63)=0,"y","n"),"y") -> y
A64: =IF('Standing info'!$J$1=TRUE,"Kapitaalwins - nie belasbaar","Capital gain - non taxable") -> Capital gain - non taxable | I64: =Schedules!J281-Schedules!J289 -> 0 | M64: y
A65: =IF('Standing info'!$J$1=TRUE,"Min: Belasting betaal vir periode","Less: Tax paid for period") -> Less: Tax paid for period | I65: =-'Tax calculation'!I34 -> 0 | M65: y
A66: =IF('Standing info'!$J$1=TRUE,"Billike waarde aanpassings","Fair value adjustments") -> Fair value adjustments | M66: y
A67: =IF('Standing info'!$J$1=TRUE,"Ander:","Other:") -> Other: | M67: y
A68: =IF('Standing info'!$J$1=TRUE,"Min: Onttrekkings","Less: Drawings") -> Less: Drawings | I68: =-((I61+I63+I64+I65+I66)-I70) -> 0 | K68: =-((K61+K63+K64+K65+K66)-K70) -> 0 | M68: y
M69: =M59 -> n
A70: =IF('Standing info'!$J$1=TRUE,"Netto bates/(laste) aan einde van periode","Nett assets/(liabilities) at end of period") -> Nett assets/(liabilities) at end of period | I70: =I56 -> 0 | K70: =K56 -> 0 | M70: =M59 -> n

Sheet A&L Schedules
A1: ='Cover page'!A22 ->  | L1: WP | Y1: FALSE
A2: ='Cover page'!A24&" "&'Cover page'!A26:I26 -> TAX CALCULATION FOR THE YEAR ENDED | L2: Ref
A3: =UPPER(IF('Standing info'!$J$1=TRUE,"Staat van bates en laste - Skedules","Statement of assets and liabilities - Schedules")) -> STATEMENT OF ASSETS AND LIABILITIES - SCHEDULES
I5: =YEAR('Standing info'!C7) -> 1900 | K5: =I5-1 -> 1899 | P5: FALSE
I6: R | K6: R
A8: =UPPER(IF('Assets & liabilities . recon'!A25<>0,'Assets & liabilities . recon'!A25,"")) ->  | I8: =SUM(I10:I19) -> 0 | K8: =SUM(K10:K19) -> 0 | M8: =IF('Standing info'!$J$1=TRUE,"Terug","Back") -> Back | N8: =IF((I8+K8)=0,"y","n") -> y
N9: =N8 -> y
N10: =IF((I10+K10)=0,"y","n") -> y
N11: =IF((I11+K11)=0,"y","n") -> y
N12: y
N13: y
N14: y
N15: y
N16: y
N17: y
N18: y
N19: y
N20: =N8 -> y
A21: =UPPER(IF('Assets & liabilities . recon'!A26<>0,'Assets & liabilities . recon'!A26,"")) ->  | I21: =SUM(I23:I32) -> 0 | K21: =SUM(K23:K32) -> 0 | M21: =IF('Standing info'!$J$1=TRUE,"Terug","Back") -> Back | N21: =IF((I21+K21)=0,"y","n") -> y
N22: =N21 -> y
N23: =IF((I23+K23)=0,"y","n") -> y
N24: =IF((I24+K24)=0,"y","n") -> y
N25: y
N26: y
N27: y
N28: y
N29: y
N30: y
N31: y
N32: y
N33: =N21 -> y
A34: =UPPER(IF('Assets & liabilities . recon'!A27<>0,'Assets & liabilities . recon'!A27,"")) ->  | I34: =SUM(I36:I45) -> 0 | K34: =SUM(K36:K45) -> 0 | M34: =IF('Standing info'!$J$1=TRUE,"Terug","Back") -> Back | N34: =IF((I34+K34)=0,"y","n") -> y
N35: =N34 -> y
N36: =IF((I36+K36)=0,"y","n") -> y
N37: =IF((I37+K37)=0,"y","n") -> y
N38: y
N39: y
N40: y
N41: y
N42: y
N43: y
N44: y
N45: y
N46: =N34 -> y
A47: =UPPER(IF('Assets & liabilities . recon'!A28<>0,'Assets & liabilities . recon'!A28,"")) ->  | I47: =SUM(I49:I58) -> 0 | K47: =SUM(K49:K58) -> 0 | M47: =IF('Standing info'!$J$1=TRUE,"Terug","Back") -> Back | N47: =IF((I47+K47)=0,"y","n") -> y
N48: =N47 -> y
N49: =IF((I49+K49)=0,"y","n") -> y
N50: =IF((I50+K50)=0,"y","n") -> y
N51: y
N52: y
N53: y
N54: y
N55: y
N56: y
N57: y
N58: y
N59: =N47 -> y
A60: =UPPER(IF('Assets & liabilities . recon'!A49<>0,'Assets & liabilities . recon'!A49,"")) ->  | I60: =SUM(I62:I71) -> 0 | K60: =SUM(K62:K71) -> 0 | M60: =IF('Standing info'!$J$1=TRUE,"Terug","Back") -> Back | N60: =IF((I60+K60)=0,"y","n") -> y
N61: =N60 -> y
N62: =IF((I62+K62)=0,"y","n") -> y
N63: =IF((I63+K63)=0,"y","n") -> y
N64: y
N65: y
N66: y
N67: y
N68: y
N69: y
N70: y
N71: y
N72: =N60 -> y
A73: =UPPER(IF('Assets & liabilities . recon'!A50<>0,'Assets & liabilities . recon'!A50,"")) ->  | I73: =SUM(I75:I84) -> 0 | K73: =SUM(K75:K84) -> 0 | M73: =IF('Standing info'!$J$1=TRUE,"Terug","Back") -> Back | N73: =IF((I73+K73)=0,"y","n") -> y
N74: =N73 -> y
N75: =IF((I75+K75)=0,"y","n") -> y
N76: =IF((I76+K76)=0,"y","n") -> y
N77: y
N78: y
N79: y
N80: y
N81: y
N82: y
N83: y
N84: y
N85: =N73 -> y
A86: =UPPER(IF('Assets & liabilities . recon'!A51<>0,'Assets & liabilities . recon'!A51,"")) ->  | I86: =SUM(I88:I97) -> 0 | K86: =SUM(K88:K97) -> 0 | M86: =IF('Standing info'!$J$1=TRUE,"Terug","Back") -> Back | N86: =IF((I86+K86)=0,"y","n") -> y
N87: =N86 -> y
N88: =IF((I88+K88)=0,"y","n") -> y
N89: =IF((I89+K89)=0,"y","n") -> y
N90: y
N91: y
N92: y
N93: y
N94: y
N95: y
N96: y
N97: y
N98: =N86 -> y
A99: =UPPER(IF('Assets & liabilities . recon'!A52<>0,'Assets & liabilities . recon'!A52,"")) ->  | I99: =SUM(I101:I110) -> 0 | K99: =SUM(K101:K110) -> 0 | M99: =IF('Standing info'!$J$1=TRUE,"Terug","Back") -> Back | N99: =IF((I99+K99)=0,"y","n") -> y
N100: =N99 -> y
N101: =IF((I101+K101)=0,"y","n") -> y
N102: =IF((I102+K102)=0,"y","n") -> y
N103: y
N104: y
N105: y
N106: y
N107: y
N108: y
N109: y
N110: y
N111: =IF((I111+K111)=0,"y","n") -> y
N112: =N8 -> y

Sheet Tax tables & variables (hidden)
A1: BELASBARE INKOMSTE | E1: ='Tax calculation'!I10 -> 0 | I1: =YEAR('Standing info'!C7) -> 1900 | J1: 2003 | K1: 2004 | L1: 2005 | M1: 2006 | N1: 2007 | O1: 2008 | P1: 2009 | Q1: 2010 | R1: 2011 | S1: 2012 | T1: 2013 | U1: 2014 | V1: 2015 | W1: 2016 | X1: 2017 | Y1: 2018 | Z1: 2019 | AA1: 2020 | AB1: 2021 | AC1: 2022 | AD1: 2023 | AE1: 2024 | AF1: 2025 | AG1: 2026 | AH1: 2027
G2: Basisbelasting | I2: =IF('Standing info'!$C$7=0,0,HLOOKUP($I$1,$J$1:AH2,2)) -> 0 | J2: =IF($E$1>=$A$20,$D$20,IF($E$1>=$A$19,$D$19,IF($E$1>=$A$18,$D$18,IF($E$1>=$A$17,$D$17,IF($E$1>=$A$16,$D$16,IF($E$1>=$A$15,$D$15,IF($E$1>=$A$14,$D$14))))))) -> 0 | K2: =IF($E$1>=$A$37,$D$37,IF($E$1>=$A$36,$D$36,IF($E$1>=$A$35,$D$35,IF($E$1>=$A$34,$D$34,IF($E$1>=$A$33,$D$33,IF($E$1>=$A$32,$D$32,IF($E$1>=$A$31,$D$31))))))) -> 0 | L2: =IF($E$1>=$A$54,$D$54,IF($E$1>=$A$53,$D$53,IF($E$1>=$A$52,$D$52,IF($E$1>=$A$51,$D$51,IF($E$1>=$A$50,$D$50,IF($E$1>=$A$49,$D$49,IF($E$1>=$A$48,$D$48))))))) -> 0 | M2: =IF($E$1>=$A$71,$D$71,IF($E$1>=$A$70,$D$70,IF($E$1>=$A$69,$D$69,IF($E$1>=$A$68,$D$68,IF($E$1>=$A$67,$D$67,IF($E$1>=$A$66,$D$66,IF($E$1>=$A$65,$D$65))))))) -> 0 | N2: =IF($E$1>=$A$88,$D$88,IF($E$1>=$A$87,$D$87,IF($E$1>=$A$86,$D$86,IF($E$1>=$A$85,$D$85,IF($E$1>=$A$84,$D$84,IF($E$1>=$A$83,$D$83,IF($E$1>=$A$82,$D$82))))))) -> 0 | O2: =IF($E$1>=$A$105,$D$105,IF($E$1>=$A$104,$D$104,IF($E$1>=$A$103,$D$103,IF($E$1>=$A$102,$D$102,IF($E$1>=$A$101,$D$101,IF($E$1>=$A$100,$D$100,IF($E$1>=$A$99,$D$99))))))) -> 0 | P2: =IF($E$1>=$A$122,$D$122,IF($E$1>=$A$121,$D$121,IF($E$1>=$A$120,$D$120,IF($E$1>=$A$119,$D$119,IF($E$1>=$A$118,$D$118,IF($E$1>=$A$117,$D$117,IF($E$1>=$A$116,$D$116))))))) -> 0 | Q2: =IF($E$1>=$A$139,$D$139,IF($E$1>=$A$138,$D$138,IF($E$1>=$A$137,$D$137,IF($E$1>=$A$136,$D$136,IF($E$1>=$A$135,$D$135,IF($E$1>=$A$134,$D$134,IF($E$1>=$A$133,$D$133))))))) -> 0 | R2: =IF($E$1>=$A$156,$D$156,IF($E$1>=$A$155,$D$155,IF($E$1>=$A$154,$D$154,IF($E$1>=$A$153,$D$153,IF($E$1>=$A$152,$D$152,IF($E$1>=$A$151,$D$151,IF($E$1>=$A$150,$D$150))))))) -> 0 | S2: =IF($E$1>=$A$173,$D$173,IF($E$1>=$A$172,$D$172,IF($E$1>=$A$171,$D$171,IF($E$1>=$A$170,$D$170,IF($E$1>=$A$169,$D$169,IF($E$1>=$A$168,$D$168,IF($E$1>=$A$167,$D$167))))))) -> 0 | T2: =IF($E$1>=$A$190,$D$190,IF($E$1>=$A$189,$D$189,IF($E$1>=$A$188,$D$188,IF($E$1>=$A$187,$D$187,IF($E$1>=$A$186,$D$186,IF($E$1>=$A$185,$D$185,IF($E$1>=$A$184,$D$184))))))) -> 0 | U2: =IF($E$1>=$A$207,$D$207,IF($E$1>=$A$206,$D$206,IF($E$1>=$A$205,$D$205,IF($E$1>=$A$204,$D$204,IF($E$1>=$A$203,$D$203,IF($E$1>=$A$202,$D$202,IF($E$1>=$A$201,$D$201))))))) -> 0 | V2: =IF($E$1>=$A$224,$D$224,IF($E$1>=$A$223,$D$223,IF($E$1>=$A$222,$D$222,IF($E$1>=$A$221,$D$221,IF($E$1>=$A$220,$D$220,IF($E$1>=$A$219,$D$219,IF($E$1>=$A$218,$D$218))))))) -> 0 | W2: =IF($E$1>=$A$241,$D$241,IF($E$1>=$A$240,$D$240,IF($E$1>=$A$239,$D$239,IF($E$1>=$A$238,$D$238,IF($E$1>=$A$237,$D$237,IF($E$1>=$A$236,$D$236,IF($E$1>=$A$235,$D$235))))))) -> 0 | X2: =IF($E$1>=$A$258,$D$258,IF($E$1>=$A$257,$D$257,IF($E$1>=$A$256,$D$256,IF($E$1>=$A$255,$D$255,IF($E$1>=$A$254,$D$254,IF($E$1>=$A$253,$D$253,IF($E$1>=$A$252,$D$252))))))) -> 0 | Y2: =IF($E$1>=$A$276,$D$276,IF($E$1>=$A$275,$D$275,IF($E$1>=$A$274,$D$274,IF($E$1>=$A$273,$D$273,IF($E$1>=$A$272,$D$272,IF($E$1>=$A$271,$D$271,IF($E$1>=$A$270,$D$270,IF($E$1>=$A$269,$D$269)))))))) -> 0 | Z2: =IF($E$1>=$A$293,$D$293,IF($E$1>=$A$292,$D$292,IF($E$1>=$A$291,$D$291,IF($E$1>=$A$290,$D$290,IF($E$1>=$A$289,$D$289,IF($E$1>=$A$288,$D$288,IF($E$1>=$A$287,$D$287,IF($E$1>=$A$286,$D$286)))))))) -> 0 | AA2: =IF($E$1>=$A$310,$D$310,IF($E$1>=$A$309,$D$309,IF($E$1>=$A$308,$D$308,IF($E$1>=$A$307,$D$307,IF($E$1>=$A$306,$D$306,IF($E$1>=$A$305,$D$305,IF($E$1>=$A$304,$D$304,IF($E$1>=$A$303,$D$303)))))))) -> 0 | AB2: =IF($E$1>=$A$327,$D$327,IF($E$1>=$A$326,$D$326,IF($E$1>=$A$325,$D$325,IF($E$1>=$A$324,$D$324,IF($E$1>=$A$323,$D$323,IF($E$1>=$A$322,$D$322,IF($E$1>=$A$321,$D$321,IF($E$1>=$A$320,$D$320)))))))) -> 0 | AC2: =IF($E$1>=$A$344,$D$344,IF($E$1>=$A$343,$D$343,IF($E$1>=$A$342,$D$342,IF($E$1>=$A$341,$D$341,IF($E$1>=$A$340,$D$340,IF($E$1>=$A$339,$D$339,IF($E$1>=$A$338,$D$338,IF($E$1>=$A$337,$D$337)))))))) -> 0 | AD2: =IF($E$1>=$A$361,$D$361,IF($E$1>=$A$360,$D$360,IF($E$1>=$A$359,$D$359,IF($E$1>=$A$358,$D$358,IF($E$1>=$A$357,$D$357,IF($E$1>=$A$356,$D$356,IF($E$1>=$A$355,$D$355,IF($E$1>=$A$354,$D$354)))))))) -> 0 | AE2: =IF($E$1>=$A$378,$D$378,IF($E$1>=$A$377,$D$377,IF($E$1>=$A$376,$D$376,IF($E$1>=$A$375,$D$375,IF($E$1>=$A$374,$D$374,IF($E$1>=$A$373,$D$373,IF($E$1>=$A$372,$D$372,IF($E$1>=$A$371,$D$371)))))))) -> 0 | AF2: =IF($E$1>=$A$378,$D$378,IF($E$1>=$A$377,$D$377,IF($E$1>=$A$376,$D$376,IF($E$1>=$A$375,$D$375,IF($E$1>=$A$374,$D$374,IF($E$1>=$A$373,$D$373,IF($E$1>=$A$372,$D$372,IF($E$1>=$A$371,$D$371)))))))) -> 0 | AG2: =IF($E$1>=$A$378,$D$378,IF($E$1>=$A$377,$D$377,IF($E$1>=$A$376,$D$376,IF($E$1>=$A$375,$D$375,IF($E$1>=$A$374,$D$374,IF($E$1>=$A$373,$D$373,IF($E$1>=$A$372,$D$372,IF($E$1>=$A$371,$D$371)))))))) -> 0 | AH2: =IF($E$1>=$A$395,$D$395,IF($E$1>=$A$394,$D$394,IF($E$1>=$A$393,$D$393,IF($E$1>=$A$392,$D$392,IF($E$1>=$A$391,$D$391,IF($E$1>=$A$390,$D$390,IF($E$1>=$A$389,$D$389,IF($E$1>=$A$388,$D$388)))))))) -> 0
G3: Basisbedrag | I3: =IF('Standing info'!$C$7=0,0,HLOOKUP($I$1,$J$1:AH3,3)) -> 0 | J3: =IF($E$1>=$A$20,$C$20,IF($E$1>=$A$19,$C$19,IF($E$1>=$A$18,$C$18,IF($E$1>=$A$17,$C$17,IF($E$1>=$A$16,$C$16,IF($E$1>=$A$15,$C$15,IF($E$1>=$A$14,$C$14))))))) -> 0 | K3: =IF($E$1>=$A$37,$C$37,IF($E$1>=$A$36,$C$36,IF($E$1>=$A$35,$C$35,IF($E$1>=$A$34,$C$34,IF($E$1>=$A$33,$C$33,IF($E$1>=$A$32,$C$32,IF($E$1>=$A$31,$C$31))))))) -> 0 | L3: =IF($E$1>=$A$54,$C$54,IF($E$1>=$A$53,$C$53,IF($E$1>=$A$52,$C$52,IF($E$1>=$A$51,$C$51,IF($E$1>=$A$50,$C$50,IF($E$1>=$A$49,$C$49,IF($E$1>=$A$48,$C$48))))))) -> 0 | M3: =IF($E$1>=$A$71,$C$71,IF($E$1>=$A$70,$C$70,IF($E$1>=$A$69,$C$69,IF($E$1>=$A$68,$C$68,IF($E$1>=$A$67,$C$67,IF($E$1>=$A$66,$C$66,IF($E$1>=$A$65,$C$65))))))) -> 0 | N3: =IF($E$1>=$A$88,$C$88,IF($E$1>=$A$87,$C$87,IF($E$1>=$A$86,$C$86,IF($E$1>=$A$85,$C$85,IF($E$1>=$A$84,$C$84,IF($E$1>=$A$83,$C$83,IF($E$1>=$A$82,$C$82))))))) -> 0 | O3: =IF($E$1>=$A$105,$C$105,IF($E$1>=$A$104,$C$104,IF($E$1>=$A$103,$C$103,IF($E$1>=$A$102,$C$102,IF($E$1>=$A$101,$C$101,IF($E$1>=$A$100,$C$100,IF($E$1>=$A$99,$C$99))))))) -> 0 | P3: =IF($E$1>=$A$122,$C$122,IF($E$1>=$A$121,$C$121,IF($E$1>=$A$120,$C$120,IF($E$1>=$A$119,$C$119,IF($E$1>=$A$118,$C$118,IF($E$1>=$A$117,$C$117,IF($E$1>=$A$116,$C$116))))))) -> 0 | Q3: =IF($E$1>=$A$139,$C$139,IF($E$1>=$A$138,$C$138,IF($E$1>=$A$137,$C$137,IF($E$1>=$A$136,$C$136,IF($E$1>=$A$135,$C$135,IF($E$1>=$A$134,$C$134,IF($E$1>=$A$133,$C$133))))))) -> 0 | R3: =IF($E$1>=$A$156,$C$156,IF($E$1>=$A$155,$C$155,IF($E$1>=$A$154,$C$154,IF($E$1>=$A$153,$C$153,IF($E$1>=$A$152,$C$152,IF($E$1>=$A$151,$C$151,IF($E$1>=$A$150,$C$150))))))) -> 0 | S3: =IF($E$1>=$A$173,$C$173,IF($E$1>=$A$172,$C$172,IF($E$1>=$A$171,$C$171,IF($E$1>=$A$170,$C$170,IF($E$1>=$A$169,$C$169,IF($E$1>=$A$168,$C$168,IF($E$1>=$A$167,$C$167))))))) -> 0 | T3: =IF($E$1>=$A$190,$C$190,IF($E$1>=$A$189,$C$189,IF($E$1>=$A$188,$C$188,IF($E$1>=$A$187,$C$187,IF($E$1>=$A$186,$C$186,IF($E$1>=$A$185,$C$185,IF($E$1>=$A$184,$C$184))))))) -> 0 | U3: =IF($E$1>=$A$207,$C$207,IF($E$1>=$A$206,$C$206,IF($E$1>=$A$205,$C$205,IF($E$1>=$A$204,$C$204,IF($E$1>=$A$203,$C$203,IF($E$1>=$A$202,$C$202,IF($E$1>=$A$201,$C$201))))))) -> 0 | V3: =IF($E$1>=$A$224,$C$224,IF($E$1>=$A$223,$C$223,IF($E$1>=$A$222,$C$222,IF($E$1>=$A$221,$C$221,IF($E$1>=$A$220,$C$220,IF($E$1>=$A$219,$C$219,IF($E$1>=$A$218,$C$218))))))) -> 0 | W3: =IF($E$1>=$A$241,$C$241,IF($E$1>=$A$240,$C$240,IF($E$1>=$A$239,$C$239,IF($E$1>=$A$238,$C$238,IF($E$1>=$A$237,$C$237,IF($E$1>=$A$236,$C$236,IF($E$1>=$A$235,$C$235))))))) -> 0 | X3: =IF($E$1>=$A$258,$C$258,IF($E$1>=$A$257,$C$257,IF($E$1>=$A$256,$C$256,IF($E$1>=$A$255,$C$255,IF($E$1>=$A$254,$C$254,IF($E$1>=$A$253,$C$253,IF($E$1>=$A$252,$C$252))))))) -> 0 | Y3: =IF($E$1>=$A$276,$C$276,IF($E$1>=$A$275,$C$275,IF($E$1>=$A$274,$C$274,IF($E$1>=$A$273,$C$273,IF($E$1>=$A$272,$C$272,IF($E$1>=$A$271,$C$271,IF($E$1>=$A$270,$C$270,IF($E$1>=$A$269,$C$269)))))))) -> 0 | Z3: =IF($E$1>=$A$293,$C$293,IF($E$1>=$A$292,$C$292,IF($E$1>=$A$291,$C$291,IF($E$1>=$A$290,$C$290,IF($E$1>=$A$289,$C$289,IF($E$1>=$A$288,$C$288,IF($E$1>=$A$287,$C$287,IF($E$1>=$A$286,$C$286)))))))) -> 0 | AA3: =IF($E$1>=$A$310,$C$310,IF($E$1>=$A$309,$C$309,IF($E$1>=$A$308,$C$308,IF($E$1>=$A$307,$C$307,IF($E$1>=$A$306,$C$306,IF($E$1>=$A$305,$C$305,IF($E$1>=$A$304,$C$304,IF($E$1>=$A$303,$C$303)))))))) -> 0 | AB3: =IF($E$1>=$A$327,$C$327,IF($E$1>=$A$326,$C$326,IF($E$1>=$A$325,$C$325,IF($E$1>=$A$324,$C$324,IF($E$1>=$A$323,$C$323,IF($E$1>=$A$322,$C$322,IF($E$1>=$A$321,$C$321,IF($E$1>=$A$320,$C$320)))))))) -> 0 | AC3: =IF($E$1>=$A$344,$C$344,IF($E$1>=$A$343,$C$343,IF($E$1>=$A$342,$C$342,IF($E$1>=$A$341,$C$341,IF($E$1>=$A$340,$C$340,IF($E$1>=$A$339,$C$339,IF($E$1>=$A$338,$C$338,IF($E$1>=$A$337,$C$337)))))))) -> 0 | AD3: =IF($E$1>=$A$361,$C$361,IF($E$1>=$A$360,$C$360,IF($E$1>=$A$359,$C$359,IF($E$1>=$A$358,$C$358,IF($E$1>=$A$357,$C$357,IF($E$1>=$A$356,$C$356,IF($E$1>=$A$355,$C$355,IF($E$1>=$A$354,$C$354)))))))) -> 0 | AE3: =IF($E$1>=$A$378,$C$378,IF($E$1>=$A$377,$C$377,IF($E$1>=$A$376,$C$376,IF($E$1>=$A$375,$C$375,IF($E$1>=$A$374,$C$374,IF($E$1>=$A$373,$C$373,IF($E$1>=$A$372,$C$372,IF($E$1>=$A$371,$C$371)))))))) -> 0 | AF3: =IF($E$1>=$A$378,$C$378,IF($E$1>=$A$377,$C$377,IF($E$1>=$A$376,$C$376,IF($E$1>=$A$375,$C$375,IF($E$1>=$A$374,$C$374,IF($E$1>=$A$373,$C$373,IF($E$1>=$A$372,$C$372,IF($E$1>=$A$371,$C$371)))))))) -> 0 | AG3: =IF($E$1>=$A$378,$C$378,IF($E$1>=$A$377,$C$377,IF($E$1>=$A$376,$C$376,IF($E$1>=$A$375,$C$375,IF($E$1>=$A$374,$C$374,IF($E$1>=$A$373,$C$373,IF($E$1>=$A$372,$C$372,IF($E$1>=$A$371,$C$371)))))))) -> 0 | AH3: =IF($E$1>=$A$395,$C$395,IF($E$1>=$A$394,$C$394,IF($E$1>=$A$393,$C$393,IF($E$1>=$A$392,$C$392,IF($E$1>=$A$391,$C$391,IF($E$1>=$A$390,$C$390,IF($E$1>=$A$389,$C$389,IF($E$1>=$A$388,$C$388)))))))) -> 0
G4: Koers | I4: =IF('Standing info'!$C$7=0,0,HLOOKUP($I$1,$J$1:AH4,4)) -> 0 | J4: =IF($E$1>=$A$20,$E$20,IF($E$1>=$A$19,$E$19,IF($E$1>=$A$18,$E$18,IF($E$1>=$A$17,$E$17,IF($E$1>=$A$16,$E$16,IF($E$1>=$A$15,$E$15,IF($E$1>=$A$14,$E$14))))))) -> 0.18 | K4: =IF($E$1>=$A$37,$E$37,IF($E$1>=$A$36,$E$36,IF($E$1>=$A$35,$E$35,IF($E$1>=$A$34,$E$34,IF($E$1>=$A$33,$E$33,IF($E$1>=$A$32,$E$32,IF($E$1>=$A$31,$E$31))))))) -> 0.18 | L4: =IF($E$1>=$A$54,$E$54,IF($E$1>=$A$53,$E$53,IF($E$1>=$A$52,$E$52,IF($E$1>=$A$51,$E$51,IF($E$1>=$A$50,$E$50,IF($E$1>=$A$49,$E$49,IF($E$1>=$A$48,$E$48))))))) -> 0.18 | M4: =IF($E$1>=$A$71,$E$71,IF($E$1>=$A$70,$E$70,IF($E$1>=$A$69,$E$69,IF($E$1>=$A$68,$E$68,IF($E$1>=$A$67,$E$67,IF($E$1>=$A$66,$E$66,IF($E$1>=$A$65,$E$65))))))) -> 0.18 | N4: =IF($E$1>=$A$88,$E$88,IF($E$1>=$A$87,$E$87,IF($E$1>=$A$86,$E$86,IF($E$1>=$A$85,$E$85,IF($E$1>=$A$84,$E$84,IF($E$1>=$A$83,$E$83,IF($E$1>=$A$82,$E$82))))))) -> 0.18 | O4: =IF($E$1>=$A$105,$E$105,IF($E$1>=$A$104,$E$104,IF($E$1>=$A$103,$E$103,IF($E$1>=$A$102,$E$102,IF($E$1>=$A$101,$E$101,IF($E$1>=$A$100,$E$100,IF($E$1>=$A$99,$E$99))))))) -> 0.18 | P4: =IF($E$1>=$A$122,$E$122,IF($E$1>=$A$121,$E$121,IF($E$1>=$A$120,$E$120,IF($E$1>=$A$119,$E$119,IF($E$1>=$A$118,$E$118,IF($E$1>=$A$117,$E$117,IF($E$1>=$A$116,$E$116))))))) -> 0.18 | Q4: =IF($E$1>=$A$139,$E$139,IF($E$1>=$A$138,$E$138,IF($E$1>=$A$137,$E$137,IF($E$1>=$A$136,$E$136,IF($E$1>=$A$135,$E$135,IF($E$1>=$A$134,$E$134,IF($E$1>=$A$133,$E$133))))))) -> 0.18 | R4: =IF($E$1>=$A$156,$E$156,IF($E$1>=$A$155,$E$155,IF($E$1>=$A$154,$E$154,IF($E$1>=$A$153,$E$153,IF($E$1>=$A$152,$E$152,IF($E$1>=$A$151,$E$151,IF($E$1>=$A$150,$E$150))))))) -> 0.18 | S4: =IF($E$1>=$A$173,$E$173,IF($E$1>=$A$172,$E$172,IF($E$1>=$A$171,$E$171,IF($E$1>=$A$170,$E$170,IF($E$1>=$A$169,$E$169,IF($E$1>=$A$168,$E$168,IF($E$1>=$A$167,$E$167))))))) -> 0.18 | T4: =IF($E$1>=$A$190,$E$190,IF($E$1>=$A$189,$E$189,IF($E$1>=$A$188,$E$188,IF($E$1>=$A$187,$E$187,IF($E$1>=$A$186,$E$186,IF($E$1>=$A$185,$E$185,IF($E$1>=$A$184,$E$184))))))) -> 0.18 | U4: =IF($E$1>=$A$207,$E$207,IF($E$1>=$A$206,$E$206,IF($E$1>=$A$205,$E$205,IF($E$1>=$A$204,$E$204,IF($E$1>=$A$203,$E$203,IF($E$1>=$A$202,$E$202,IF($E$1>=$A$201,$E$201))))))) -> 0.18 | V4: =IF($E$1>=$A$224,$E$224,IF($E$1>=$A$223,$E$223,IF($E$1>=$A$222,$E$222,IF($E$1>=$A$221,$E$221,IF($E$1>=$A$220,$E$220,IF($E$1>=$A$219,$E$219,IF($E$1>=$A$218,$E$218))))))) -> 0.18 | W4: =IF($E$1>=$A$241,$E$241,IF($E$1>=$A$240,$E$240,IF($E$1>=$A$239,$E$239,IF($E$1>=$A$238,$E$238,IF($E$1>=$A$237,$E$237,IF($E$1>=$A$236,$E$236,IF($E$1>=$A$235,$E$235))))))) -> 0.18 | X4: =IF($E$1>=$A$258,$E$258,IF($E$1>=$A$257,$E$257,IF($E$1>=$A$256,$E$256,IF($E$1>=$A$255,$E$255,IF($E$1>=$A$254,$E$254,IF($E$1>=$A$253,$E$253,IF($E$1>=$A$252,$E$252))))))) -> 0.18 | Y4: =IF($E$1>=$A$276,$E$276,IF($E$1>=$A$275,$E$275,IF($E$1>=$A$274,$E$274,IF($E$1>=$A$273,$E$273,IF($E$1>=$A$272,$E$272,IF($E$1>=$A$271,$E$271,IF($E$1>=$A$270,$E$270,IF($E$1>=$A$269,$E$269)))))))) -> 0.18 | Z4: =IF($E$1>=$A$293,$E$293,IF($E$1>=$A$292,$E$292,IF($E$1>=$A$291,$E$291,IF($E$1>=$A$290,$E$290,IF($E$1>=$A$289,$E$289,IF($E$1>=$A$288,$E$288,IF($E$1>=$A$287,$E$287,IF($E$1>=$A$286,$E$286)))))))) -> 0.18 | AA4: =IF($E$1>=$A$310,$E$310,IF($E$1>=$A$309,$E$309,IF($E$1>=$A$308,$E$308,IF($E$1>=$A$307,$E$307,IF($E$1>=$A$306,$E$306,IF($E$1>=$A$305,$E$305,IF($E$1>=$A$304,$E$304,IF($E$1>=$A$303,$E$303)))))))) -> 0.18 | AB4: =IF($E$1>=$A$327,$E$327,IF($E$1>=$A$326,$E$326,IF($E$1>=$A$325,$E$325,IF($E$1>=$A$324,$E$324,IF($E$1>=$A$323,$E$323,IF($E$1>=$A$322,$E$322,IF($E$1>=$A$321,$E$321,IF($E$1>=$A$320,$E$320)))))))) -> 0.18 | AC4: =IF($E$1>=$A$344,$E$344,IF($E$1>=$A$343,$E$343,IF($E$1>=$A$342,$E$342,IF($E$1>=$A$341,$E$341,IF($E$1>=$A$340,$E$340,IF($E$1>=$A$339,$E$339,IF($E$1>=$A$338,$E$338,IF($E$1>=$A$337,$E$337)))))))) -> 0.18 | AD4: =IF($E$1>=$A$361,$E$361,IF($E$1>=$A$360,$E$360,IF($E$1>=$A$359,$E$359,IF($E$1>=$A$358,$E$358,IF($E$1>=$A$357,$E$357,IF($E$1>=$A$356,$E$356,IF($E$1>=$A$355,$E$355,IF($E$1>=$A$354,$E$354)))))))) -> 0.18 | AE4: =IF($E$1>=$A$378,$E$378,IF($E$1>=$A$377,$E$377,IF($E$1>=$A$376,$E$376,IF($E$1>=$A$375,$E$375,IF($E$1>=$A$374,$E$374,IF($E$1>=$A$373,$E$373,IF($E$1>=$A$372,$E$372,IF($E$1>=$A$371,$E$371)))))))) -> 0.18 | AF4: =IF($E$1>=$A$378,$E$378,IF($E$1>=$A$377,$E$377,IF($E$1>=$A$376,$E$376,IF($E$1>=$A$375,$E$375,IF($E$1>=$A$374,$E$374,IF($E$1>=$A$373,$E$373,IF($E$1>=$A$372,$E$372,IF($E$1>=$A$371,$E$371)))))))) -> 0.18 | AG4: =IF($E$1>=$A$378,$E$378,IF($E$1>=$A$377,$E$377,IF($E$1>=$A$376,$E$376,IF($E$1>=$A$375,$E$375,IF($E$1>=$A$374,$E$374,IF($E$1>=$A$373,$E$373,IF($E$1>=$A$372,$E$372,IF($E$1>=$A$371,$E$371)))))))) -> 0.18 | AH4: =IF($E$1>=$A$395,$E$395,IF($E$1>=$A$394,$E$394,IF($E$1>=$A$393,$E$393,IF($E$1>=$A$392,$E$392,IF($E$1>=$A$391,$E$391,IF($E$1>=$A$390,$E$390,IF($E$1>=$A$389,$E$389,IF($E$1>=$A$388,$E$388)))))))) -> 0.18
G5: Primere korting | I5: =IF('Standing info'!$C$7=0,0,HLOOKUP($I$1,$J$1:AH5,5)) -> 0 | J5: =E24 -> 4860 | K5: =E41 -> 5400 | L5: =E58 -> 5800 | M5: =E75 -> 6300 | N5: =E92 -> 7200 | O5: =E109 -> 7740 | P5: =E126 -> 8280 | Q5: =E143 -> 9756 | R5: =E160 -> 10260 | S5: =E177 -> 10755 | T5: =E194 -> 11440 | U5: =E211 -> 12080 | V5: =E228 -> 12726 | W5: =E245 -> 13257 | X5: =E262 -> 13500 | Y5: =E279 -> 13635 | Z5: =E296 -> 14067 | AA5: =E313 -> 14220 | AB5: =E330 -> 14958 | AC5: =E347 -> 15714 | AD5: =E364 -> 16425 | AE5: =E381 -> 17235 | AF5: =E381 -> 17235 | AG5: =E381 -> 17235 | AH5: =E398 -> 17820
G6: Sekondere korting | I6: =IF('Standing info'!$C$7=0,0,HLOOKUP($I$1,$J$1:AH6,6)) -> 0 | J6: =E25 -> 3000 | K6: =E42 -> 3100 | L6: =E59 -> 3200 | M6: =E76 -> 4500 | N6: =E93 -> 4500 | O6: =E110 -> 4680 | P6: =E127 -> 5040 | Q6: =E144 -> 5400 | R6: =E161 -> 5675 | S6: =E178 -> 6012 | T6: =E195 -> 6390 | U6: =E212 -> 6750 | V6: =E229 -> 7110 | W6: =E246 -> 7407 | X6: =E263 -> 7407 | Y6: =E280 -> 7479 | Z6: =E297 -> 7713 | AA6: =E314 -> 7794 | AB6: =E331 -> 8199 | AC6: =E348 -> 8613 | AD6: =E365 -> 9000 | AE6: =E382 -> 9444 | AF6: =E382 -> 9444 | AG6: =E382 -> 9444 | AH6: =E399 -> 9765
G7: Tersiere korting | I7: =IF('Standing info'!$C$7=0,0,HLOOKUP($I$1,$J$1:AH7,7)) -> 0 | S7: =E179 -> 2000 | T7: =E196 -> 2130 | U7: =E213 -> 2250 | V7: =E230 -> 2367 | W7: =E247 -> 2466 | X7: =E264 -> 2466 | Y7: =E281 -> 2493 | Z7: =E298 -> 2574 | AA7: =E315 -> 2601 | AB7: =E332 -> 2736 | AC7: =E349 -> 2871 | AD7: =E366 -> 2997 | AE7: =E383 -> 3145 | AF7: =E383 -> 3145 | AG7: =E383 -> 3145 | AH7: =E400 -> 3249
G8: Rentevrystelling | I8: =IF('Standing info'!$C$7=0,0,HLOOKUP($I$1,$J$1:AH8,8)) -> 0 | J8: 6000 | K8: 10000 | L8: 11000 | M8: 15000 | N8: 16500 | O8: 18000 | P8: 19000 | Q8: 21000 | R8: 22300 | S8: 22800 | T8: 22800 | U8: 23800 | V8: 23800 | W8: 23800 | X8: 23800 | Y8: 23800 | Z8: 23800 | AA8: 23800 | AB8: 23800 | AC8: 23800 | AD8: 23800 | AE8: 23800 | AF8: 23800 | AG8: 23800 | AH8: 23800
G9: Rentevrystelling - 65 en ouer | I9: =IF('Standing info'!$C$7=0,0,HLOOKUP($I$1,$J$1:AH9,9)) -> 0 | J9: 10000 | K9: 15000 | L9: 16000 | M9: 22000 | N9: 24500 | O9: 26000 | P9: 27500 | Q9: 30000 | R9: 32000 | S9: 33000 | T9: 33000 | U9: 34500 | V9: 34500 | W9: 34500 | X9: 34500 | Y9: 34500 | Z9: 34500 | AA9: 34500 | AB9: 34500 | AC9: 34500 | AD9: 34500 | AE9: 34500 | AF9: 34500 | AG9: 34500 | AH9: 34500
A10: 2003 | G10: KWB-Jaarlikse uitsluiting | I10: =IF('Standing info'!H23=TRUE,'Tax tables & variables'!I12,'Tax tables & variables'!I11) -> 0
G11: KWB-Jaarlikse uitsluiting standaard | I11: =IF('Standing info'!$C$7=0,0,HLOOKUP($I$1,$J$1:AH11,11)) -> 0 | J11: =IF('Standing info'!$H$23=TRUE,50000,10000) -> 10000 | K11: =IF('Standing info'!$H$23=TRUE,50000,10000) -> 10000 | L11: =IF('Standing info'!$H$23=TRUE,50000,10000) -> 10000 | M11: =IF('Standing info'!$H$23=TRUE,50000,10000) -> 10000 | N11: =IF('Standing info'!$H$23=TRUE,60000,12500) -> 12500 | O11: =IF('Standing info'!$H$23=TRUE,120000,15000) -> 15000 | P11: =IF('Standing info'!$H$23=TRUE,120000,16000) -> 16000 | Q11: 17500 | R11: 17500 | S11: 20000 | T11: 30000 | U11: 30000 | V11: 30000 | W11: 30000 | X11: 40000 | Y11: 40000 | Z11: 40000 | AA11: 40000 | AB11: 40000 | AC11: 40000 | AD11: 40000 | AE11: 40000 | AF11: 40000 | AG11: 40000 | AH11: 50000
A12: INKOMSTE | D12: BELASTINGKOERSE | G12: KWB-Jaarlikse uitsluiting in jaar van afsterwe | I12: =IF('Standing info'!$C$7=0,0,HLOOKUP($I$1,$J$1:AH12,12)) -> 0 | M12: 50000 | N12: 60000 | O12: 60000 | P12: 120000 | Q12: 120000 | R12: 120000 | S12: 200000 | T12: 300000 | U12: 300000 | V12: 300000 | W12: 300000 | X12: 300000 | Y12: 300000 | Z12: 300000 | AA12: 300000 | AB12: 300000 | AC12: 300000 | AD12: 300000 | AE12: 300000 | AF12: 300000 | AG12: 300000 | AH12: 440000
G13: KWB-Jaarlikse korting op primere woning | I13: =IF('Standing info'!$C$7=0,0,HLOOKUP($I$1,$J$1:AH13,13)) -> 0 | J13: 1000000 | K13: 1000000 | L13: 1000000 | M13: 1000000 | N13: 1500000 | O13: 1500000 | P13: 1500000 | Q13: 1500000 | R13: 1500000 | S13: 1500000 | T13: 2000000 | U13: 2000000 | V13: 2000000 | W13: 2000000 | X13: 2000000 | Y13: 2000000 | Z13: 2000000 | AA13: 2000000 | AB13: 2000000 | AC13: 2000000 | AD13: 2000000 | AE13: 2000000 | AF13: 2000000 | AG13: 2000000 | AH13: 3000000
A14: 0 | B14: 40000 | C14: =A14 -> 0 | D14: 0 | E14: 0.18 | G14: KWB-Geen KWB op primêre woning indien opbrengs kleiner is as | I14: =IF('Standing info'!$C$7=0,0,HLOOKUP($I$1,$J$1:AH14,14)) -> 0 | Q14: 2000000 | R14: 2000000 | S14: 2000000 | T14: 2000000 | U14: 2000000 | V14: 2000000 | W14: 2000000 | X14: 2000000 | Y14: 2000000 | Z14: 2000000 | AA14: 2000000 | AB14: 2000000 | AC14: 2000000 | AD14: 2000000 | AE14: 2000000 | AF14: 2000000 | AG14: 2000000 | AH14: 2000000
A15: 40001 | B15: 80000 | C15: =A15-1 -> 40000 | D15: 7200 | E15: 0.25 | G15: KWB-Insluitingskoers | I15: =IF('Standing info'!$C$7=0,0,HLOOKUP($I$1,$J$1:AH15,15)) -> 0 | J15: 0.25 | K15: 0.25 | L15: 0.25 | M15: 0.25 | N15: 0.25 | O15: 0.25 | P15: 0.25 | Q15: 0.25 | R15: 0.25 | S15: 0.25 | T15: 0.333 | U15: 0.333 | V15: 0.333 | W15: 0.333 | X15: 0.4 | Y15: 0.4 | Z15: 0.4 | AA15: 0.4 | AB15: 0.4 | AC15: 0.4 | AD15: 0.4 | AE15: 0.4 | AF15: 0.4 | AG15: 0.4 | AH15: 0.4
A16: 80001 | B16: 110000 | C16: 80000 | D16: 17200 | E16: 0.3 | G16: Rente & div vrystelling | I16: =IF('Standing info'!$C$7=0,0,HLOOKUP($I$1,$J$1:AH16,16)) -> 0 | J16: 6000 | K16: 10000 | L16: 11000 | M16: 15000 | N16: 16500 | O16: 18000 | P16: 19000 | Q16: 21000 | R16: 22300 | S16: 22800 | T16: 22800 | U16: 23800 | V16: 23800 | W16: 23800 | X16: 23800 | Y16: 23800 | Z16: 23800 | AA16: 23800 | AB16: 23800 | AC16: 23800 | AD16: 23800 | AE16: 23800 | AF16: 23800 | AG16: 23800 | AH16: 23800
A17: 110001 | B17: 170000 | C17: 110000 | D17: 26200 | E17: 0.35 | G17: Rente & div vrystelling - 65 en ouer | I17: =IF('Standing info'!$C$7=0,0,HLOOKUP($I$1,$J$1:AH17,17)) -> 0 | J17: 10000 | K17: 15000 | L17: 16000 | M17: 22000 | N17: 24500 | O17: 26000 | P17: 27500 | Q17: 30000 | R17: 32000 | S17: 33000 | T17: 33000 | U17: 34500 | V17: 34500 | W17: 34500 | X17: 34500 | Y17: 34500 | Z17: 34500 | AA17: 34500 | AB17: 34500 | AC17: 34500 | AD17: 34500 | AE17: 34500 | AF17: 34500 | AG17: 34500 | AH17: 34500
A18: 170001 | B18: 240000 | C18: 170000 | D18: 47200 | E18: 0.38 | G18: Buitelandse rente & div maks vrystelling | I18: =IF('Standing info'!$C$7=0,0,HLOOKUP($I$1,$J$1:AH18,18)) -> 0 | J18: 1000 | K18: 1000 | L18: 1000 | M18: 2000 | N18: 2500 | O18: 3000 | P18: 3200 | Q18: 3500 | R18: 3700 | S18: 3700 | T18: ='Calculation of taxable income'!$E$77*25/40 -> 0 | U18: ='Calculation of taxable income'!$E$77*25/40 -> 0 | V18: ='Calculation of taxable income'!$E$77*25/40 -> 0 | W18: ='Calculation of taxable income'!$E$77*26/41 -> 0 | X18: ='Calculation of taxable income'!$E$77*26/41 -> 0 | Y18: ='Calculation of taxable income'!$E$77*25/45 -> 0 | Z18: ='Calculation of taxable income'!$E$77*25/45 -> 0 | AA18: ='Calculation of taxable income'!$E$77*25/45 -> 0 | AB18: ='Calculation of taxable income'!$E$77*25/45 -> 0 | AC18: ='Calculation of taxable income'!$E$77*25/45 -> 0 | AD18: ='Calculation of taxable income'!$E$77*25/45 -> 0 | AE18: ='Calculation of taxable income'!$E$77*25/45 -> 0 | AF18: ='Calculation of taxable income'!$E$77*25/45 -> 0 | AG18: ='Calculation of taxable income'!$E$77*25/45 -> 0 | AH18: ='Calculation of taxable income'!$E$77*25/45 -> 0
A19: 240001 | B19: 99999999 | C19: 240000 | D19: 73800 | E19: 0.4 | G19: Voertuig 1 - vaste koste | I19: =IF('Standing info'!$C$7=0,0,HLOOKUP($I$1,$J$1:AH19,19)) -> 0 | J19: =$K$101 -> 0 | K19: =$K$101 -> 0 | L19: =$K$101 -> 0 | M19: =$K$211 -> 0 | N19: =$K$238 -> 0 | O19: =$K$238 -> 0 | P19: =$K$265 -> 0 | Q19: =$K$265 -> 0 | R19: =$K$265 -> 0 | S19: =$K$285 -> 0 | T19: =$K$304 -> 0 | U19: =$K$323 -> 0 | V19: =$K$342 -> 0 | W19: =$K$361 -> 0 | X19: =$K$381 -> 0 | Y19: =$K$401 -> 0 | Z19: =$K$421 -> 0 | AA19: =$K$421 -> 0 | AB19: =$K$441 -> 0 | AC19: =$K$461 -> 0 | AD19: =$K$481 -> 0 | AE19: =$K$501 -> 0 | AF19: =$K$521 -> 0 | AG19: =$K$541 -> 0 | AH19: =$K$561 -> 0
A20: 99999999 | B20: 99999999 | C20: 99999998 | G20: Voertuig 1 - brandstofkoste | I20: =IF('Standing info'!$C$7=0,0,HLOOKUP($I$1,$J$1:AH20,20)) -> 0 | J20: =$L$101 -> 0 | K20: =$L$101 -> 0 | L20: =$L$101 -> 0 | M20: =$L$211 -> 0 | N20: =$L$238 -> 0 | O20: =$L$238 -> 0 | P20: =$L$265 -> 0 | Q20: =$L$265 -> 0 | R20: =$L$265 -> 0 | S20: =$L$285 -> 0 | T20: =$L$304 -> 0 | U20: =$L$323 -> 0 | V20: =$L$342 -> 0 | W20: =$L$361 -> 0 | X20: =$L$381 -> 0 | Y20: =$L$401 -> 0 | Z20: =$L$421 -> 0 | AA20: =$L$421 -> 0 | AB20: =$L$441 -> 0 | AC20: =$L$461 -> 0 | AD20: =$L$481 -> 0 | AE20: =$L$501 -> 0 | AF20: =$L$521 -> 0 | AG20: =$L$541 -> 0 | AH20: =$L$561 -> 0
G21: Voertuig 1 - onderhoudskoste | I21: =IF('Standing info'!$C$7=0,0,HLOOKUP($I$1,$J$1:AH21,21)) -> 0 | J21: =$M$101 -> 0 | K21: =$M$101 -> 0 | L21: =$M$101 -> 0 | M21: =$M$211 -> 0 | N21: =$M$238 -> 0 | O21: =$M$238 -> 0 | P21: =$M$265 -> 0 | Q21: =$M$265 -> 0 | R21: =$M$265 -> 0 | S21: =$M$285 -> 0 | T21: =$M$304 -> 0 | U21: =$M$323 -> 0 | V21: =$M$342 -> 0 | W21: =$M$361 -> 0 | X21: =$M$381 -> 0 | Y21: =$M$401 -> 0 | Z21: =$M$421 -> 0 | AA21: =$M$421 -> 0 | AB21: =$M$441 -> 0 | AC21: =$M$461 -> 0 | AD21: =$M$481 -> 0 | AE21: =$M$501 -> 0 | AF21: =$M$521 -> 0 | AG21: =$M$541 -> 0 | AH21: =$M$561 -> 0
A22: KORTINGS | G22: Voertuig 2 - vaste koste | I22: =IF('Standing info'!$C$7=0,0,HLOOKUP($I$1,$J$1:AH22,22)) -> 0 | J22: =$K$102 -> 0 | K22: =$K$102 -> 0 | L22: =$K$102 -> 0 | M22: =$K$212 -> 0 | N22: =$K$239 -> 0 | O22: =$K$239 -> 0 | P22: =$K$266 -> 0 | Q22: =$K$266 -> 0 | R22: =$K$266 -> 0 | S22: =$K$286 -> 0 | T22: =$K$305 -> 0 | U22: =$K$324 -> 0 | V22: =$K$343 -> 0 | W22: =$K$362 -> 0 | X22: =$K$382 -> 0 | Y22: =$K$402 -> 0 | Z22: =$K$422 -> 0 | AA22: =$K$422 -> 0 | AB22: =$K$442 -> 0 | AC22: =$K$462 -> 0 | AD22: =$K$482 -> 0 | AE22: =$K$502 -> 0 | AF22: =$K$522 -> 0 | AG22: =$K$542 -> 0 | AH22: =$K$562 -> 0
G23: Voertuig 2 - brandstofkoste | I23: =IF('Standing info'!$C$7=0,0,HLOOKUP($I$1,$J$1:AH23,23)) -> 0 | J23: =$L$102 -> 0 | K23: =$L$102 -> 0 | L23: =$L$102 -> 0 | M23: =$L$212 -> 0 | N23: =$L$239 -> 0 | O23: =$L$239 -> 0 | P23: =$L$266 -> 0 | Q23: =$L$266 -> 0 | R23: =$L$266 -> 0 | S23: =$L$286 -> 0 | T23: =$L$305 -> 0 | U23: =$L$324 -> 0 | V23: =$L$343 -> 0 | W23: =$L$362 -> 0 | X23: =$L$382 -> 0 | Y23: =$L$402 -> 0 | Z23: =$L$422 -> 0 | AA23: =$L$422 -> 0 | AB23: =$L$442 -> 0 | AC23: =$L$462 -> 0 | AD23: =$L$482 -> 0 | AE23: =$L$502 -> 0 | AF23: =$L$522 -> 0 | AG23: =$L$542 -> 0 | AH23: =$L$562 -> 0
A24: PRIMER | E24: 4860 | G24: Voertuig 2 - onderhoudskoste | I24: =IF('Standing info'!$C$7=0,0,HLOOKUP($I$1,$J$1:AH24,24)) -> 0 | J24: =$M$102 -> 0 | K24: =$M$102 -> 0 | L24: =$M$102 -> 0 | M24: =$M$212 -> 0 | N24: =$M$239 -> 0 | O24: =$M$239 -> 0 | P24: =$M$266 -> 0 | Q24: =$M$266 -> 0 | R24: =$M$266 -> 0 | S24: =$M$286 -> 0 | T24: =$M$305 -> 0 | U24: =$M$324 -> 0 | V24: =$M$343 -> 0 | W24: =$M$362 -> 0 | X24: =$M$382 -> 0 | Y24: =$M$402 -> 0 | Z24: =$M$422 -> 0 | AA24: =$M$422 -> 0 | AB24: =$M$442 -> 0 | AC24: =$M$462 -> 0 | AD24: =$M$482 -> 0 | AE24: =$M$502 -> 0 | AF24: =$M$522 -> 0 | AG24: =$M$542 -> 0 | AH24: =$M$562 -> 0
A25: SEKONDER | E25: 3000 | G25: Voertuig 3 - vaste koste | I25: =IF('Standing info'!$C$7=0,0,HLOOKUP($I$1,$J$1:AH25,25)) -> 0 | J25: 0 | K25: 0 | L25: 0 | M25: 0 | N25: 0 | O25: 0 | P25: 0 | Q25: 0 | R25: 0 | S25: 0 | T25: 0 | U25: 0 | V25: 0 | W25: =$K$363 -> 0 | X25: =$K$383 -> 0 | Y25: =$K$403 -> 0 | Z25: =$K$423 -> 0 | AA25: =$K$423 -> 0 | AB25: =$K$443 -> 0 | AC25: =$K$463 -> 0 | AD25: =$K$483 -> 0 | AE25: =$K$503 -> 0 | AF25: =$K$523 -> 0 | AG25: =$K$543 -> 0 | AH25: =$K$563 -> 0
G26: Voertuig 3 - brandstofkoste | I26: =IF('Standing info'!$C$7=0,0,HLOOKUP($I$1,$J$1:AH26,26)) -> 0 | J26: 0 | K26: 0 | L26: 0 | M26: 0 | N26: 0 | O26: 0 | P26: 0 | Q26: 0 | R26: 0 | S26: 0 | T26: 0 | U26: 0 | V26: 0 | W26: =$L$363 -> 0 | X26: =$L$383 -> 0 | Y26: =$L$403 -> 0 | Z26: =$L$423 -> 0 | AA26: =$L$423 -> 0 | AB26: =$L$443 -> 0 | AC26: =$L$463 -> 0 | AD26: =$L$483 -> 0 | AE26: =$L$503 -> 0 | AF26: =$L$523 -> 0 | AG26: =$L$543 -> 0 | AH26: =$L$563 -> 0
A27: 2004 | G27: Voertuig 3 - onderhoudskoste | I27: =IF('Standing info'!$C$7=0,0,HLOOKUP($I$1,$J$1:AH27,27)) -> 0 | J27: 0 | K27: 0 | L27: 0 | M27: 0 | N27: 0 | O27: 0 | P27: 0 | Q27: 0 | R27: 0 | S27: 0 | T27: 0 | U27: 0 | V27: 0 | W27: =$M$363 -> 0 | X27: =$M$383 -> 0 | Y27: =$M$403 -> 0 | Z27: =$M$423 -> 0 | AA27: =$M$423 -> 0 | AB27: =$M$443 -> 0 | AC27: =$M$463 -> 0 | AD27: =$M$483 -> 0 | AE27: =$M$503 -> 0 | AF27: =$M$523 -> 0 | AG27: =$M$543 -> 0 | AH27: =$M$563 -> 0
G28: Geagte privaat kilometers | I28: =IF('Standing info'!$C$7=0,0,HLOOKUP($I$1,$J$1:AH28,28)) -> 0 | J28: 14000 | K28: 14000 | L28: 14000 | M28: 16000 | N28: 18000 | O28: 18000 | P28: 18000 | Q28: 18000 | R28: 0 | S28: 0 | T28: 0 | U28: 0 | V28: 0 | W28: 0 | X28: 0 | Y28: 0 | Z28: 0 | AA28: 0 | AB28: 0 | AC28: 0 | AD28: 0 | AE28: 0 | AF28: 0 | AG28: 0 | AH28: 0
A29: INKOMSTE | D29: BELASTINGKOERSE | G29: Maks km per jaar | I29: =IF('Standing info'!$C$7=0,0,HLOOKUP($I$1,$J$1:AH29,29)) -> 0 | J29: 32000 | K29: 32000 | L29: 32000 | M29: 32000 | N29: 32000 | O29: 32000 | P29: 32000 | Q29: 32000 | R29: 0 | S29: 0 | T29: 0 | U29: 0 | V29: 0 | W29: 0 | X29: 0 | Y29: 0 | Z29: 0 | AA29: 0 | AB29: 0 | AC29: 0 | AD29: 0 | AE29: 0 | AF29: 0 | AG29: 0 | AH29: 0
A31: 0 | B31: 70000 | C31: =A31 -> 0 | D31: 0 | E31: 0.18 | G31: BTW Uitgesuit of ingesluit | I31: =IF('Standing info'!$C$7=0,0,HLOOKUP($I$1,$J$1:AH31,31)) -> 0 | J31: Uit | K31: Uit | L31: Uit | M31: Uit | N31: Uit | O31: Uit | P31: Uit | Q31: Uit | R31: Uit | S31: In | T31: In | U31: In | V31: In | W31: In | X31: In | Y31: In | Z31: In | AA31: In | AB31: In | AC31: In | AD31: In
A32: 70001 | B32: 110000 | C32: =A32-1 -> 70000 | D32: 12600 | E32: 0.25
A33: 110001 | B33: 140000 | C33: 110000 | D33: 22600 | E33: 0.3 | G33: Voertuig 1 - byvoordeelkoers in berekening gebruik | I33: =IF('Standing info'!$C$7=0,0,HLOOKUP($I$1,$J$1:AH33,33)) -> 0 | J33: 0.018 | K33: 0.018 | L33: 0.018 | M33: 0.018 | N33: 0.025 | O33: 0.025 | P33: 0.025 | Q33: 0.025 | R33: 0.025 | S33: =IF(S36="JA",S35,S34) -> 0.035 | T33: =IF(T36="JA",T35,T34) -> 0.035 | U33: =IF(U36="JA",U35,U34) -> 0.035 | V33: =IF(V36="JA",V35,V34) -> 0.035 | W33: =IF(W36="JA",W35,W34) -> 0.035 | X33: =IF(X36="JA",X35,X34) -> 0.035 | Y33: 0.035 | Z33: =IF(Z36="JA",Z35,Z34) -> 0.035 | AA33: 0.035 | AB33: 0.035 | AC33: 0.035 | AD33: =IF(AD36="JA",AD35,AD34) -> 0.035 | AE33: =IF(AE36="JA",AE35,AE34) -> 0.035 | AF33: =IF(AF36="JA",AF35,AF34) -> 0.035 | AG33: =IF(AG36="JA",AG35,AG34) -> 0.035 | AH33: =IF(AH36="JA",AH35,AH34) -> 0.035
A34: 140001 | B34: 180000 | C34: 140000 | D34: 31600 | E34: 0.35 | G34: Voertuig 1 - byvoordeelkoers voor diensplanaanpassing | I34: =IF('Standing info'!$C$7=0,0,HLOOKUP($I$1,$J$1:AH34,34)) -> 0 | S34: 0.035 | T34: 0.035 | U34: 0.035 | V34: 0.035 | W34: 0.035 | X34: 0.035 | Y34: 0.035 | Z34: 0.035 | AA34: 0.035 | AB34: 0.035 | AC34: 0.035 | AD34: 0.035 | AE34: 0.035 | AF34: 0.035 | AG34: 0.035 | AH34: 0.035
A35: 180001 | B35: 255000 | C35: 180000 | D35: 45600 | E35: 0.38 | G35: Voertuig 1 - byvoordeelkoers - indien diensplan van toepassing | I35: =IF('Standing info'!$C$7=0,0,HLOOKUP($I$1,$J$1:AH35,35)) -> 0 | S35: 0.0325 | T35: 0.0325 | U35: 0.0325 | V35: 0.0325 | W35: 0.0325 | X35: 0.0325 | Y35: 0.0325 | Z35: 0.0325 | AA35: 0.0325 | AB35: 0.0325 | AC35: 0.0325 | AD35: 0.0325 | AE35: 0.0325 | AF35: 0.0325 | AG35: 0.0325 | AH35: 0.0325
A36: 255001 | B36: 99999999 | C36: 255000 | D36: 74100 | E36: 0.4 | G36: Voertuig 1 - Diensplan van toepassing | I36: =IF('Standing info'!$C$7=0,0,HLOOKUP($I$1,$J$1:AH36,36)) -> 0 | S36: =IF(Schedules!$B$121="(Onderhoudsplan is van toepassing)","JA",IF(Schedules!$B$121="(Maintenance plan is applicable)","JA","NEE")) -> NEE | T36: =IF(Schedules!$B$121="(Onderhoudsplan is van toepassing)","JA",IF(Schedules!$B$121="(Maintenance plan is applicable)","JA","NEE")) -> NEE | U36: =IF(Schedules!$B$121="(Onderhoudsplan is van toepassing)","JA",IF(Schedules!$B$121="(Maintenance plan is applicable)","JA","NEE")) -> NEE | V36: =IF(Schedules!$B$121="(Onderhoudsplan is van toepassing)","JA",IF(Schedules!$B$121="(Maintenance plan is applicable)","JA","NEE")) -> NEE | W36: =IF(Schedules!$B$121="(Onderhoudsplan is van toepassing)","JA",IF(Schedules!$B$121="(Maintenance plan is applicable)","JA","NEE")) -> NEE | X36: =IF(Schedules!$B$121="(Onderhoudsplan is van toepassing)","JA",IF(Schedules!$B$121="(Maintenance plan is applicable)","JA","NEE")) -> NEE | Y36: =IF(Schedules!$B$121="(Onderhoudsplan is van toepassing)","JA",IF(Schedules!$B$121="(Maintenance plan is applicable)","JA","NEE")) -> NEE | Z36: =IF(Schedules!$B$121="(Onderhoudsplan is van toepassing)","JA",IF(Schedules!$B$121="(Maintenance plan is applicable)","JA","NEE")) -> NEE | AA36: =IF(Schedules!$B$121="(Onderhoudsplan is van toepassing)","JA",IF(Schedules!$B$121="(Maintenance plan is applicable)","JA","NEE")) -> NEE | AB36: =IF(Schedules!$B$121="(Onderhoudsplan is van toepassing)","JA",IF(Schedules!$B$121="(Maintenance plan is applicable)","JA","NEE")) -> NEE | AC36: =IF(Schedules!$B$121="(Onderhoudsplan is van toepassing)","JA",IF(Schedules!$B$121="(Maintenance plan is applicable)","JA","NEE")) -> NEE | AD36: =IF(Schedules!$B$121="(Onderhoudsplan is van toepassing)","JA",IF(Schedules!$B$121="(Maintenance plan is applicable)","JA","NEE")) -> NEE | AE36: =IF(Schedules!$B$121="(Onderhoudsplan is van toepassing)","JA",IF(Schedules!$B$121="(Maintenance plan is applicable)","JA","NEE")) -> NEE | AF36: =IF(Schedules!$B$121="(Onderhoudsplan is van toepassing)","JA",IF(Schedules!$B$121="(Maintenance plan is applicable)","JA","NEE")) -> NEE | AG36: =IF(Schedules!$B$121="(Onderhoudsplan is van toepassing)","JA",IF(Schedules!$B$121="(Maintenance plan is applicable)","JA","NEE")) -> NEE | AH36: =IF(Schedules!$B$121="(Onderhoudsplan is van toepassing)","JA",IF(Schedules!$B$121="(Maintenance plan is applicable)","JA","NEE")) -> NEE
A37: 99999999 | B37: 99999999 | C37: 99999998 | G37: Voertuig 1 - Brandstofkoers per privaat km (sent) | I37: =IF('Standing info'!$C$7=0,0,HLOOKUP($I$1,$J$1:AH37,37)) -> 0 | S37: =L287 -> 0 | T37: =L306 -> 0 | U37: =L325 -> 0 | V37: =L344 -> 0 | W37: =L364 -> 0 | X37: =L384 -> 0 | Y37: =L404 -> 0 | Z37: =L424 -> 0 | AA37: =L424 -> 0 | AB37: =L444 -> 0 | AC37: =L464 -> 0 | AD37: =L484 -> 0 | AE37: =L504 -> 0 | AF37: =L524 -> 0 | AG37: =L544 -> 0 | AH37: =L564 -> 0
A39: KORTINGS | G39: Voertuig 2 - byvoordeelkoers in berekening gebruik | I39: =IF('Standing info'!$C$7=0,0,HLOOKUP($I$1,$J$1:AH39,39)) -> 0 | J39: 0.04 | K39: 0.04 | L39: 0.04 | M39: 0.04 | N39: 0.04 | O39: 0.04 | P39: 0.04 | Q39: 0.04 | R39: 0.04 | S39: =IF(S42="JA",S41,S40) -> 0.035 | T39: =IF(T42="JA",T41,T40) -> 0.035 | U39: =IF(U42="JA",U41,U40) -> 0.035 | V39: =IF(V42="JA",V41,V40) -> 0.035 | W39: =IF(W42="JA",W41,W40) -> 0.035 | X39: =IF(X42="JA",X41,X40) -> 0.035 | Y39: 0.035 | Z39: =IF(Z42="JA",Z41,Z40) -> 0.035 | AA39: 0.035 | AB39: 0.035 | AC39: 0.035 | AD39: =IF(AD42="JA",AD41,AD40) -> 0.035 | AE39: 0.035 | AF39: =IF(AF42="JA",AF41,AF40) -> 0.035 | AG39: =IF(AG42="JA",AG41,AG40) -> 0.035 | AH39: =IF(AH42="JA",AH41,AH40) -> 0.035
G40: Voertuig 2 - byvoordeelkoers voor diensplanaanpassing | I40: =IF('Standing info'!$C$7=0,0,HLOOKUP($I$1,$J$1:AH40,40)) -> 0 | S40: 0.035 | T40: 0.035 | U40: 0.035 | V40: 0.035 | W40: 0.035 | X40: 0.035 | Y40: 0.035 | Z40: 0.035 | AA40: 0.035 | AB40: 0.035 | AC40: 0.035 | AD40: 0.035 | AE40: 0.035 | AF40: 0.035 | AG40: 0.035 | AH40: 0.035
A41: PRIMER | E41: 5400 | G41: Voertuig 2 - byvoordeelkoers - indien diensplan van toepassing | I41: =IF('Standing info'!$C$7=0,0,HLOOKUP($I$1,$J$1:AH41,41)) -> 0 | S41: 0.0325 | T41: 0.0325 | U41: 0.0325 | V41: 0.0325 | W41: 0.0325 | X41: 0.0325 | Y41: 0.0325 | Z41: 0.0325 | AA41: 0.0325 | AB41: 0.0325 | AC41: 0.0325 | AD41: 0.0325 | AE41: 0.0325 | AF41: 0.0325 | AG41: 0.0325 | AH41: 0.0325
A42: SEKONDER | E42: 3100 | G42: Voertuig 2 - Diensplan van toepassing | I42: =IF('Standing info'!$C$7=0,0,HLOOKUP($I$1,$J$1:AH42,42)) -> 0 | S42: =IF(Schedules!$B$156="(Onderhoudsplan is van toepassing)","JA",IF(Schedules!$B$156="(Maintenance plan is applicable)","JA","NEE")) -> NEE | T42: =IF(Schedules!$B$156="(Onderhoudsplan is van toepassing)","JA",IF(Schedules!$B$156="(Maintenance plan is applicable)","JA","NEE")) -> NEE | U42: =IF(Schedules!$B$156="(Onderhoudsplan is van toepassing)","JA",IF(Schedules!$B$156="(Maintenance plan is applicable)","JA","NEE")) -> NEE | V42: =IF(Schedules!$B$156="(Onderhoudsplan is van toepassing)","JA",IF(Schedules!$B$156="(Maintenance plan is applicable)","JA","NEE")) -> NEE | W42: =IF(Schedules!$B$156="(Onderhoudsplan is van toepassing)","JA",IF(Schedules!$B$156="(Maintenance plan is applicable)","JA","NEE")) -> NEE | X42: =IF(Schedules!$B$156="(Onderhoudsplan is van toepassing)","JA",IF(Schedules!$B$156="(Maintenance plan is applicable)","JA","NEE")) -> NEE | Y42: =IF(Schedules!$B$156="(Onderhoudsplan is van toepassing)","JA",IF(Schedules!$B$156="(Maintenance plan is applicable)","JA","NEE")) -> NEE | Z42: =IF(Schedules!$B$156="(Onderhoudsplan is van toepassing)","JA",IF(Schedules!$B$156="(Maintenance plan is applicable)","JA","NEE")) -> NEE | AA42: =IF(Schedules!$B$156="(Onderhoudsplan is van toepassing)","JA",IF(Schedules!$B$156="(Maintenance plan is applicable)","JA","NEE")) -> NEE | AB42: =IF(Schedules!$B$156="(Onderhoudsplan is van toepassing)","JA",IF(Schedules!$B$156="(Maintenance plan is applicable)","JA","NEE")) -> NEE | AC42: =IF(Schedules!$B$156="(Onderhoudsplan is van toepassing)","JA",IF(Schedules!$B$156="(Maintenance plan is applicable)","JA","NEE")) -> NEE | AD42: =IF(Schedules!$B$156="(Onderhoudsplan is van toepassing)","JA",IF(Schedules!$B$156="(Maintenance plan is applicable)","JA","NEE")) -> NEE | AE42: =IF(Schedules!$B$156="(Onderhoudsplan is van toepassing)","JA",IF(Schedules!$B$156="(Maintenance plan is applicable)","JA","NEE")) -> NEE | AF42: =IF(Schedules!$B$156="(Onderhoudsplan is van toepassing)","JA",IF(Schedules!$B$156="(Maintenance plan is applicable)","JA","NEE")) -> NEE | AG42: =IF(Schedules!$B$156="(Onderhoudsplan is van toepassing)","JA",IF(Schedules!$B$156="(Maintenance plan is applicable)","JA","NEE")) -> NEE | AH42: =IF(Schedules!$B$156="(Onderhoudsplan is van toepassing)","JA",IF(Schedules!$B$156="(Maintenance plan is applicable)","JA","NEE")) -> NEE
G43: Voertuig 2 - Brandstofkoers per privaat km (sent) | I43: =IF('Standing info'!$C$7=0,0,HLOOKUP($I$1,$J$1:AH43,43)) -> 0 | S43: =L288 -> 0 | T43: =L307 -> 0 | U43: =L326 -> 0 | V43: =L345 -> 0 | W43: =L365 -> 0 | X43: =L385 -> 0 | Y43: =L405 -> 0 | Z43: =L425 -> 0 | AA43: =L425 -> 0 | AB43: =L445 -> 0 | AC43: =L465 -> 0 | AD43: =L485 -> 0 | AE43: =L505 -> 0 | AF43: =L525 -> 0 | AG43: =L545 -> 0 | AH43: =L565 -> 0
A44: 2005
G45: Voertuie - Byvoordeel METODE | I45: =IF('Standing info'!$C$7=0,0,HLOOKUP($I$1,$J$1:AH45,45)) -> 0 | J45: 1 | K45: 1 | L45: 1 | M45: 1 | N45: 2 | O45: 2 | P45: 2 | Q45: 2 | R45: 2 | S45: 3 | T45: 3 | U45: 3 | V45: 3 | W45: 3 | X45: 3 | Y45: 3 | Z45: 3 | AA45: 3 | AB45: 3 | AC45: 3 | AD45: 3 | AE45: 3 | AF45: 3 | AG45: 3 | AH45: 3
A46: INKOMSTE | D46: BELASTINGKOERSE
A48: 0 | B48: 74000 | C48: =A48 -> 0 | D48: 0 | E48: 0.18 | G48: Voertuie - byvoordeel maandelikse brandstof korting | I48: =IF('Standing info'!$C$7=0,0,HLOOKUP($I$1,$J$1:AH48,48)) -> 0 | J48: 120 | K48: 120 | L48: 120 | M48: 120 | N48: 0 | O48: 0 | P48: 0 | Q48: 0 | R48: 0 | S48: 0 | T48: 0 | U48: 0 | V48: 0 | W48: 0 | X48: 0 | Y48: 0 | Z48: 0 | AA48: 0 | AB48: 0 | AC48: 0 | AD48: 0 | AE48: 0 | AF48: 0 | AG48: 0 | AH48: 0
A49: 74001 | B49: 115000 | C49: =A49-1 -> 74000 | D49: 13320 | E49: 0.25 | G49: Voertuie - byvoordeel maandelikse onderhoudskorting | I49: =IF('Standing info'!$C$7=0,0,HLOOKUP($I$1,$J$1:AH49,49)) -> 0 | J49: 85 | K49: 85 | L49: 85 | M49: 85 | N49: 0 | O49: 0 | P49: 0 | Q49: 0 | R49: 0 | S49: 0 | T49: 0 | U49: 0 | V49: 0 | W49: 0 | X49: 0 | Y49: 0 | Z49: 0 | AA49: 0 | AB49: 0 | AC49: 0 | AD49: 0 | AE49: 0 | AF49: 0 | AG49: 0 | AH49: 0
A50: 115001 | B50: 155000 | C50: 115000 | D50: 23570 | E50: 0.3 | G50: Voertuie - byvoordeel brandstof koersverminderings % | I50: =IF('Standing info'!$C$7=0,0,HLOOKUP($I$1,$J$1:AH50,50)) -> 0 | J50: 0 | K50: 0 | L50: 0 | M50: 0 | N50: 0.0022 | O50: 0.0022 | P50: 0.0022 | Q50: 0.0022 | R50: 0.0022 | S50: 0 | T50: 0 | U50: 0 | V50: 0 | W50: 0 | X50: 0 | Y50: 0 | Z50: 0 | AA50: 0 | AB50: 0 | AC50: 0 | AD50: 0 | AE50: 0 | AF50: 0 | AG50: 0 | AH50: 0
A51: 155001 | B51: 195000 | C51: 155000 | D51: 35570 | E51: 0.35 | G51: Voertuie - byvoordeel onderhouds koersverminderings % | I51: =IF('Standing info'!$C$7=0,0,HLOOKUP($I$1,$J$1:AH51,51)) -> 0 | J51: 0 | K51: 0 | L51: 0 | M51: 0 | N51: 0.0018 | O51: 0.0018 | P51: 0.0018 | Q51: 0.0018 | R51: 0.0018 | S51: 0 | T51: 0 | U51: 0 | V51: 0 | W51: 0 | X51: 0 | Y51: 0 | Z51: 0 | AA51: 0 | AB51: 0 | AC51: 0 | AD51: 0 | AE51: 0 | AF51: 0 | AG51: 0 | AH51: 0
A52: 195001 | B52: 270000 | C52: 195000 | D52: 49570 | E52: 0.38
A53: 270001 | B53: 99999999 | C53: 270000 | D53: 78070 | E53: 0.4
A54: 99999999 | B54: 99999999 | C54: 99999998 | G54: Pensioen, Voorsorg & Annuiteitsbydrae metode | I54: =IF('Standing info'!$C$7=0,0,HLOOKUP($I$1,$J$1:AH54,54)) -> 0 | J54: 1 | K54: 1 | L54: 1 | M54: 1 | N54: 1 | O54: 1 | P54: 1 | Q54: 1 | R54: 1 | S54: 1 | T54: 1 | U54: 1 | V54: 1 | W54: 1 | X54: 2 | Y54: 2 | Z54: 2 | AA54: 2 | AB54: 2 | AC54: 2 | AD54: 2 | AE54: 2 | AF54: 2 | AG54: 2 | AH54: 2
A56: KORTINGS | G56: Dae in jaar | I56: =IF('Standing info'!$C$7=0,1,HLOOKUP($I$1,$J$1:AH56,56)) -> 1 | J56: 365 | K56: 366 | L56: 365 | M56: 365 | N56: 365 | O56: 366 | P56: 365 | Q56: 365 | R56: 365 | S56: 366 | T56: 365 | U56: 365 | V56: 365 | W56: 366 | X56: 365 | Y56: 365 | Z56: 365 | AA56: 366 | AB56: 365 | AC56: 365 | AD56: 365 | AE56: 365 | AF56: 365 | AG56: 365 | AH56: 365
G57: Medies beperking persentasie | I57: =IF('Standing info'!$C$7=0,1,HLOOKUP($I$1,$J$1:AH57,57)) -> 1 | J57: 0.05 | K57: 0.05 | L57: 0.05 | M57: 0.05 | N57: 0.075 | O57: 0.075 | P57: 0.075 | Q57: 0.075 | R57: 0.075 | S57: 0.075 | T57: 0.075 | U57: 0.075 | V57: 0.075 | W57: 0.075 | X57: 0.075 | Y57: 0.075 | Z57: 0.075 | AA57: 0.075 | AB57: 0.075 | AC57: 0.075 | AD57: 0.075 | AE57: 0.075 | AF57: 0.075 | AG57: 0.075 | AH57: 0.075
A58: PRIMER | E58: 5800 | G58: Afhanklikes op fonds insluitend hooflid - Maart | H58: =Schedules!D567 -> 0 | I58: =IF('Standing info'!$C$7=0,1,HLOOKUP($I$1,$J$1:AH58,58)) -> 1 | J58: =SUMIF($H$71:$H$81,$H58,J$71:J$81) -> 0 | K58: =SUMIF($H$71:$H$81,$H58,K$71:K$81) -> 0 | L58: 0 | M58: 0 | N58: 0 | O58: 0 | P58: 0 | Q58: 0 | R58: 0 | S58: 0 | T58: 0 | U58: 0 | V58: 0 | W58: 0 | X58: 0 | Y58: 0 | Z58: 0 | AA58: =SUMIF($H$71:$H$81,$H58,AA$71:AA$81) -> 0 | AB58: 0 | AC58: 0 | AD58: =SUMIF($H$71:$H$81,$H58,AD$71:AD$81) -> 0 | AE58: =SUMIF($H$71:$H$81,$H58,AE$71:AE$81) -> 0 | AF58: =SUMIF($H$71:$H$81,$H58,AF$71:AF$81) -> 0 | AG58: =SUMIF($H$71:$H$81,$H58,AG$71:AG$81) -> 0 | AH58: =SUMIF($H$71:$H$81,$H58,AH$71:AH$81) -> 0
A59: SEKONDER | E59: 3200 | G59: Afhanklikes op fonds insluitend hooflid - April | H59: =Schedules!D568 -> 0 | I59: =IF('Standing info'!$C$7=0,1,HLOOKUP($I$1,$J$1:AH59,59)) -> 1 | J59: =SUMIF($H$71:$H$81,$H59,J$71:J$81) -> 0 | K59: 0 | L59: 0 | M59: 0 | N59: 0 | O59: 0 | P59: 0 | Q59: 0 | R59: 0 | S59: 0 | T59: 0 | U59: 0 | V59: 0 | W59: 0 | X59: 0 | Y59: 0 | Z59: 0 | AA59: 0 | AB59: 0 | AC59: 0 | AD59: 0 | AE59: 0 | AF59: 0 | AG59: 0 | AH59: 0
G60: Afhanklikes op fonds insluitend hooflid - Mei | H60: =Schedules!D569 -> 0 | I60: =IF('Standing info'!$C$7=0,1,HLOOKUP($I$1,$J$1:AH60,60)) -> 1 | J60: 0 | K60: 0 | L60: 0 | M60: 0 | N60: 0 | O60: 0 | P60: 0 | Q60: 0 | R60: 0 | S60: 0 | T60: 0 | U60: 0 | V60: 0 | W60: 0 | X60: 0 | Y60: 0 | Z60: 0 | AA60: 0 | AB60: 0 | AC60: 0 | AD60: 0 | AE60: 0 | AF60: 0 | AG60: 0 | AH60: 0
A61: 2006 | G61: Afhanklikes op fonds insluitend hooflid - Junie | H61: =Schedules!D570 -> 0 | I61: =IF('Standing info'!$C$7=0,1,HLOOKUP($I$1,$J$1:AH61,61)) -> 1 | J61: 0 | K61: 0 | L61: 0 | M61: 0 | N61: 0 | O61: 0 | P61: 0 | Q61: 0 | R61: 0 | S61: 0 | T61: 0 | U61: 0 | V61: 0 | W61: 0 | X61: 0 | Y61: 0 | Z61: 0 | AA61: 0 | AB61: 0 | AC61: 0 | AD61: 0 | AE61: 0 | AF61: 0 | AG61: 0 | AH61: 0
G62: Afhanklikes op fonds insluitend hooflid - Julie | H62: =Schedules!D571 -> 0 | I62: =IF('Standing info'!$C$7=0,1,HLOOKUP($I$1,$J$1:AH62,62)) -> 1 | J62: 0 | K62: 0 | L62: 0 | M62: 0 | N62: 0 | O62: 0 | P62: 0 | Q62: 0 | R62: 0 | S62: 0 | T62: 0 | U62: 0 | V62: 0 | W62: 0 | X62: 0 | Y62: 0 | Z62: 0 | AA62: 0 | AB62: 0 | AC62: 0 | AD62: 0 | AE62: 0 | AF62: 0 | AG62: 0 | AH62: 0
A63: INKOMSTE | D63: BELASTINGKOERSE | G63: Afhanklikes op fonds insluitend hooflid - Augustus | H63: =Schedules!D572 -> 0 | I63: =IF('Standing info'!$C$7=0,1,HLOOKUP($I$1,$J$1:AH63,63)) -> 1 | J63: 0 | K63: 0 | L63: 0 | M63: 0 | N63: 0 | O63: 0 | P63: 0 | Q63: 0 | R63: 0 | S63: 0 | T63: 0 | U63: 0 | V63: 0 | W63: 0 | X63: 0 | Y63: 0 | Z63: 0 | AA63: 0 | AB63: 0 | AC63: 0 | AD63: 0 | AE63: 0 | AF63: 0 | AG63: 0 | AH63: 0
G64: Afhanklikes op fonds insluitend hooflid - September | H64: =Schedules!D573 -> 0 | I64: =IF('Standing info'!$C$7=0,1,HLOOKUP($I$1,$J$1:AH64,64)) -> 1 | J64: 0 | K64: 0 | L64: 0 | M64: 0 | N64: 0 | O64: 0 | P64: 0 | Q64: 0 | R64: 0 | S64: 0 | T64: 0 | U64: 0 | V64: 0 | W64: 0 | X64: 0 | Y64: 0 | Z64: 0 | AA64: 0 | AB64: 0 | AC64: 0 | AD64: 0 | AE64: 0 | AF64: 0 | AG64: 0 | AH64: 0
A65: 0 | B65: 80000 | C65: =A65 -> 0 | D65: 0 | E65: 0.18 | G65: Afhanklikes op fonds insluitend hooflid - Oktober | H65: =Schedules!D574 -> 0 | I65: =IF('Standing info'!$C$7=0,1,HLOOKUP($I$1,$J$1:AH65,65)) -> 1 | J65: 0 | K65: 0 | L65: 0 | M65: 0 | N65: 0 | O65: 0 | P65: 0 | Q65: 0 | R65: 0 | S65: 0 | T65: 0 | U65: 0 | V65: 0 | W65: 0 | X65: 0 | Y65: 0 | Z65: 0 | AA65: 0 | AB65: 0 | AC65: 0 | AD65: 0 | AE65: 0 | AF65: 0 | AG65: 0 | AH65: =SUMIF($H$71:$H$81,$H65,AH$71:AH$81) -> 0
A66: 80001 | B66: 130000 | C66: =A66-1 -> 80000 | D66: 14400 | E66: 0.25 | G66: Afhanklikes op fonds insluitend hooflid - November | H66: =Schedules!D575 -> 0 | I66: =IF('Standing info'!$C$7=0,1,HLOOKUP($I$1,$J$1:AH66,66)) -> 1 | J66: 0 | K66: 0 | L66: 0 | M66: 0 | N66: 0 | O66: 0 | P66: 0 | Q66: 0 | R66: 0 | S66: 0 | T66: 0 | U66: 0 | V66: 0 | W66: 0 | X66: 0 | Y66: 0 | Z66: 0 | AA66: 0 | AB66: 0 | AC66: 0 | AD66: 0 | AE66: 0 | AF66: 0 | AG66: 0 | AH66: 0
A67: 130001 | B67: 180000 | C67: 130000 | D67: 26900 | E67: 0.3 | G67: Afhanklikes op fonds insluitend hooflid - Desember | H67: =Schedules!D576 -> 0 | I67: =IF('Standing info'!$C$7=0,1,HLOOKUP($I$1,$J$1:AH67,67)) -> 1 | J67: 0 | K67: 0 | L67: 0 | M67: 0 | N67: 0 | O67: 0 | P67: 0 | Q67: 0 | R67: 0 | S67: 0 | T67: 0 | U67: 0 | V67: 0 | W67: 0 | X67: 0 | Y67: 0 | Z67: 0 | AA67: 0 | AB67: 0 | AC67: 0 | AD67: 0 | AE67: 0 | AF67: 0 | AG67: 0 | AH67: 0
A68: 180001 | B68: 230000 | C68: 180000 | D68: 41900 | E68: 0.35 | G68: Afhanklikes op fonds insluitend hooflid - Januarie | H68: =Schedules!D577 -> 0 | I68: =IF('Standing info'!$C$7=0,1,HLOOKUP($I$1,$J$1:AH68,68)) -> 1 | J68: 0 | K68: 0 | L68: 0 | M68: 0 | N68: 0 | O68: 0 | P68: 0 | Q68: 0 | R68: 0 | S68: 0 | T68: 0 | U68: 0 | V68: 0 | W68: 0 | X68: 0 | Y68: 0 | Z68: 0 | AA68: 0 | AB68: 0 | AC68: 0 | AD68: 0 | AE68: 0 | AF68: 0 | AG68: 0 | AH68: 0
A69: 230001 | B69: 300000 | C69: 230000 | D69: 59400 | E69: 0.38 | G69: Afhanklikes op fonds insluitend hooflid - Februarie | H69: =Schedules!D578 -> 0 | I69: =IF('Standing info'!$C$7=0,1,HLOOKUP($I$1,$J$1:AH69,69)) -> 1 | J69: 0 | K69: 0 | L69: 0 | M69: 0 | N69: 0 | O69: 0 | P69: 0 | Q69: 0 | R69: 0 | S69: 0 | T69: 0 | U69: 0 | V69: 0 | W69: 0 | X69: 0 | Y69: 0 | Z69: 0 | AA69: 0 | AB69: 0 | AC69: 0 | AD69: 0 | AE69: 0 | AF69: 0 | AG69: 0 | AH69: 0
A70: 300001 | B70: 99999999 | C70: 300000 | D70: 86000 | E70: 0.4 | G70: Metode | I70: =IF('Standing info'!$C$7=0,0,HLOOKUP($I$1,$J$1:AH70,70)) -> 0 | T70: Tax CT | U70: Tax CT | V70: Tax CT | W70: Tax CT | X70: Tax CT | Y70: Tax CT | Z70: Tax CT | AA70: Tax CT | AB70: Tax CT | AC70: Tax CT | AD70: Tax CT | AE70: Tax CT | AF70: Tax CT | AG70: Tax CT | AH70: Tax CT
A71: 99999999 | B71: 99999999 | C71: 99999998 | G71: Capped bedrag (kumulatief) - hooflid | H71: 1 | J71: 0 | K71: 0 | L71: 0 | M71: 0 | N71: 500 | O71: 530 | P71: 570 | Q71: 625 | R71: 670 | S71: 720 | T71: 230 | U71: 242 | V71: 257 | W71: 270 | X71: 286 | Y71: 303 | Z71: 310 | AA71: 310 | AB71: 319 | AC71: 332 | AD71: 347 | AE71: 364 | AF71: 364 | AG71: 364 | AH71: 376
G72: Capped bedrag (kumulatief) - Afhanklike 1 | H72: 2 | J72: 0 | K72: 0 | L72: 0 | M72: 0 | N72: =N71+500 -> 1000 | O72: =O71+530 -> 1060 | P72: =P71+570 -> 1140 | Q72: =Q71+625 -> 1250 | R72: =R71+670 -> 1340 | S72: =S71+720 -> 1440 | T72: =T71+230 -> 460 | U72: =U71+242 -> 484 | V72: =V71+257 -> 514 | W72: =W71+270 -> 540 | X72: =X71+286 -> 572 | Y72: =Y71+303 -> 606 | Z72: =Z71+310 -> 620 | AA72: =AA71+310 -> 620 | AB72: =AB71+319 -> 638 | AC72: =AC71+332 -> 664 | AD72: =AD71+347 -> 694 | AE72: =AE71+364 -> 728 | AF72: =AF71+364 -> 728 | AG72: =AG71+364 -> 728 | AH72: =AH71+376 -> 752
A73: KORTINGS | G73: Capped bedrag (kumulatief) - Afhanklike 2 | H73: 3 | J73: 0 | K73: 0 | L73: 0 | M73: 0 | N73: =N72+300 -> 1300 | O73: =O72+320 -> 1380 | P73: =P72+345 -> 1485 | Q73: =Q72+380 -> 1630 | R73: =R72+410 -> 1750 | S73: =S72+440 -> 1880 | T73: =T72+154 -> 614 | U73: =U72+162 -> 646 | V73: =V72+172 -> 686 | W73: =W72+181 -> 721 | X73: =X72+192 -> 764 | Y73: =Y72+204 -> 810 | Z73: =Z72+209 -> 829 | AA73: =AA72+209 -> 829 | AB73: =AB72+215 -> 853 | AC73: =AC72+224 -> 888 | AD73: =AD72+234 -> 928 | AE73: =AE72+246 -> 974 | AF73: =AF72+246 -> 974 | AG73: =AG72+246 -> 974 | AH73: =AH72+254 -> 1006
G74: Capped bedrag (kumulatief) - Afhanklike 3 | H74: 4 | J74: 0 | K74: 0 | L74: 0 | M74: 0 | N74: =N73+300 -> 1600 | O74: 1700 | P74: =P73+345 -> 1830 | Q74: =Q73+380 -> 2010 | R74: =R73+410 -> 2160 | S74: 2320 | T74: =T73+154 -> 768 | U74: =U73+162 -> 808 | V74: =V73+172 -> 858 | W74: =W73+181 -> 902 | X74: =X73+192 -> 956 | Y74: =Y73+204 -> 1014 | Z74: 1038 | AA74: 1038 | AB74: =AB73+215 -> 1068 | AC74: =AC73+224 -> 1112 | AD74: 1162 | AE74: 1220 | AF74: 1220 | AG74: 1220 | AH74: =AH73+254 -> 1260
A75: PRIMER | E75: 6300 | G75: Capped bedrag (kumulatief) - Afhanklike 4 | H75: 5 | J75: 0 | K75: 0 | L75: 0 | M75: 0 | N75: 1900 | O75: 2020 | P75: 2175 | Q75: 2390 | R75: 2570 | S75: 2760 | T75: 922 | U75: 970 | V75: 1030 | W75: 1083 | X75: 1148 | Y75: 1218 | Z75: 1247 | AA75: 1247 | AB75: 1283 | AC75: 1336 | AD75: 1396 | AE75: 1466 | AF75: 1466 | AG75: 1466 | AH75: 1514
A76: SEKONDER | E76: 4500 | G76: Capped bedrag (kumulatief) - Afhanklike 5 | H76: 6 | J76: 0 | K76: 0 | L76: 0 | M76: 0 | N76: 2200 | O76: 2340 | P76: 2520 | Q76: 2770 | R76: 2980 | S76: 3200 | T76: 1076 | U76: 1132 | V76: 1202 | W76: 1264 | X76: 1340 | Y76: 1422 | Z76: 1456 | AA76: 1456 | AB76: 1498 | AC76: 1560 | AD76: 1630 | AE76: 1712 | AF76: 1712 | AG76: 1712 | AH76: 1768
G77: Capped bedrag (kumulatief) - Afhanklike 6 | H77: 7 | J77: 0 | K77: 0 | L77: 0 | M77: 0 | N77: 2500 | O77: 2660 | P77: 2865 | Q77: 3150 | R77: 3390 | S77: 3640 | T77: 1230 | U77: 1294 | V77: 1374 | W77: 1445 | X77: 1532 | Y77: 1626 | Z77: 1665 | AA77: 1665 | AB77: 1713 | AC77: 1784 | AD77: 1864 | AE77: 1958 | AF77: 1958 | AG77: 1958 | AH77: 2022
A78: 2007 | G78: Capped bedrag (kumulatief) - Afhanklike 7 | H78: 8 | J78: 0 | K78: 0 | L78: 0 | M78: 0 | N78: 2800 | O78: 2980 | P78: 3210 | Q78: 3530 | R78: 3800 | S78: 4080 | T78: 1384 | U78: 1456 | V78: 1546 | W78: 1626 | X78: 1724 | Y78: 1830 | Z78: 1874 | AA78: 1874 | AB78: 1928 | AC78: 2008 | AD78: 2098 | AE78: 2204 | AF78: 2204 | AG78: 2204 | AH78: 2276
G79: Capped bedrag (kumulatief) - Afhanklike 8 | H79: 9 | J79: 0 | K79: 0 | L79: 0 | M79: 0 | N79: 3100 | O79: 3300 | P79: 3555 | Q79: 3910 | R79: 4210 | S79: 4520 | T79: 1538 | U79: 1618 | V79: 1718 | W79: 1807 | X79: 1916 | Y79: 2034 | Z79: 2083 | AA79: 2083 | AB79: 2143 | AC79: 2232 | AD79: 2332 | AE79: 2450 | AF79: 2450 | AG79: 2450 | AH79: 2530
A80: INKOMSTE | D80: BELASTINGKOERSE | G80: Capped bedrag (kumulatief) - Afhanklike 9 | H80: 10 | J80: 0 | K80: 0 | L80: 0 | M80: 0 | N80: 3400 | O80: 3620 | P80: 3900 | Q80: 4290 | R80: 4620 | S80: 4960 | T80: 1692 | U80: 1780 | V80: 1890 | W80: 1988 | X80: 2108 | Y80: 2238 | Z80: 2292 | AA80: 2292 | AB80: 2358 | AC80: 2456 | AD80: 2566 | AE80: 2696 | AF80: 2696 | AG80: 2696 | AH80: 2784
G81: Capped bedrag (kumulatief) - Afhanklike 10 | H81: 11 | J81: 0 | K81: 0 | L81: 0 | M81: 0 | N81: 3700 | O81: 3940 | P81: 4245 | Q81: 4670 | R81: 5030 | S81: 5400 | T81: 1846 | U81: 1942 | V81: 2062 | W81: 2169 | X81: 2300 | Y81: 2442 | Z81: 2501 | AA81: 2501 | AB81: 2573 | AC81: 2680 | AD81: 2800 | AE81: 2942 | AF81: 2942 | AG81: 2942 | AH81: 3038
A82: 0 | B82: 100000 | C82: =A82 -> 0 | D82: 0 | E82: 0.18 | G82: Aantal maande aan fonds bygedra | I82: =COUNTIF(I58:I69,">0") -> 12
A83: 100001 | B83: 160000 | C83: =A83-1 -> 100000 | D83: 18000 | E83: 0.25 | G83: Capped bedrag totaal - vir doeleindes van berekening | I83: =IF('Standing info'!$C$7=0,0,HLOOKUP($I$1,$J$1:AH83,83)) -> 0 | N83: =SUM($I$58:$I$69) -> 12 | O83: 12 | P83: 12 | Q83: 12 | R83: 12 | S83: 12
A84: 160001 | B84: 220000 | C84: 160000 | D84: 33000 | E84: 0.3 | G84: Mediese Tax Credit vir berekening | I84: =IF('Standing info'!$C$7=0,0,HLOOKUP($I$1,$J$1:AH84,84)) -> 0 | T84: =SUM($I$58:$I$69) -> 12 | U84: =SUM($I$58:$I$69) -> 12 | V84: =SUM($I$58:$I$69) -> 12 | W84: =SUM($I$58:$I$69) -> 12 | X84: =SUM($I$58:$I$69) -> 12 | Y84: 12 | Z84: =SUM($I$58:$I$69) -> 12 | AA84: 12 | AB84: 12 | AC84: 12 | AD84: 12 | AE84: 12 | AF84: =SUM($I$58:$I$69) -> 12 | AG84: =SUM($I$58:$I$69) -> 12 | AH84: =SUM($I$58:$I$69) -> 12
A85: 220001 | B85: 300000 | C85: 220000 | D85: 51000 | E85: 0.35 | G85: Geagte bydrae deur werknemer (gelyk aan belasbare byvoordeel) | I85: =IF('Standing info'!$C$7=0,0,HLOOKUP($I$1,$J$1:AH85,85)) -> 0 | J85: 0 | K85: 0 | L85: 0 | M85: 0 | N85: =N86 -> 0 | O85: 0 | P85: 0 | Q85: 0 | R85: 0 | S85: 0 | T85: 0 | U85: 0 | V85: 0 | W85: 0 | X85: 0 | Y85: 0 | Z85: 0 | AA85: 0 | AB85: 0 | AC85: 0 | AD85: 0 | AE85: 0 | AF85: 0 | AG85: 0 | AH85: 0
A86: 300001 | B86: 400000 | C86: 300000 | D86: 79000 | E86: 0.38 | G86: Byvoordeel | I86: =IF('Standing info'!$C$7=0,0,HLOOKUP($I$1,$J$1:AH86,86)) -> 0 | J86: =IF(((Schedules!$D$218+Schedules!$D$219)/3)-Schedules!$D$219<0,0,((Schedules!$D$218+Schedules!$D$219)/3)-Schedules!$D$219) -> 0 | K86: =IF(((Schedules!$D$218+Schedules!$D$219)/3)-Schedules!$D$219<0,0,((Schedules!$D$218+Schedules!$D$219)/3)-Schedules!$D$219) -> 0 | L86: =IF(((Schedules!$D$218+Schedules!$D$219)/3)-Schedules!$D$219<0,0,((Schedules!$D$218+Schedules!$D$219)/3)-Schedules!$D$219) -> 0 | M86: =IF(((Schedules!$D$218+Schedules!$D$219)/3)-Schedules!$D$219<0,0,((Schedules!$D$218+Schedules!$D$219)/3)-Schedules!$D$219) -> 0 | N86: =IF(N89>=65,0,IF((Schedules!$D$218-'Tax tables & variables'!$I$83)<0,0,(Schedules!$D$218-'Tax tables & variables'!$I$83))) -> 0 | O86: =IF(O89>=65,0,IF((Schedules!$D$218-'Tax tables & variables'!$I$83)<0,0,(Schedules!$D$218-'Tax tables & variables'!$I$83))) -> 0 | P86: =IF(P89>=65,0,IF((Schedules!$D$218-'Tax tables & variables'!$I$83)<0,0,(Schedules!$D$218-'Tax tables & variables'!$I$83))) -> 0 | Q86: =IF(Q89>=65,0,IF((Schedules!$D$218-'Tax tables & variables'!$I$83)<0,0,(Schedules!$D$218-'Tax tables & variables'!$I$83))) -> 0 | R86: =IF(R89>=65,0,Schedules!$D$218) -> 0 | S86: =IF(S89>=65,0,Schedules!$D$218) -> 0 | T86: =Schedules!$D$218 -> 0 | U86: =Schedules!$D$218 -> 0 | V86: =Schedules!$D$218 -> 0 | W86: =Schedules!$D$218 -> 0 | X86: =Schedules!$D$218 -> 0 | Y86: =Schedules!$D$218 -> 0 | Z86: =Schedules!$D$218 -> 0 | AA86: =Schedules!$D$218 -> 0 | AB86: =Schedules!$D$218 -> 0 | AC86: =Schedules!$D$218 -> 0 | AD86: =Schedules!$D$218 -> 0 | AE86: =Schedules!$D$218 -> 0 | AF86: =Schedules!$D$218 -> 0 | AG86: =Schedules!$D$218 -> 0 | AH86: =Schedules!$D$218 -> 0
A87: 400001 | B87: 99999999 | C87: 400000 | D87: 117000 | E87: 0.4 | G87: Byvoordeel metode | I87: =IF('Standing info'!$C$7=0,0,HLOOKUP($I$1,$J$1:AH87,87)) -> 0 | J87: oud | K87: oud | L87: oud | M87: oud | N87: nuut | O87: nuut | P87: nuut | Q87: nuut | R87: nuut11 | S87: nuut11 | T87: nuut111 | U87: nuut111 | V87: nuut111 | W87: nuut111 | X87: nuut111 | Y87: nuut111 | Z87: nuut111 | AA87: nuut111 | AB87: nuut111 | AC87: nuut111 | AD87: nuut111 | AE87: nuut111 | AF87: nuut111 | AG87: nuut111 | AH87: nuut111
A88: 99999999 | B88: 99999999 | C88: 99999998 | G88: Skakel aftrekking om na mediese belastingkrediet na 1 Maart 2014 | I88: =IF('Standing info'!$C$7=0,0,HLOOKUP($I$1,$J$1:AH88,88)) -> 0 | V88: JA | W88: JA | X88: JA | Y88: JA | Z88: JA | AA88: JA | AB88: JA | AC88: JA | AD88: JA | AE88: JA | AF88: JA | AG88: JA | AH88: JA
G89: Ouderdom van belastingpligtige | I89: =IF('Standing info'!$C$7=0,0,HLOOKUP($I$1,$J$1:AH89,89)) -> 0 | J89: ='Standing info'!$C$21 -> 0 | K89: ='Standing info'!$C$21 -> 0 | L89: ='Standing info'!$C$21 -> 0 | M89: ='Standing info'!$C$21 -> 0 | N89: ='Standing info'!$C$21 -> 0 | O89: ='Standing info'!$C$21 -> 0 | P89: ='Standing info'!$C$21 -> 0 | Q89: ='Standing info'!$C$21 -> 0 | R89: ='Standing info'!$C$21 -> 0 | S89: ='Standing info'!$C$21 -> 0 | T89: ='Standing info'!$C$21 -> 0 | U89: ='Standing info'!$C$21 -> 0 | V89: ='Standing info'!$C$21 -> 0 | W89: ='Standing info'!$C$21 -> 0 | X89: ='Standing info'!$C$21 -> 0 | Y89: ='Standing info'!$C$21 -> 0 | Z89: ='Standing info'!$C$21 -> 0 | AA89: ='Standing info'!$C$21 -> 0 | AB89: ='Standing info'!$C$21 -> 0 | AC89: ='Standing info'!$C$21 -> 0 | AD89: ='Standing info'!$C$21 -> 0 | AE89: ='Standing info'!$C$21 -> 0 | AF89: ='Standing info'!$C$21 -> 0 | AG89: ='Standing info'!$C$21 -> 0 | AH89: ='Standing info'!$C$21 -> 0
A90: KORTINGS | G90: Gestremd of gestremde afhanklikes | I90: =IF('Standing info'!$C$7=0,0,HLOOKUP($I$1,$J$1:AH90,90)) -> 0 | J90: =IF('Standing info'!$H$27=TRUE,"JA","NEE") -> NEE | K90: =IF('Standing info'!$H$27=TRUE,"JA","NEE") -> NEE | L90: =IF('Standing info'!$H$27=TRUE,"JA","NEE") -> NEE | M90: =IF('Standing info'!$H$27=TRUE,"JA","NEE") -> NEE | N90: =IF('Standing info'!$H$27=TRUE,"JA","NEE") -> NEE | O90: =IF('Standing info'!$H$27=TRUE,"JA","NEE") -> NEE | P90: =IF('Standing info'!$H$27=TRUE,"JA","NEE") -> NEE | Q90: =IF('Standing info'!$H$27=TRUE,"JA","NEE") -> NEE | R90: =IF('Standing info'!$H$27=TRUE,"JA","NEE") -> NEE | S90: =IF('Standing info'!$H$27=TRUE,"JA","NEE") -> NEE | T90: =IF('Standing info'!$H$27=TRUE,"JA","NEE") -> NEE | U90: =IF('Standing info'!$H$27=TRUE,"JA","NEE") -> NEE | V90: =IF('Standing info'!$H$27=TRUE,"JA","NEE") -> NEE | W90: =IF('Standing info'!$H$27=TRUE,"JA","NEE") -> NEE | X90: =IF('Standing info'!$H$27=TRUE,"JA","NEE") -> NEE | Y90: =IF('Standing info'!$H$27=TRUE,"JA","NEE") -> NEE | Z90: =IF('Standing info'!$H$27=TRUE,"JA","NEE") -> NEE | AA90: =IF('Standing info'!$H$27=TRUE,"JA","NEE") -> NEE | AB90: =IF('Standing info'!$H$27=TRUE,"JA","NEE") -> NEE | AC90: =IF('Standing info'!$H$27=TRUE,"JA","NEE") -> NEE | AD90: =IF('Standing info'!$H$27=TRUE,"JA","NEE") -> NEE | AE90: =IF('Standing info'!$H$27=TRUE,"JA","NEE") -> NEE | AF90: =IF('Standing info'!$H$27=TRUE,"JA","NEE") -> NEE | AG90: =IF('Standing info'!$H$27=TRUE,"JA","NEE") -> NEE | AH90: =IF('Standing info'!$H$27=TRUE,"JA","NEE") -> NEE
G91: Gestremde aftrekking | I91: =IF('Standing info'!$C$7=0,0,HLOOKUP($I$1,$J$1:AH91,91)) -> 0 | J91: =IF(IF(J90="JA",Schedules!$D$597-500,0)<0,0,IF(J90="JA",Schedules!$D$597-500,0)) -> 0 | K91: =IF(IF(K90="JA",Schedules!$D$597-500,0)<0,0,IF(K90="JA",Schedules!$D$597-500,0)) -> 0 | L91: =IF(IF(L90="JA",Schedules!$D$597-500,0)<0,0,IF(L90="JA",Schedules!$D$597-500,0)) -> 0 | M91: =IF(IF(M90="JA",Schedules!$D$597-500,0)<0,0,IF(M90="JA",Schedules!$D$597-500,0)) -> 0 | N91: =IF(IF(N90="JA",Schedules!$D$597,0)<0,0,IF(N90="JA",Schedules!$D$597,0)) -> 0 | O91: =IF(IF(O90="JA",Schedules!$D$597,0)<0,0,IF(O90="JA",Schedules!$D$597,0)) -> 0 | P91: =IF(IF(P90="JA",Schedules!$D$597,0)<0,0,IF(P90="JA",Schedules!$D$597,0)) -> 0 | Q91: =IF(IF(Q90="JA",Schedules!$D$597,0)<0,0,IF(Q90="JA",Schedules!$D$597,0)) -> 0 | R91: =IF(IF(R90="JA",Schedules!$D$597,0)<0,0,IF(R90="JA",Schedules!$D$597,0)) -> 0 | S91: =IF(IF(S90="JA",Schedules!$D$597,0)<0,0,IF(S90="JA",Schedules!$D$597,0)) -> 0 | T91: =IF(IF(T90="JA",Schedules!$D$597,0)<0,0,IF(T90="JA",Schedules!$D$597,0)) -> 0 | U91: =IF(IF(U90="JA",Schedules!$D$597,0)<0,0,IF(U90="JA",Schedules!$D$597,0)) -> 0 | V91: =IF(IF(V90="JA",Schedules!$D$597,0)<0,0,IF(V90="JA",Schedules!$D$597,0)) -> 0 | W91: =IF(IF(W90="JA",Schedules!$D$597,0)<0,0,IF(W90="JA",Schedules!$D$597,0)) -> 0 | X91: =IF(IF(X90="JA",Schedules!$D$597,0)<0,0,IF(X90="JA",Schedules!$D$597,0)) -> 0 | Y91: =IF(IF(Y90="JA",Schedules!$D$597,0)<0,0,IF(Y90="JA",Schedules!$D$597,0)) -> 0 | Z91: =IF(IF(Z90="JA",Schedules!$D$597,0)<0,0,IF(Z90="JA",Schedules!$D$597,0)) -> 0 | AA91: =IF(IF(AA90="JA",Schedules!$D$597,0)<0,0,IF(AA90="JA",Schedules!$D$597,0)) -> 0 | AB91: =IF(IF(AB90="JA",Schedules!$D$597,0)<0,0,IF(AB90="JA",Schedules!$D$597,0)) -> 0 | AC91: =IF(IF(AC90="JA",Schedules!$D$597,0)<0,0,IF(AC90="JA",Schedules!$D$597,0)) -> 0 | AD91: =IF(IF(AD90="JA",Schedules!$D$597,0)<0,0,IF(AD90="JA",Schedules!$D$597,0)) -> 0 | AE91: =IF(IF(AE90="JA",Schedules!$D$597,0)<0,0,IF(AE90="JA",Schedules!$D$597,0)) -> 0 | AF91: =IF(IF(AF90="JA",Schedules!$D$597,0)<0,0,IF(AF90="JA",Schedules!$D$597,0)) -> 0 | AG91: =IF(IF(AG90="JA",Schedules!$D$597,0)<0,0,IF(AG90="JA",Schedules!$D$597,0)) -> 0 | AH91: =IF(IF(AH90="JA",Schedules!$D$597,0)<0,0,IF(AH90="JA",Schedules!$D$597,0)) -> 0
A92: PRIMER | E92: 7200 | G92: Gestremd OF bo 65 | I92: =IF('Standing info'!$C$7=0,0,HLOOKUP($I$1,$J$1:AH92,92)) -> 0 | J92: =IF(J90="JA","JA",IF(J89>=65,"JA","NEE")) -> NEE | K92: NEE | L92: NEE | M92: NEE | N92: NEE | O92: NEE | P92: NEE | Q92: NEE | R92: NEE | S92: NEE | T92: NEE | U92: NEE | V92: NEE | W92: NEE | X92: =IF(X90="JA","JA",IF(X89>=65,"JA","NEE")) -> NEE | Y92: NEE | Z92: =IF(Z90="JA","JA",IF(Z89>=65,"JA","NEE")) -> NEE | AA92: =IF(AA90="JA","JA",IF(AA89>=65,"JA","NEE")) -> NEE | AB92: =IF(AB90="JA","JA",IF(AB89>=65,"JA","NEE")) -> NEE | AC92: =IF(AC90="JA","JA",IF(AC89>=65,"JA","NEE")) -> NEE | AD92: =IF(AD90="JA","JA",IF(AD89>=65,"JA","NEE")) -> NEE | AE92: =IF(AE90="JA","JA",IF(AE89>=65,"JA","NEE")) -> NEE | AF92: =IF(AF90="JA","JA",IF(AF89>=65,"JA","NEE")) -> NEE | AG92: =IF(AG90="JA","JA",IF(AG89>=65,"JA","NEE")) -> NEE | AH92: =IF(AH90="JA","JA",IF(AH89>=65,"JA","NEE")) -> NEE
A93: SEKONDER | E93: 4500 | G93: Dood gedurende die jaar | I93: =IF('Standing info'!$C$7=0,0,HLOOKUP($I$1,$J$1:AH93,93)) -> 0 | J93: =IF('Standing info'!$H$23=TRUE,"JA","NEE") -> NEE | K93: =IF('Standing info'!$H$23=TRUE,"JA","NEE") -> NEE | L93: =IF('Standing info'!$H$23=TRUE,"JA","NEE") -> NEE | M93: =IF('Standing info'!$H$23=TRUE,"JA","NEE") -> NEE | N93: =IF('Standing info'!$H$23=TRUE,"JA","NEE") -> NEE | O93: =IF('Standing info'!$H$23=TRUE,"JA","NEE") -> NEE | P93: =IF('Standing info'!$H$23=TRUE,"JA","NEE") -> NEE | Q93: =IF('Standing info'!$H$23=TRUE,"JA","NEE") -> NEE | R93: =IF('Standing info'!$H$23=TRUE,"JA","NEE") -> NEE | S93: =IF('Standing info'!$H$23=TRUE,"JA","NEE") -> NEE | T93: =IF('Standing info'!$H$23=TRUE,"JA","NEE") -> NEE | U93: =IF('Standing info'!$H$23=TRUE,"JA","NEE") -> NEE | V93: =IF('Standing info'!$H$23=TRUE,"JA","NEE") -> NEE | W93: =IF('Standing info'!$H$23=TRUE,"JA","NEE") -> NEE | X93: =IF('Standing info'!$H$23=TRUE,"JA","NEE") -> NEE | Y93: =IF('Standing info'!$H$23=TRUE,"JA","NEE") -> NEE | Z93: =IF('Standing info'!$H$23=TRUE,"JA","NEE") -> NEE | AA93: =IF('Standing info'!$H$23=TRUE,"JA","NEE") -> NEE | AB93: =IF('Standing info'!$H$23=TRUE,"JA","NEE") -> NEE | AC93: =IF('Standing info'!$H$23=TRUE,"JA","NEE") -> NEE | AD93: =IF('Standing info'!$H$23=TRUE,"JA","NEE") -> NEE | AE93: =IF('Standing info'!$H$23=TRUE,"JA","NEE") -> NEE | AF93: =IF('Standing info'!$H$23=TRUE,"JA","NEE") -> NEE | AG93: =IF('Standing info'!$H$23=TRUE,"JA","NEE") -> NEE | AH93: =IF('Standing info'!$H$23=TRUE,"JA","NEE") -> NEE
G94: Skenkingsbeperking persentasie | I94: =IF('Standing info'!$C$7=0,0,HLOOKUP($I$1,$J$1:AH94,94)) -> 0 | J94: 0.05 | K94: 0.05 | L94: 0.05 | M94: 0.05 | N94: 0.05 | O94: 0.1 | P94: 0.1 | Q94: 0.1 | R94: 0.1 | S94: 0.1 | T94: 0.1 | U94: 0.1 | V94: 0.1 | W94: 0.1 | X94: 0.1 | Y94: 0.1 | Z94: 0.1 | AA94: 0.1 | AB94: 0.1 | AC94: 0.1 | AD94: 0.1 | AE94: 0.1 | AF94: 0.1 | AG94: 0.1 | AH94: 0.1
A95: 2008
A97: INKOMSTE | D97: BELASTINGKOERSE
I98: 2002 - 2005
A99: 0 | B99: 112500 | C99: =A99 -> 0 | D99: 0 | E99: 0.18 | I99: REISKOSTE
A100: 112501 | B100: 180000 | C100: =A100-1 -> 112500 | D100: 20250 | E100: 0.25 | J100: WDE
A101: 180001 | B101: 250000 | C101: 180000 | D101: 37125 | E101: 0.3 | I101: Voertuig1 | J101: =Schedules!D396 -> 0 | K101: =IF(J101<>0,VLOOKUP(J101,I104:M204,3),0) -> 0 | L101: =IF(K101<>0,VLOOKUP(J101,I104:M204,4),0) -> 0 | M101: =IF(L101<>0,VLOOKUP(J101,I104:M204,5),0) -> 0
A102: 250001 | B102: 350000 | C102: 250000 | D102: 58125 | E102: 0.35 | I102: Voertuig2 | J102: =Schedules!D417 -> 0 | K102: =IF(J102<>0,VLOOKUP(J102,I104:M204,3),0) -> 0 | L102: =IF(K102<>0,VLOOKUP(J102,I104:M204,4),0) -> 0 | M102: =IF(L102<>0,VLOOKUP(J102,I104:M204,5),0) -> 0
A103: 350001 | B103: 450000 | C103: 350000 | D103: 93125 | E103: 0.38 | I103: Waarde | K103: Vaste koste | L103: Brandstof | M103: Onderhoud
A104: 450001 | B104: 99999999 | C104: 450000 | D104: 131125 | E104: 0.4 | I104: 1 | J104: 30000 | K104: 16916 | L104: 23.1 | M104: 17.1
A105: 99999999 | B105: 99999999 | C105: 99999998 | I105: 30001 | J105: 35000 | K105: 18984 | L105: 23.5 | M105: 17.3
I106: 35001 | J106: 40000 | K106: 21051 | L106: 23.8 | M106: 17.8
A107: KORTINGS | I107: 40001 | J107: 45000 | K107: 23116 | L107: 24.3 | M107: 18.5
I108: 45001 | J108: 50000 | K108: 25197 | L108: 24.8 | M108: 19.2
A109: PRIMER | E109: 7740 | I109: 50001 | J109: 55000 | K109: 27670 | L109: 25.3 | M109: 19.9
A110: SEKONDER | E110: 4680 | I110: 55001 | J110: 60000 | K110: 29778 | L110: 25.5 | M110: 20.6
I111: 60001 | J111: 70000 | K111: 33873 | L111: 25.9 | M111: 21.3
A112: 2009 | I112: 70001 | J112: 80000 | K112: 38102 | L112: 26.1 | M112: 22.2
I113: 80001 | J113: 90000 | K113: 40538 | L113: 26.3 | M113: 22.7
A114: INKOMSTE | D114: BELASTINGKOERSE | I114: 90001 | J114: 100000 | K114: 44535 | L114: 26.5 | M114: 23.4
I115: 100001 | J115: 110000 | K115: 48533 | L115: 26.8 | M115: 24.1
A116: 0 | B116: 122000 | C116: =A116 -> 0 | D116: 0 | E116: 0.18 | I116: 110001 | J116: 120000 | K116: 51110 | L116: 27.5 | M116: 24.8
A117: =B116+1 -> 122001 | B117: 195000 | C117: =A117-1 -> 122000 | D117: 21960 | E117: 0.25 | I117: 120001 | J117: 130000 | K117: 54990 | L117: 28.1 | M117: 25.5
A118: =B117+1 -> 195001 | B118: 270000 | C118: 195000 | D118: 40210 | E118: 0.3 | I118: 130001 | J118: 140000 | K118: 58803 | L118: 28.9 | M118: 26.2
A119: =B118+1 -> 270001 | B119: 380000 | C119: 270000 | D119: 62710 | E119: 0.35 | I119: 140001 | J119: 150000 | K119: 62677 | L119: 29.4 | M119: 26.9
A120: =B119+1 -> 380001 | B120: 490000 | C120: 380000 | D120: 101210 | E120: 0.38 | I120: =I119+10000 -> 150001 | J120: =J119+10000 -> 160000 | K120: =K119+3874 -> 66551 | L120: 29.4 | M120: 26.9
A121: =B120+1 -> 490001 | B121: 99999999 | C121: 490000 | D121: 143010 | E121: 0.4 | I121: =I120+10000 -> 160001 | J121: =J120+10000 -> 170000 | K121: =K120+3874 -> 70425 | L121: 29.4 | M121: 26.9
A122: 99999999 | B122: 99999999 | C122: 99999998 | I122: 170001 | J122: 180000 | K122: 74299 | L122: 29.4 | M122: 26.9
I123: 180001 | J123: 190000 | K123: 78173 | L123: 29.4 | M123: 26.9
A124: KORTINGS | I124: 190001 | J124: 200000 | K124: 82047 | L124: 29.4 | M124: 26.9
I125: 200001 | J125: 210000 | K125: 85921 | L125: 29.4 | M125: 26.9
A126: PRIMER | E126: 8280 | I126: 210001 | J126: 220000 | K126: 89795 | L126: 29.4 | M126: 26.9
A127: SEKONDER | E127: 5040 | I127: 220001 | J127: 230000 | K127: 93669 | L127: 29.4 | M127: 26.9
I128: 230001 | J128: 240000 | K128: 97543 | L128: 29.4 | M128: 26.9
A129: 2010 | I129: 240001 | J129: 250000 | K129: 101417 | L129: 29.4 | M129: 26.9
I130: 250001 | J130: 260000 | K130: 105291 | L130: 29.4 | M130: 26.9
A131: INKOMSTE | D131: BELASTINGKOERSE | I131: 260001 | J131: 270000 | K131: 109165 | L131: 29.4 | M131: 26.9
I132: 270001 | J132: 280000 | K132: 113039 | L132: 29.4 | M132: 26.9
A133: 0 | B133: 132000 | C133: =A133 -> 0 | D133: 0 | E133: 0.18 | I133: 280001 | J133: 290000 | K133: 116913 | L133: 29.4 | M133: 26.9
A134: =B133+1 -> 132001 | B134: 210000 | C134: =A134-1 -> 132000 | D134: 23760 | E134: 0.25 | I134: 290001 | J134: 300000 | K134: 120787 | L134: 29.4 | M134: 26.9
A135: =B134+1 -> 210001 | B135: 290000 | C135: 210000 | D135: 43260 | E135: 0.3 | I135: 300001 | J135: 310000 | K135: 124661 | L135: 29.4 | M135: 26.9
A136: =B135+1 -> 290001 | B136: 410000 | C136: 290000 | D136: 67260 | E136: 0.35 | I136: 310001 | J136: 320000 | K136: 128535 | L136: 29.4 | M136: 26.9
A137: =B136+1 -> 410001 | B137: 525000 | C137: 410000 | D137: 109260 | E137: 0.38 | I137: 320001 | J137: 330000 | K137: 132409 | L137: 29.4 | M137: 26.9
A138: =B137+1 -> 525001 | B138: 99999999 | C138: 525000 | D138: 152960 | E138: 0.4 | I138: 330001 | J138: 340000 | K138: 136283 | L138: 29.4 | M138: 26.9
A139: 99999999 | B139: 99999999 | C139: 99999998 | I139: 340001 | J139: 350000 | K139: 140157 | L139: 29.4 | M139: 26.9
I140: 350001 | J140: 360000 | K140: 144031 | L140: 29.4 | M140: 26.9
A141: KORTINGS | I141: 360001 | J141: 370000 | K141: 147905 | L141: 29.4 | M141: 26.9
I142: 370001 | J142: 380000 | K142: 151779 | L142: 29.4 | M142: 26.9
A143: PRIMER | E143: 9756 | I143: 380001 | J143: 390000 | K143: 155653 | L143: 29.4 | M143: 26.9
A144: SEKONDER | E144: 5400 | I144: 390001 | J144: 400000 | K144: 159527 | L144: 29.4 | M144: 26.9
I145: 400001 | J145: 410000 | K145: 163401 | L145: 29.4 | M145: 26.9
A146: 2011 | I146: 410001 | J146: 420000 | K146: 167275 | L146: 29.4 | M146: 26.9
I147: 420001 | J147: 430000 | K147: 171149 | L147: 29.4 | M147: 26.9
A148: INKOMSTE | D148: BELASTINGKOERSE | I148: 430001 | J148: 440000 | K148: 175023 | L148: 29.4 | M148: 26.9
I149: 440001 | J149: 450000 | K149: 178897 | L149: 29.4 | M149: 26.9
A150: 0 | B150: 140000 | C150: =A150 -> 0 | D150: 0 | E150: 0.18 | I150: 450001 | J150: 460000 | K150: 182771 | L150: 29.4 | M150: 26.9
A151: =B150+1 -> 140001 | B151: 221000 | C151: =A151-1 -> 140000 | D151: 25200 | E151: 0.25 | I151: 460001 | J151: 470000 | K151: 186645 | L151: 29.4 | M151: 26.9
A152: =B151+1 -> 221001 | B152: 305000 | C152: 221000 | D152: 45450 | E152: 0.3 | I152: 470001 | J152: 480000 | K152: 190519 | L152: 29.4 | M152: 26.9
A153: =B152+1 -> 305001 | B153: 431000 | C153: 305000 | D153: 70650 | E153: 0.35 | I153: 480001 | J153: 490000 | K153: 194393 | L153: 29.4 | M153: 26.9
A154: =B153+1 -> 431001 | B154: 552000 | C154: 431000 | D154: 114750 | E154: 0.38 | I154: 490001 | J154: 500000 | K154: 198267 | L154: 29.4 | M154: 26.9
A155: =B154+1 -> 552001 | B155: 99999999 | C155: 552000 | D155: 160730 | E155: 0.4 | I155: 500001 | J155: 510000 | K155: 202141 | L155: 29.4 | M155: 26.9
A156: 99999999 | B156: 99999999 | C156: 99999998 | I156: 510001 | J156: 520000 | K156: 206015 | L156: 29.4 | M156: 26.9
I157: 520001 | J157: 530000 | K157: 209889 | L157: 29.4 | M157: 26.9
A158: KORTINGS | I158: 530001 | J158: 540000 | K158: 213763 | L158: 29.4 | M158: 26.9
I159: 540001 | J159: 550000 | K159: 217637 | L159: 29.4 | M159: 26.9
A160: PRIMER | E160: 10260 | I160: 550001 | J160: 560000 | K160: 221511 | L160: 29.4 | M160: 26.9
A161: SEKONDER | E161: 5675 | I161: 560001 | J161: 570000 | K161: 225385 | L161: 29.4 | M161: 26.9
I162: 570001 | J162: 580000 | K162: 229259 | L162: 29.4 | M162: 26.9
A163: 2012 | I163: 580001 | J163: 590000 | K163: 233133 | L163: 29.4 | M163: 26.9
I164: 590001 | J164: 600000 | K164: 237007 | L164: 29.4 | M164: 26.9
A165: INKOMSTE | D165: BELASTINGKOERSE | I165: 600001 | J165: 610000 | K165: 240881 | L165: 29.4 | M165: 26.9
I166: 610001 | J166: 620000 | K166: 244755 | L166: 29.4 | M166: 26.9
A167: 0 | B167: 150000 | C167: =A167 -> 0 | D167: 0 | E167: 0.18 | I167: 620001 | J167: 630000 | K167: 248629 | L167: 29.4 | M167: 26.9
A168: =B167+1 -> 150001 | B168: 235000 | C168: =A168-1 -> 150000 | D168: 27000 | E168: 0.25 | I168: 630001 | J168: 640000 | K168: 252503 | L168: 29.4 | M168: 26.9
A169: =B168+1 -> 235001 | B169: 325000 | C169: 235000 | D169: 48250 | E169: 0.3 | I169: 640001 | J169: 650000 | K169: 256377 | L169: 29.4 | M169: 26.9
A170: =B169+1 -> 325001 | B170: 455000 | C170: 325000 | D170: 75250 | E170: 0.35 | I170: 650001 | J170: 660000 | K170: 260251 | L170: 29.4 | M170: 26.9
A171: =B170+1 -> 455001 | B171: 580000 | C171: 455000 | D171: 120750 | E171: 0.38 | I171: 660001 | J171: 670000 | K171: 264125 | L171: 29.4 | M171: 26.9
A172: =B171+1 -> 580001 | B172: 99999999 | C172: 580000 | D172: 168250 | E172: 0.4 | I172: 670001 | J172: 680000 | K172: 267999 | L172: 29.4 | M172: 26.9
A173: 99999999 | B173: 99999999 | C173: 99999998 | I173: 680001 | J173: 690000 | K173: 271873 | L173: 29.4 | M173: 26.9
I174: 690001 | J174: 700000 | K174: 275747 | L174: 29.4 | M174: 26.9
A175: KORTINGS | I175: 700001 | J175: 710000 | K175: 279621 | L175: 29.4 | M175: 26.9
I176: 710001 | J176: 720000 | K176: 283495 | L176: 29.4 | M176: 26.9
A177: PRIMER | E177: 10755 | I177: 720001 | J177: 730000 | K177: 287369 | L177: 29.4 | M177: 26.9
A178: SEKONDER | E178: 6012 | I178: 730001 | J178: 740000 | K178: 291243 | L178: 29.4 | M178: 26.9
A179: TERSIER | E179: 2000 | I179: 740001 | J179: 750000 | K179: 295117 | L179: 29.4 | M179: 26.9
A180: 2013 | I180: 750001 | J180: 760000 | K180: 298991 | L180: 29.4 | M180: 26.9
I181: 760001 | J181: 770000 | K181: 302865 | L181: 29.4 | M181: 26.9
A182: INKOMSTE | D182: BELASTINGKOERSE | I182: 770001 | J182: 780000 | K182: 306739 | L182: 29.4 | M182: 26.9
I183: 780001 | J183: 790000 | K183: 310613 | L183: 29.4 | M183: 26.9
A184: 0 | B184: 160000 | C184: =A184 -> 0 | D184: 0 | E184: 0.18 | I184: 790001 | J184: 800000 | K184: 314487 | L184: 29.4 | M184: 26.9
A185: =B184+1 -> 160001 | B185: 250000 | C185: =A185-1 -> 160000 | D185: 28800 | E185: 0.25 | I185: =I184+10000 -> 800001 | J185: =J184+10000 -> 810000 | K185: =K184+3874 -> 318361 | L185: 29.4 | M185: 26.9
A186: =B185+1 -> 250001 | B186: 346000 | C186: 250000 | D186: 51300 | E186: 0.3 | I186: 810001 | J186: 820000 | K186: 322235 | L186: 29.4 | M186: 26.9
A187: =B186+1 -> 346001 | B187: 484000 | C187: 346000 | D187: 80100 | E187: 0.35 | I187: 820001 | J187: 830000 | K187: 326109 | L187: 29.4 | M187: 26.9
A188: =B187+1 -> 484001 | B188: 617000 | C188: 484000 | D188: 128400 | E188: 0.38 | I188: 830001 | J188: 840000 | K188: 329983 | L188: 29.4 | M188: 26.9
A189: =B188+1 -> 617001 | B189: 99999999 | C189: 617000 | D189: 178940 | E189: 0.4 | I189: 840001 | J189: 850000 | K189: 333857 | L189: 29.4 | M189: 26.9
A190: 99999999 | B190: 99999999 | C190: 99999998 | I190: 850001 | J190: 860000 | K190: 337731 | L190: 29.4 | M190: 26.9
I191: 860001 | J191: 870000 | K191: 341605 | L191: 29.4 | M191: 26.9
A192: KORTINGS | I192: 870001 | J192: 880000 | K192: 345479 | L192: 29.4 | M192: 26.9
I193: 880001 | J193: 890000 | K193: 349353 | L193: 29.4 | M193: 26.9
A194: PRIMER | E194: 11440 | I194: 890001 | J194: 900000 | K194: 353227 | L194: 29.4 | M194: 26.9
A195: SEKONDER | E195: 6390 | I195: 900001 | J195: 910000 | K195: 357101 | L195: 29.4 | M195: 26.9
A196: TERSIER | E196: 2130 | I196: 910001 | J196: 920000 | K196: 360975 | L196: 29.4 | M196: 26.9
A197: 2014 | I197: =I196+10000 -> 920001 | J197: 930000 | K197: 364849 | L197: 29.4 | M197: 26.9
I198: 930001 | J198: 940000 | K198: 368723 | L198: 29.4 | M198: 26.9
A199: INKOMSTE | D199: BELASTINGKOERSE | I199: 940001 | J199: 950000 | K199: 372597 | L199: 29.4 | M199: 26.9
I200: 950001 | J200: 960000 | K200: 376471 | L200: 29.4 | M200: 26.9
A201: 0 | B201: 165600 | C201: =A201 -> 0 | D201: 0 | E201: 0.18 | I201: 960001 | J201: 970000 | K201: 380345 | L201: 29.4 | M201: 26.9
A202: =B201+1 -> 165601 | B202: 258750 | C202: =A202-1 -> 165600 | D202: 29808 | E202: 0.25 | I202: 970001 | J202: 980000 | K202: 384219 | L202: 29.4 | M202: 26.9
A203: =B202+1 -> 258751 | B203: 358110 | C203: 258750 | D203: 53096 | E203: 0.3 | I203: 980001 | J203: 990000 | K203: 388093 | L203: 29.4 | M203: 26.9
A204: =B203+1 -> 358111 | B204: 500940 | C204: 358110 | D204: 82904 | E204: 0.35 | I204: 990001 | J204: 1000000 | K204: 391967 | L204: 29.4 | M204: 26.9
A205: =B204+1 -> 500941 | B205: 638600 | C205: 500940 | D205: 132894 | E205: 0.38
... 342 more rows
